Workbook

Sheet Unit Conversion Sheet (hidden)
B3: gallons / cubic foot | C3: 7.48051945
B4: sq feet / acre | C4: 43560
B5: litres / gallon | C5: 3.7854118
B6: gallons / litre | C6: =1/C5 -> 0.2641720512
B7: km / mi | C7: 1.60934
C8: Customer Retail Cost Units
C9: 1 | D9: 2 | E9: 3
B10: Variable Production Cost Units | C10: $/100 cubic feet (ccf) | D10: $/1000 gallons (US) | E10: $/1000 litres | H10: Used for cost drop box reference
A11: 1 | B11: Million gallons (US) | C11: =1000000/(C3*100) -> 1336.805561 | D11: 1000 | E11: =1000/C6 -> 3785.4118 | H11: $/100 cubic feet (ccf)
A12: 2 | B12: Megalitres (thousand cubic metres) | C12: =1000000/C5/(C3*100) -> 353.1466672 | D12: =1000/C5 -> 264.1720512 | E12: 1000 | H12: $/1000 gallons (US)
A13: 3 | B13: Acre-feet | C13: =C4/100 -> 435.6 | D13: =C4*C3/1000 -> 325.8514272 | E13: =C4*C3*C5/1000 -> 1233.481838 | H13: $/1000 litres
C16: Million gallons (US) | D16: Megalitres (thousand cubic metres) | E16: Acre-feet | F16: Gallons
A17: 1 | B17: Million gallons (US) | C17: 1 | D17: =C5 -> 3.7854118 | E17: 3.06888329 | F17: =10^6 -> 1000000
A18: 2 | B18: Megalitres (thousand cubic metres) | C18: =1/D17 -> 0.2641720512 | D18: 1 | E18: 0.8107131937 | F18: =C18*10^6 -> 264172.0512 | O18: =1/E17 -> 0.3258514272
A19: 3 | B19: Acre-feet | C19: =325851.427242/1000000 -> 0.3258514272 | D19: 1.233481838 | E19: 1 | F19: =C19*10^6 -> 325851.4272 | O19: =O18*E17 -> 1
O21: 1000
O22: =O21/E17 -> 325.8514272 | P22: =C19*E17 -> 1
C23: Service Connection units | D23: conversion multiplier
A24: 1 | B24: Million gallons (US) | C24: gal/service con/day | D24: =10^6 -> 1000000 | O24: km
A25: 2 | B25: Megalitres | C25: litres/service con/day | D25: 1000000 | N25: Miles
A26: 3 | B26: Acre-feet | C26: gal/service con/day | D26: 325851.4272
A29: 1 | B29: Million Gallons | C29: MG/Yr
A30: 2 | B30: Megalitres | C30: ML/Yr
A31: 3 | B31: Acre-feet | C31: Acre-feet/Yr
B34: Length Units | C34: Miles | D34: Kilometers
C35: 1 | D35: 2
A36: 1 | B36: Million gallons (US) | C36: gal/mi/day | D36: gal/km/day
A37: 2 | B37: Megalitres | C37: litres/mi/day | D37: litres/km/day
A38: 3 | B38: Acre-feet | C38: gal/mile/day | D38: gal/km/day
B42: Unit | C42: Volume Multiplier
A43: 1 | B43: Million Gallons | C43: 1
A44: 2 | B44: Megalitres (thousand cubic metres) | C44: =1/C6 -> 3.7854118
A45: 3 | B45: Acre-feet | C45: =10^6/(C3*C4) -> 3.06888329
B47: Unit | C47: Pressure Multiplier | D47: Pressure Units
A48: 1 | B48: Million Gallons | C48: 1 | D48: PSI
A49: 2 | B49: Megalitres (thousand cubic metres) | C49: 1.4219 | D49: m | F49: =70/C49 -> 49.22990365
A50: 3 | B50: Acre-feet | C50: 1 | D50: PSI
B52: Unit | C52: volume/length multiplier
A53: 1 | B53: gal/mi/day | C53: 1
A54: 2 | B54: litres/km/day | C54: 2.35214
A55: 3 | B55: gal/mi/day | C55: 1
B58: volume per service conn per day multipliers for ex util | D58: actual units
A59: 1 | B59: MG | C59: 1 | D59: gal/service con/day
A60: 2 | B60: ML | C60: 3.875 | D60: litres/service con/day
A61: 3 | B61: Acre-feet | C61: 1 | D61: gal/service con/day
B63: Length Units | C63: Miles | D63: Kilometers
C64: 1 | D64: 2
A65: 1 | B65: Million gallons (US) | C65: 1 | D65: 1.60934
A66: 2 | B66: Megalitres | C66: =1/C6 -> 3.7854118 | D66: =C66*1.60934 -> 6.092014626
A67: 3 | B67: Acre-feet | C67: 1 | D67: =C67*1.60934 -> 1.60934
B69: Length Units Label | C69: Miles | D69: Kilometers
C70: 1 | D70: 2
A71: 1 | B71: Million gallons (US) | C71: Performance Indicator: Real Losses per length of mains per day [gal/mi/day] | D71: Performance Indicator: Real Losses per length of mains per day [gal/km/day]
A72: 2 | B72: Megalitres | C72: Performance Indicator: Real Losses per length of mains per day [litres/mi/day] | D72: Performance Indicator: Real Losses per length of mains per day [litres/km/day]
A73: 3 | B73: Acre-feet | C73: Performance Indicator: Real Losses per length of mains per day [gal/mi/day] | D73: Performance Indicator: Real Losses per length of mains per day [gal/km/day]
B76: Reservoir Background Leakage
A77: 1 | B77: 0.25 | C77: gpm | D77: per MG | E77: 1
A78: 2 | B78: =B77*C5 -> 0.94635295 | C78: lpm | D78: per ML | E78: =E77*C5 -> 3.7854118
A79: 3 | B79: =B78/E78 -> 0.25 | C79: lpm/ML

Sheet Instructions
A1: WaterRF 4372: Real Loss Component Analysis: A Tool for Economic Water Loss Control
A3: =IF('Start Page'!$Y$37="","",IF('Start Page'!$K$37="Partial Audit Period","Water Audit: "&'Start Page'!$D$26&", "&'Start Page'!$H$26&", "&'Start Page'!$K$26&", "&'Start Page'!$Y$37,"Water Audit: "&'Start Page'!$D$26&", "&'Start Page'!$H$26&", "&'Start Page'!$K$26&", "&YEAR('Start Page'!$Y$37))) -> 
A4: INSTRUCTIONS
A5: Welcome to the WaterRF 4372 Component Analysis of Real Losses Software Model. These instructions will provide a basic summary of each tab in this model. Instructions are also available on each tab. This spreadsheet based "Model" was designed to provide North American (NA) water utilities with a utility-tested software tool to undertake a leakage component analysis and to identify economic options for real loss reduction through improved speed and quality of leak repair, proactive leak detection and pressure management. This Model was also designed to assist NA water utilities in evaluating options for implementing efficient and sustainable leakage control programs. The models results should only be seen as a preliminary starting point for proactive management of Real Losses. The preliminary Real Loss control strategy needs to be refined as more results become available. It is important to acknowledge that the Model is only as useful and instructive as the quality of the user’s data inputs. Throughout the instructions provided in the Model (and throughout the WaterRF 4372 report), there is particular emphasis on the importance of data quality and validation. Furthermore, it is important to highlight that the Model requires a significant amount of validated data and its "outputs" are meant to provide opportunities to test scenarios but do not represent concrete goals or hard and fast targets. The Model is a dynamic tool meant for guidance and not a mechanism for direct reporting like the AWWA Free Water Audit Software, or for regulatory target setting.
A8: The WaterRF Model 4372 must be run in a Microsoft Windows environment with Excel 2003 or newer. The Model will not function properly using any Macintosh versions of Microsoft Excel.
A9: Macros must be enabled to properly use the WaterRF 4372 Component Analysis Modeling Software
A10: Due to the limitations of using Microsoft Excel, users may experience growing buttons and/or combination boxes. This is likely caused by a limitation of system resources. If this occurs, the user should immediately close the model without saving and close any other running programs and then reopen the model.
A11: For a full definition of any term used within the Model, simply click the term and you will be taken to the glossary
A13: Start Page
A14: In the blue user input cells, enter the basic details of the Utility including the Name, State, Country and a description of the system being analyzed by the model (i.e. Entire System, Zone 1). An explanation of each data entry field follows:
A15: - | B15: Utility - The name of the utility whose data is being inputted into the WaterRF 4372 Model Software
A16: - | B16: State/Province - The state or province where the utility whose data is being inputted into the WaterRF 4372 Model Software is located
A17: - | B17: Country - The country where the utility whose data is being inputted into the WaterRF 4372 Model Software is located
A18: - | B18: System Description - The portion of the system that is being analyzed using the WaterRF 4372 Model Software. Examples may include "Entire System, "Zone 1A", "Potable Water Distribution System"
A19: - | B19: Date of Data Entry - The date which the utility's data was entered into the WaterRF 4372 Model Software. This field has been included to allow utilities to maintain a version control of each model filled out for the utility.
A20: - | B20: Model User's Name - The name of the user that is filling out the WaterRF 4372 Model Software. This field has been included to allow utilities to maintain a version control of each model filled out for the utility.
A21: Enter the start and end date of the audit period being analyzed by the WaterRF 4372 Model. If no start and/or end dates are entered, the model will set a default audit period of 365 days. The model will also allow the user to define a custom audit period (e.g. 3 months, 2 years, etc).
A22: Select the volume and mains length units that are to be used throughout the model using the dropdown boxes. For volume, the model can accommodate Million Gallons (MG), Acre-feet, and Megalitres (ML). For mains length, the model can accommodate miles and kilometres.
A24: Summary
A25: The summary page displays the performance/financial indicators from the AWWA - Water Balance Results sheet, the summary table from the Real Losses Component Analysis sheet, the results from the A-L-R Runtimes sheet, the results from the Economic Intervention Frequency sheet and the results from the Pressure Management Options sheet. This sheet was designed to present the results of this software model on a single printed page.
A27: AWWA - Water Balance Results
A28: In the blue boxes, transpose all of the requested inputs from the AWWA Free Water Audit Software into the model. All definitions of the inputs are available in the Glossary. An explanation of each data entry field follows:
A29: - | B29: Water Supplied - This should be transposed from the "WATER SUPPLIED" field in the AWWA Free Water Audit Software. In the AWWA Free Water Audit Software, this is calculated by summing the water produced accounting for the master meter measurement error and the water imported and subtracting the water exported.
A30: - | B30: Billed Metered -This should be transposed from the "Billed metered" field in the AWWA Free Water Audit Software.
A31: - | B31: Billed Unmetered - This should be transposed from the "Billed unmetered" field in the AWWA Free Water Audit Software. This is also referred to as the Billed Unmetered Authorized Consumption.
A32: - | B32: Unbilled Metered -This should be transposed from the "Unbilled metered" Field in the AWWA free Water Audit Software. This is also referred to as the Unbilled Metered Authorized Consumption.
A33: - | B33: Unbilled Unmetered - This should be transposed from the "Unbilled unmetered" field in the AWWA Free Water Audit Software. This is also referred to as the Unbilled Unmetered Authorized Consumption.
A34: - | B34: Apparent Losses - This should be transposed from the "Apparent Losses" field in the AWWA Free Water Audit Software.
A35: - | B35: Length of Mains - This should be transposed from the "Length of mains" field in the AWWA Free Water Audit Software
A36: - | B36: Number of Active and Inactive Service Connections - This should be transposed from the "Number of active AND inactive service connections" field in the AWWA Free Water Audit Software.
A37: - | B37: Average Length of Customer Service Line - This should be transposed from the "Average length of customer service line" field in the AWWA Free Water Audit Software.
A38: - | B38: Average Operating Pressure - This should be transposed from the "Average operating pressure" field in the AWWA Free Water Audit Software.
A39: - | B39: Total Annual Cost of Operating the System - This should be transposed from the "Total annual cost of operating water system" field in the AWWA Free Water Audit Software.
A40: - | B40: Customer Retail Unit Cost (Applied to Apparent Losses) - This should be transposed from the "Customer retail unit cost (applied to Apparent Losses)" field in the AWWA Free Water Audit Software
A41: - | B41: Variable Production Cost - This should be transposed from the "Variable Production Cost (applied to Real Losses)" field in the AWWA Free Water Audit Software
A42: - | B42: AWWA Water Audit Data Validity Score - This should be transposed from the "WATER AUDIT DATA VALIDITY SCORE" field in the AWWA Free Water Audit Software. If the data validity of your AWWA Water Audit is less than 51 it is recommended to improve the data validity of your AWWA Water Audit data before any of the results of the following economic analysis are considered for implementation.
A44: The white boxes are automatically calculated for the user. These include both system characteristics and performance indicators. Descriptions of each automatically calculated field follows:
A45: - | B45: Authorized Consumption - This is automatically calculated in the model by summing all of the authorized consumption data entry fields, including "Billed Metered," "Billed Unmetered," "Unbilled Metered," and "Unbilled Unmetered"
A46: - | B46: Water Losses - This is automatically calculated in the model by subtracting the "AUTHORIZED CONSUMPTION" field from the "WATER SUPPLIED" field
A47: - | B47: Real Losses - This is automatically calculated in the model by subtracting the "Apparent Losses" field from the "Water Losses" field
A48: - | B48: Non Revenue Water - This is automatically calculated in the model by summing the "Real Losses" field, "Apparent Losses" field, "Unbilled Metered" field and the "Unbilled Unmetered" field
A49: - | B49: Service Connection Density - This is automatically calculated in the model by dividing the "Number of Active and Inactive Service Connections" field by the "Length of Mains" field
A50: - | B50: Non-revenue water as percent of water supplied - This is automatically calculated by the model by dividing the "Non Revenue Water" field by the "WATER SUPPLIED" field
A51: - | B51: Non-revenue water as percent of operating system - This is automatically calculated in the model by dividing the associated cost of each component of the "Non Revenue Water Field" by the "Total Annual Cost of Operating the System" field
A52: - | B52: Annual cost of Apparent Losses - This is automatically calculated in the model by multiplying the "Customer Retail Unit Cost" field by the "Apparent Losses" field
A53: - | B53: Annual cost of Real Losses - This is automatically calculated in the model by multiplying the "Variable Production Cost" by the "REAL LOSSES" field
A54: - | B54: Apparent Losses per service connection per day - This is automatically calculated in the model by dividing the "Apparent Losses" field by the "Number of Active and Inactive Service Connections" Field
A55: - | B55: Real Losses per service connection per day - This is automatically calculated in the model by dividing the "Real Losses" field by the "Number of Active and Inactive Service Connections" field. If the service connection density is less than 32 service connections per mile of main then the "Real Losses per length of main per day" field is used instead.
A56: - | B56: Real Losses per length of main per day - This is automatically calculated in the model by dividing the "Real Losses" by the "Length of Mains" field only if the service connection density is less than 32 service connections per mile of main (20 service connections per kilometer of main).
A57: - | B57: Real Losses per service connection per day per PSI of pressure - This is automatically calculated in the model by dividing the "Real Losses" field by "Number of Active and Inactive Service Connections" field and the "Average Operating Pressure" field.
A58: - | B58: Unavoidable Annual Real Losses (UARL) - This is automatically calculated based on the UARL formula, which is available in the Glossary and M36 Manual. The M36 Manual recommends the use of the UARL for systems with more than 3,000 service connections and a service connection density greater than 16 connections per mile (10 connections per kilometer of main).
A59: - | B59: Current Annual Real Losses (CARL) - This is the amount of real losses calculated in the "REAL LOSSES" field if the audit period is one full year.
A60: - | B60: Infrastructure Leakage Index (ILI) [CARL/UARL] - This is automatically calculated in the model by dividing the "Current Annual Real Losses (CARL)" field by the "Unavoidable Annual Real Losses (UARL)" field. The ILI is only calculated by the model if the audit period used is at least one full year.
A62: Performance Indicator Charts
A63: The Performance Indicator Charts page was designed to allow the user to compare their AWWA Free Water Audit Software data to a validated set of water audits from North America. The comparison data has been validated by the AWWA Water Loss Control Committee (WLCC) and is freely available on AWWA's website. For ease of use, the user's results are distinguished by the orange bar. It is important to note that not all of the available choices are Performance Indicators; some are System Characteristics defined by the users infrastructure (i.e. length of mains, number of service connections, etc). These have been distinguished in the title on the chart. Once the AWWA - Water Balance Results sheet has been filled in, the user can use the combo box to select which performance indicator, financial indicator or system characteristic to be shown on the chart.
A65: Real Losses Component Analysis
A66: The Real Losses Component Analysis sheet lets the user further analyze their system's real losses that were identified by the AWWA - Water Balance. In the Real Losses Component Analysis the real losses are further broken down by system component (Reservoirs, Mains and Appurtenances, and Service Connections) and the type of leakage (Background, Reported and Unreported). From this analysis the user will be able to determine the amount of recoverable real losses currently running undetected within the distribution system.
A67: - | B67: Summary: REAL LOSS COMPONENT ANALYSIS - This table summarizes the results of the entire Real Losses Component Analysis. Combined with the information on the AWWA - Water Balance Results, the Model will automatically calculate the 'Hidden Losses/Unreported Leakage Currently Running Undetected.' This represents the total amount of Unreported Leakage that could be recovered through a more aggressive water loss control program. Based on these results, the user can then work with the A-L-R Times, the Economic Intervention Frequency and Pressure Management sheets to explore the benefits of each real loss intervention strategy for reducing real leakage losses.
A68: - | B68: Step 1: First enter the capacity of all distribution system reservoirs and tanks in use during the audit period. In case the system input volume is based on raw water meters located upstream of the Water Treatment Plant (WTP) then also include the capacity of the WTP reservoirs. Next select a reservoir background leakage rate - either the default value provided by the model or a utility specific flow rate. If reservoirs and tanks are well maintained and the utility does not suspect any background leakage from the reservoirs and tanks then enter zero as the utility specific flow rate. In case a reservoir or tank was reported leaking or has overflowed, enter the estimated volume in cell G27 . If a proactive investigation/inspection of the system reservoirs and tanks has discovered a leaking reservoir or tank then enter the estimated annual volume lost in cell G28.
A69: - | B69: Step 2: The background leakage volume from mains and service connections will be automatically calculated after selecting one of the default Infrastructure Condition Factors (ICF) based on infrastructure age or after a utility specific ICF has been selected and entered in cell P43. If a utility specific ICF is not available at this time, it is strongly recommended to assess the utility specific ICF through one of the recommended approaches outlined in the AWWA M36 manual.
A70: - | B70: Step 3: Drinking water utilities supply water through underground piping systems. Such systems, sooner or later, will incur failures in the form of leaks and breaks (ruptures) in distribution piping. Failures are categorized into three broad types: failures that occur on the primary water main piping, failures on customer service connection piping, and failures on appurtenances attached to water mains; including fire hydrants, valves and air valves or taps. This section "REPORTED LEAKS AND BREAKS" of the model features a standardized calculation of the real loss volume stemming from failure events reported to the utility. Reported leaks and breaks (failure events) are defined as events that are brought to the attention of the water utility by the general public or other parties as a result of either water showing on the ground surface or other visible places, or of customer complaints. Follow Steps 3A,3B and 3C to calculate the real loss volume stemming from reported leaks and breaks.
A72: - | B72: Step 3A: Enter the total number of failures by main size that were reported to and repaired by the water utility during the audit period in cells C58 to C77. Next enter the total length of mains for each mains size group in cells D58 to D77 (Note: this information is not required for the real loss component analysis but serves to calculate failure frequencies by mains size). Next enter the average awareness duration for reported failure events by mains size in cells I58 to I77 (Awareness duration is the average time from the occurrence of the failure event until the water utility becomes aware of its existence). Next enter the average duration of locating and containing reported failure events by mains size in cells K58 to K77. Next select either the default average leak flow rate provided by the model in cells P58 to P77 or select and enter your own utility specific average leakage flow rates in cells Q58 to R77.
A73: - | B73: Step 3B: Enter the total number of failures by distribution system appurtenance type that were reported to and repaired by the water utility during the audit period in cells C86 to C89. Next enter the total number of appurtenances for each system appurtenance group in cells D86 to D89 (Note: this information is not required for the real loss component analysis but serves to calculate failure frequencies by appurtenance type). Next enter the average awareness duration for reported failure events by system appurtenance type in cells I86 to I89 (Awareness duration is the average time from the occurrence of the failure event until the water utility becomes aware of its existence). Next enter the average duration of locating and containing reported failure events by system appurtenance type in cells K86 to K89. Next select either the default average leak flow rate provided by the model in cells P86 to P89 or select and enter your own utility specific average leakage flow rates in cells Q86 to R89.
A74: - | B74: Step 3C: Enter the total number of failures by service connection size (<1" or >=1") that were reported to and repaired the water utility during the audit period in cells C98 to C99. Next enter the total number of service connections for each service connection size group in cells D98 to D99 (Note: this information is not required for the real loss component analysis but serves to calculate failure frequencies by service connection size group). Next enter the average awareness duration for reported failure events by service connection size group in cells I98 to I99 (Awareness duration is the average time from the occurrence of the failure event until the water utility becomes aware of its existence). Next enter the average duration of locating and containing reported failure events by service connection size group in cells K89 to K99. Next select either the default average leak flow rate provided by the model in cells P98 to P99 or select and enter your own utility specific average leakage flow rates in cells Q98 to R99.
A75: Did your utility carry out proactive leak detection during the audit period? If NO then go to the Component Analysis Summary Table at the top of this sheet - If YES then provide the data requested in STEP 4A, 4B , and 4C
A76: - | B76: Step 4: Drinking water utilities supply water through underground piping systems. Such systems,sooner or later, will incur failures in the form of leaks and breaks (ruptures) in distribution piping. Failures are categorized into three broad types: failures that occur on the primary water main piping , failures on customer service connection piping, and failures on appurtenances attached to water mains; including fire hydrants, valves and air valves or taps. This section "UNREPORTED FAILURES" of the model features a standardized calculation of the real loss volume stemming from failure events found through proactive leak detection programs. Unreported leaks and breaks (failure events) are defined as events that are usually hidden and are found only if a water utility has an active leakage control/leak detection program. Follow Steps 4A, 4B and 4C to calculate the real loss volume stemming from unreported leaks and breaks.
A77: - | B77: Step 4A: Enter the total failures by main size that were detected and repaired through proactive leak detection during the audit period in cells C117 to C136. Next enter the total length of mains for each mains size group in cells D117 to D136 (Note: this information is not required for the real loss component analysis but serves to calculate failure frequencies by mains size). Next enter the average awareness duration for unreported failure events by mains size in cells I117 to I136 (If the entire distribution system is surveyed once a year the average awareness time is 365 days ÷ 2 = 182.5 days, if the system is surveyed twice a year then the average awareness time is 365 days ÷ 4 = 91.25 days and so on). Next enter the average duration of locating and containing unreported failure events by mains size in cells K117 to K136. Next select either the default average leak flow rate provided by the model in cells P117 to P136 or select and enter your own utility specific average leakage flow rates in cells Q117 to R136.
A78: - | B78: Step 4B: Enter the total number of failures by distribution system appurtenance type that were detected and repaired through proactive leak detection during the audit period in cells C145 to C148. Next enter the total number of system appurtenances for each appurtenance type in cells D145 to D148 (Note: this information is not required for the real loss component analysis but serves to calculate failure frequencies by appurtenance type). Next enter the average awareness duration for unreported failure events by system appurtenance type in cells I145 to I148 (If the entire distribution system is surveyed once a year the average awareness time is 365 days ÷ 2 = 182.5 days, if the system is surveyed twice a year then the average awareness time is 365 days ÷ 4 = 91.25 days and so on). Next enter the average duration of locating and containing unreported failure events by system appurtenance type in cells K145 to K48. Next select either the default average leak flow rate provided by the model in cells P145 to P148 or select and enter your own utility specific average leakage flow rates in cells Q145 to R148.
A79: - | B79: Step 4C: Enter the total number of failures by service connection size (<1" or >=1") that were detected and repaired through proactive leak detection during the audit period in cells C157 to C158. Next enter the total number of service connections for each service connection size group in cells D157 to D158 (Note: this information is not required for the real loss component analysis but serves to calculate failure frequencies by service connection size group). Next enter the average awareness duration for unreported failure events by service connection size group in cells I157 to I158 (If the entire distribution system is surveyed once a year the average awareness time is 365 days ÷ 2 = 182.5 days, if the system is surveyed twice a year then the average awareness time is 365 days ÷ 4 = 91.25 days and so on). Next enter the average duration of locating and containing unreported failure events by service connection size group in cells K157 to K158. Next select either the default average leak flow rate provided by the model in cells P157 to P158 or select and enter your own utility specific average leakage flow rates in cells Q157 to R158.
A81: Real Loss Components Chart
A82: The results of the Real Losses Component Analysis are shown using a hybrid pie chart. The chart shows the percentage of real losses attributed to background leakage, reported failures, and unreported failures. The chart further examines unreported leakage by breaking it up into two components: 'Unreported Failures Identified through Existing Proactive Leak Detection Program' and 'Hidden Failures/Unreported Failures not Identified or Captured by Current Leakage Management Policy.'
A84: Failure Frequency Analysis
A85: The results of the mains and service line failure frequency analysis are shown using the two column charts. For the mains failure frequency, the user's data is compared to the average failure frequency in North America based on the literature review completed for the WaterRF 4372, Effective Organization and Component Analysis of Water Utility Leakage Data and the failure frequency for optimized distribution systems from the WaterRF project, Criteria for Optimized Distribution Systems. For the service line failure frequency, the user's data is compared to the tecnical minimum amount of service connection failures based on the Unavoidable Annual Real Losses (UARL) component for reported service line failures. If the user's service connection failure frequency is less than the technical minimum, the Model will show a warning that the service line failures during the audit period may be erroneous.
A87: A-L-R Times Options
A88: Use What IF option in the blue highlighted cells to evaluate potential savings in real losses stemming from reducing the average location and repair time for each of the three infrastructure components for both reported and unreported failure events. Enter a target average location and repair duration (in days) and the model will calculate the resulting savings in leakage volume as well as the corresponding monetary savings. Undertake further cost benefit analysis if this analysis has shown potentially cost effective options for leakage loss reductions by reducing the current average location and repair times.
A89: This sheet was not designed to provide a robust determination of the payback of reducing average location and repair times. It is a simplified cost calculation designed to stimulate further analysis if this initial review indicates potentially cost effective ways of reducing real losses.
A91: Economic Intervention Frequency
A92: The Economic Intervention Sheet was designed to establish a preliminary schedule for proactive leak detection surveys and the corresponding necessary budget. Once the results from consecutive leak surveys are available, the Rate of Rise of Unreported Leakage should be updated and the proactive leak detection schedule should be refined taking into consideration these findings.
A93: The majority of this sheet has already been filled is based upon previous inputs into the model. To complete the economic intervention frequency calculation, two inputs are necessary, Cost per mile of leak detection services and the average rate of rise of unreported leakage for the distribution system being analyzed with the model.
A94: - | B94: Cost of Comprehensive Leak Detection Survey: In general, cost per mile of leak detection can vary significantly depending on working conditions, whether it is being done in house or by a contractor and other factors. In general, detailed leak detection services, in which every service connection and distribution system appurtenance is sounded, costs between $250 - $500 per mile.
A95: - | B95: Average Rate of Rise of Unreported Leakage: The rate at which leakage increases with time under a policy of passive leakage control, at a specified average system pressure; or the rate at which leakage increases with time between period of active leakage control interventions, such as leak surveys, at a specified average system pressure. The rate of rise is not necessarily a linear variable as it can change quickly because of seasonal changing temperatures and other impacts. This can be assessed from water balances in successive years (in the case of passive leakage control), or by analysis of night flows and or repair records (in the case of active leakage control). It is usually expressed in volume per day in a year, or a volume per service connection per day in a year; or a volume per mile (or kilometer) of mains per day in a year. The AWWA M36 Manual recommends assessing The Average Rate of Rise of Unreported Leakage either by comparing water balance results of several consecutive years and calculating the Average Rate of Rise of Unreported Leakage based on the increase n Real Loss volume from year to year (if utility does not employ proactive leak detection), or by analysis of District Metered Area night flow data or repair records of leaks detected through proactive leak detection (if utility employs proactive leakage control). Further details about how to assess the Average Rate of Rise of Unreported Leakage are provided in the AWWA M36 Manual.
A97: Pressure Management Options
A98: The Pressure Management Options sheet was designed to provide a simple way to simulate the possible reduction in leakage losses as a result of system wide pressure reduction. The sheet uses the concept of Fixed and Variable Discharges concept to model the possible reduction of leakage losses by implementing a pressure reduction program. Using the system data including average system pressure, cost of water and the percentage of rigid pipes (e.g. cast iron, ductile iron, etc.) a dollar value can be determined based on the water savings from a reduction in average system pressure.
A99: In order to calculate a system specific Fixed and Variable Area Discharges (FAVAD) N1 value, the user must input the percentage of rigid (metallic) pipes in the distribution system. Further explanation of the FAVAD concept is available in the Glossary and AWWA M36 Manual. The model will then automatically calculate a 'System Specific N1' in cell E24. This value represents the sensitivity of the relationship between pressure and leakage in a users system. In general, systems with a large amount of non-rigid pipe will have a higher sensitivity to pressure and leakage than a system largely composed of rigid pipe based on the FAVAD concept principles.
A100: Next, the user should enter the proposed reduction in overall system pressure into cell D29 and the estimated cost to implement this pressure management policy to that level in cell D35. The model will then calculated the estimated reduction in real losses and the monetary value of this reduction in real losses. Based on the estimated cost to implement the pressure management policy, the model will calculate a simple payback period based on the monetary value of the reduction in real losses.
A101: This sheet was not designed to provide a robust determination of the payback of a pressure management program. It is a simplified cost calculation designed to stimulate further analysis if this initial review indicates potentially cost effective ways of reducing real losses.

Sheet Main Menu
B12: WaterRF 4372: Real Loss Component Analysis: A Tool for Economic Water Loss Control
B14: =IF('Start Page'!$Y$37="","",IF('Start Page'!$K$37="Partial Audit Period","Water Audit: "&'Start Page'!$D$26&", "&'Start Page'!$H$26&", "&'Start Page'!$K$26&", "&'Start Page'!$Y$37,"Water Audit: "&'Start Page'!$D$26&", "&'Start Page'!$H$26&", "&'Start Page'!$K$26&", "&YEAR('Start Page'!$Y$37))) -> 
B15: MAIN MENU
B16: Macros must be enabled to properly use the WaterRF 4372 Component Analysis Modeling Software
E18: Complete set of instuctions for the WaterRF Component Analysis Modeling Software
E21: Enter the audit period and select reporting units
E24: Summary of the water audit performance indicators and the results of the Real Losses Component Analysis
E27: Enter the required data from the AWWA WLCC Free Water Audit Software: Reporting Sheet to populate the Water Audit
E30: Select your desired water loss performance indicator to be displayed in comparison to a North American water utility data set
E33: Carry out a Real Losses Component Analysis using this sheet
E36: A chart summarizing the results in the Real Loss Component Analysis
E39: Comparison of your utility's mains and service line failure frequencies against industry averages and targets
E42: Use this sheet to evaluate if a reduction in location and repair times for reported and unreported leaks would provide an opportunity to reduce real losses
E45: Use this sheet to establish a preliminary schedule for proactive leak detection surveys
E48: Use this sheet to evaluate if pressure management and a reduction in average system pressure provides an opportunity to reduce real losses cost effectively
E51: Glossary of all terms used in the WaterRF 4372 Component Analysis Model
E54: License
B57: =TODAY() -> 2018-04-20 | K57: ©2014 Water Research Foundation. ALL RIGHTS RESERVED.

Sheet Start Page
B1: WaterRF 4372: Real Loss Component Analysis: A Tool for Economic Water Loss Control
B3: =IF($Y$37="","",IF($K$37="Partial Audit Period","Water Audit: "&$D$26&", "&$H$26&", "&$K$26&", "&$Y$37,"Water Audit: "&$D$26&", "&$H$26&", "&$K$26&", "&YEAR($Y$37))) -> 
B4: START PAGE
B5: Macros must be enabled to properly use the WaterRF 4372 Component Analysis Modeling Software
B6: PURPOSE: | C6: This spreadsheet based "Model" was designed to provide North American (NA) water utilities with a utility-tested software tool to undertake a leakage component analysis and to identify economic options for real loss reduction through improved speed and quality of leak repair, proactive leak detection and pressure management. This Model was also designed to assist NA water utilities in evaluating options for implementing efficient and sustainable leakage control programs. The models results should only be seen as a preliminary starting point for proactive management of Real Losses. The preliminary Real Loss control strategy needs to be refined as more results become available.
C10: The worksheets contained in this spreadsheet can be accessed by clicking on the tabs located at the bottom of the spreadsheet screen or by clicking the desired button in the Main Menu worksheet. Definitions can be accessed by directly clicking the term or navigating to the 'Glossary' tab.
B13: CELL COLOR CODING: | C13: Three cell colors have been used through out this spreadsheet based Model:
E15: Value to be entered by the user
E17: Value is automatically filled in/calculated by Model
E19: Recommended default value
Y20: Utility Name
Y21: =IF(D26="","",D26) -> 
D23: WATER AUDIT AND COMPONENT ANALYSIS DETAILS
D25: Utility | H25: State/Province | K25: Country
D28: System Description (e.g. Entire System, Zone A, etc.) | H28: Date of Data Entry | K28: Model User's Name (e.g. John Smith)
D31: Audit and Component Analysis Period Start Date
D33: Audit and Component Analysis Period End Date
K34: =IF(AND(ISBLANK(K31)=FALSE,ISBLANK(K33)=TRUE),"DEFAULT COMPONENT ANALYSIS DURATION SET TO 365 DAYS","") -> 
D35: Audit and Component Analysis Period Duration | K35: =IF(K33="",365,IF(K31="",365,K33-K31+1)) -> 365 | L35: days
Y36: 1
D37: Audit and Component Analysis Year | K37: =IF(K33="","",IF(K35<365,"Partial Audit Period",K33)) ->  | Y37: =IF(K37="","",K37) -> 
D39: Select Preferred Volumetric Units for AWWA Water Balance Results | X39: 1 | Y39: Million Gallons
X40: 2 | Y40: Megalitres (thousand cubic metres)
D41: Select Preferred Mains Length Units for AWWA Water Balance Results | X41: 3 | Y41: Acre-feet
Y42: 1
D43: Audit and Component Analysis Period Description: | X43: 1 | Y43: Miles
X44: 2 | Y44: Kilometers
D50: Audit and Component Analysis Period Produced By:
B60: =IF($H$29="","",$H$29) ->  | S60: ©2014 Water Research Foundation. ALL RIGHTS RESERVED.

Sheet Summary
A1: WaterRF 4372: Real Loss Component Analysis: A Tool for Economic Water Loss Control
A3: =IF('Start Page'!$Y$37="","",IF('Start Page'!$K$37="Partial Audit Period","Water Audit: "&'Start Page'!$D$26&", "&'Start Page'!$H$26&", "&'Start Page'!$K$26&", "&'Start Page'!$Y$37,"Water Audit: "&'Start Page'!$D$26&", "&'Start Page'!$H$26&", "&'Start Page'!$K$26&", "&YEAR('Start Page'!$Y$37))) -> 
A4: WaterRF 4372 COMPONENT ANALYSIS MODEL SUMMARY
B6: As the input data is filled into the model, this sheet will populate with the results and recommendations from the Real Losses Component Analysis, A-L-R Times, Economic Intervention and Pressure Management tabs. The performance indicators from the AWWA Free Water Audit Software have been added to show a brief review of the performance of the system being analyzed
B9: WATER AUDIT PERFORMANCE INDICATORS
B10: Financial
B11: Non-revenue water as percent by volume of water supplied: | D11: ='AWWA-Water Balance Data Transf.'!D51 -> 
B12: Non-revenue water as percent by cost of operating system: | D12: ='AWWA-Water Balance Data Transf.'!D52 -> 
B13: Annual cost of Apparent Losses: | D13: ='AWWA-Water Balance Data Transf.'!D53 -> 
B14: Annual cost of Real Losses: | D14: ='AWWA-Water Balance Data Transf.'!D54 -> 
B16: Operational Efficiency
B17: Apparent Losses per service connection per day: | D17: ='AWWA-Water Balance Data Transf.'!D57 ->  | E17: =IF('Start Page'!$Y$36=1,"gal/service conn/day",IF('Start Page'!$Y$36=2,"litres/service conn/day", IF('Start Page'!$Y$36=3,"gal/service conn/day"))) -> gal/service conn/day
B18: Real Losses per service connection per day*: | D18: ='AWWA-Water Balance Data Transf.'!D58 ->  | E18: =IF('Start Page'!$Y$36=1,"gal/service conn/day",IF('Start Page'!$Y$36=2,"litres/service conn/day", IF('Start Page'!$Y$36=3,"gal/service conn/day"))) -> gal/service conn/day
B19: Real Losses per length of main per day: | D19: ='AWWA-Water Balance Data Transf.'!D59 ->  | E19: =INDEX('Unit Conversion Sheet'!$C$36:$D$38,MATCH('Start Page'!$Y$36,'Unit Conversion Sheet'!$A$36:$A$38,0),MATCH('Start Page'!$Y$42,'Unit Conversion Sheet'!$C$35:$D$35,0)) -> gal/mi/day
B20: ="Real Losses per service connection per day per "&$F$47& " pressure:" -> Real Losses per service connection per day per PSI pressure: | D20: ='AWWA-Water Balance Data Transf.'!D60 -> N/A | E20: =IF('Start Page'!$Y$36=1,"gal/service conn/day/psi",IF('Start Page'!$Y$36=2,"litres/service conn/day/mH", IF('Start Page'!$Y$36=3,"gal/service conn/day/psi"))) -> gal/service conn/day/psi
B21: Unavoidable Annual Real Losses (UARL): | D21: ='AWWA-Water Balance Data Transf.'!D61 -> N/A | E21: =IF('Start Page'!$Y$36=1,"MG/Yr",IF('Start Page'!$Y$36=2,"ML/Yr", IF('Start Page'!$Y$36=3,"Acre-feet/Yr"))) -> MG/Yr
B22: Current Annual Real Losses (CARL): | D22: ='AWWA-Water Balance Data Transf.'!D62 ->  | E22: =IF('Start Page'!$Y$36=1,"MG/Yr",IF('Start Page'!$Y$36=2,"ML/Yr", IF('Start Page'!$Y$36=3,"Acre-feet/Yr"))) -> MG/Yr
B23: Infrastructure Leakage Index (ILI) [CARL/UARL]: | D23: ='AWWA-Water Balance Data Transf.'!D63 -> 
B24: =IF(ISERROR(1/D21),"",IF(D22/D21>1,"",IF((D22/D21)<1,"PLEASE CHEK DATA ENTRY - ILI SHOULD BE >1 - ALL OTHER PERFORMANCE INDICATORS ARE ALSO HIGHLY QUESTIONABLE"))) -> 
B26: REAL LOSS COMPONENT ANALYSIS RESULTS
B27: System Component | C27: Background Leakage | D27: Reported Failures | E27: Unreported Failures | F27: Total
C28: ='Real Losses Component Analysis'!C11 -> (MG) | D28: ='Real Losses Component Analysis'!D11 -> (MG) | E28: ='Real Losses Component Analysis'!E11 -> (MG) | F28: ='Real Losses Component Analysis'!F11 -> (MG)
B29: ='Real Losses Component Analysis'!B12 -> Reservoirs | C29: ='Real Losses Component Analysis'!C12 -> 0 | D29: ='Real Losses Component Analysis'!D12 -> 0 | E29: ='Real Losses Component Analysis'!E12 -> 0 | F29: ='Real Losses Component Analysis'!F12 -> 0
B30: ='Real Losses Component Analysis'!B13 -> Mains and Appurtenances | C30: ='Real Losses Component Analysis'!C13 -> 0 | D30: ='Real Losses Component Analysis'!D13 -> 0 | E30: ='Real Losses Component Analysis'!E13 -> 0 | F30: ='Real Losses Component Analysis'!F13 -> 0
B31: ='Real Losses Component Analysis'!B14 -> Service Connections | C31: ='Real Losses Component Analysis'!C14 -> 0 | D31: ='Real Losses Component Analysis'!D14 -> 0 | E31: ='Real Losses Component Analysis'!E14 -> 0 | F31: ='Real Losses Component Analysis'!F14 -> 0
B32: ='Real Losses Component Analysis'!B15 -> Total Annual Real Loss | C32: ='Real Losses Component Analysis'!C15 -> 0 | D32: ='Real Losses Component Analysis'!D15 -> 0 | E32: ='Real Losses Component Analysis'!E15 -> 0 | F32: ='Real Losses Component Analysis'!F15 -> 0
B33: ='Real Losses Component Analysis'!B16 -> Real Losses as Calculated by Water Audit | F33: ='Real Losses Component Analysis'!F16 -> 0
B34: ='Real Losses Component Analysis'!B17 -> Hidden Losses/Unreported Leakage Currently Running Undetected | F34: ='Real Losses Component Analysis'!F17 -> 0
B36: AWARNESS, LOCATION AND REPAIR TIME REDUCTION RESULTS
D37: Reported Failures | E37: Unreported Failures
B38: Total Potential Savings if Location and Repair Duration is Reduced as Simulated on the A-L-R Times Options Sheet | D38: ='A-L-R Times Options'!E50 -> 0 | E38: ='A-L-R Times Options'!F50 -> 0 | F38: ='A-L-R Times Options'!G50 -> (MG)
B39: Total Potential Cost Savings if Location and Repair Duration is Reduced as Simulated on the A-L-R Times Options Sheet | D39: ='A-L-R Times Options'!E51 -> 0 | E39: ='A-L-R Times Options'!F51 -> 0 | F39: ='A-L-R Times Options'!G51 -> Per Year
B41: ECONOMIC INTERVENTION FREQUENCY FOR PROACTIVE LEAK DETECTION RESULTS
B42: Percentage of the System to be Surveyed per Year | E42: ='Economic Intervention Frequency'!D38 ->  | F42: ='Economic Intervention Frequency'!E38 -> %
B43: Average Annual Budget for Intervention (Proactive Leak Detection) | E43: ='Economic Intervention Frequency'!D40 ->  | F43: ='Economic Intervention Frequency'!E40 -> $/year
B44: Potentially Recoverable Leakage | E44: ='Economic Intervention Frequency'!D46 ->  | F44: ='Economic Intervention Frequency'!E46 -> MG/year
B46: ALTERNATIVE PRESSURE MANAGEMENT SCENARIO RESULTS
B47: User-Inputted Reduction in Average System Pressure | E47: ='Pressure Management Options'!D29 -> 0 | F47: ='AWWA-Water Balance Data Transf.'!E41 -> PSI
B48: Assumed % Reduction in Average System Pressure | E48: ='Pressure Management Options'!D30 -> 
B49: Estimated Real Loss Reduction from Pressure Management Program | E49: ='Pressure Management Options'!D31 ->  | F49: MG/Yr
B50: Financial Savings from Pressure Management Program | E50: ='Pressure Management Options'!D32 ->  | F50: $/Year
B53: User-Estimated Cost of Pressure Reduction | E53: ='Pressure Management Options'!D35 -> 0 | F53: $
B54: Resulting Pressure Management Program Payback Period | E54: ='Pressure Management Options'!D36 ->  | F54: Years
A57: =IF('Start Page'!$H$29="","",'Start Page'!$H$29) ->  | G57: ©2014 Water Research Foundation. ALL RIGHTS RESERVED.

Sheet AWWA-Water Balance Data Transf.
B1: WaterRF 4372: Real Loss Component Analysis: A Tool for Economic Water Loss Control
B3: =IF('Start Page'!$Y$37="","",IF('Start Page'!$K$37="Partial Audit Period","Water Audit: "&'Start Page'!$D$26&", "&'Start Page'!$H$26&", "&'Start Page'!$K$26&", "&'Start Page'!$Y$37,"Water Audit: "&'Start Page'!$D$26&", "&'Start Page'!$H$26&", "&'Start Page'!$K$26&", "&YEAR('Start Page'!$Y$37))) -> 
B4: AWWA - WATER BALANCE DATA TRANSFER
B6: Instructions: | C6: Please enter the data in the blue cells below based on the AWWA WLCC Free Water Audit Software: Reporting Sheet.
C7: The white cells will be populated automatically. Note: all blue cells need to be populated - if no volume was registered enter zero.
B8: Reporting Units: | C8: =IF('Start Page'!$Y$36=1,"MG",IF('Start Page'!$Y$36=2,"ML", IF('Start Page'!$Y$36=3,"Acre-feet"))) -> MG | X8: UARL
X9: Miles | AA9: km
W10: Components | X10: MG/yr | Y10: ML/yr | Z10: AF/yr | AA10: MG/yr | AB10: ML/yr | AC10: AF/yr
B11: WATER SUPPLIED | W11: Mains | X11: 5.41 | Y11: =AB11*'Unit Conversion Sheet'!$C$7 -> 28.96812 | Z11: =X11 -> 5.41 | AA11: =X11/'Unit Conversion Sheet'!$D$65 -> 3.361626505 | AB11: 18 | AC11: =AA11 -> 3.361626505
W12: Service Con | X12: 0.15 | Y12: 0.8 | Z12: =X12 -> 0.15 | AA12: =X12 -> 0.15 | AB12: 0.8 | AC12: =AA12 -> 0.15
B13: WATER SUPPLIED: | D13: 0 | E13: =IF('Start Page'!$Y$36=1,"MG/Yr",IF('Start Page'!$Y$36=2,"ML/Yr", IF('Start Page'!$Y$36=3,"Acre-feet/Yr"))) -> MG/Yr | P13: =COUNTBLANK(D13) -> 0 | Q13: Total System Input Count Blank | W13: Curb Stop | X13: 7.5 | Y13: =AB13*'Unit Conversion Sheet'!$C$7 -> 40.2335 | Z13: =X13 -> 7.5 | AA13: =X13/'Unit Conversion Sheet'!$D$65 -> 4.660295525 | AB13: 25 | AC13: =AA13 -> 4.660295525
W14: UARL | X14: ='Start Page'!K35*(X11*$D$37+X12*$D$38+X13*$D$40*$D$38/5280)*$D$41/10^6 -> 0 | Y14: ='Start Page'!K35*(Y11*$D$37+Y12*$D$38+Y13*$D$40*$D$38/5280)*$D$41/10^6 -> 0 | Z14: ='Start Page'!K35*'Unit Conversion Sheet'!$E$17*(Z11*$D$37+Z12*$D$38+Z13*$D$40*$D$38/5280)*$D$41/10^6 -> 0 | AA14: ='Start Page'!K35*(AA11*$D$37+AA12*$D$38+AA13*$D$40*$D$38/1000)*$D$41/10^6 -> 0 | AB14: ='Start Page'!K35*(AB11*$D$37+AB12*$D$38+AB13*$D$40*$D$38/1000)*$D$41/10^6 -> 0 | AC14: ='Start Page'!K35*'Unit Conversion Sheet'!D17*(AC11*$D$37+AC12*$D$38+AC13*$D$40*$D$38/1000)*$D$41/10^6 -> 0
B16: AUTHORIZED CONSUMPTION
B18: Billed Metered: | D18: 0 | E18: =$E$13 -> MG/Yr | P18: =COUNTBLANK(D18) -> 0 | Q18: Billed Metered Count Blank
B19: Billed Unmetered: | D19: 0 | E19: =$E$13 -> MG/Yr | P19: =COUNTBLANK(D19) -> 0 | Q19: Billed Unmetered Count Blank
B20: Unbilled Metered: | D20: 0 | E20: =$E$13 -> MG/Yr | P20: =COUNTBLANK(D20) -> 0 | Q20: Billed Metered Count Blank
B21: Unbilled Unmetered: | D21: 0 | E21: =$E$13 -> MG/Yr | P21: =COUNTBLANK(D21) -> 0 | Q21: Unbilled Unmetered Count Blank
F22: =IF(D23="","",IF(D23<=D13,"",IF(D23>D13,"PLEASE CHECK DATA ENTRY - AUTHORIZED CONSUMPTION MUST BE LESS THAN SYSTEM INPUT VOLUME",""))) ->  | P22: =COUNTBLANK(D22) -> 1
B23: AUTHORIZED CONSUMPTION: | D23: =IF(P23>0,"",SUM(D18:D21)) -> 0 | E23: =$E$13 -> MG/Yr | P23: =COUNTBLANK(D18:D21) -> 0 | Q23: Authorized Consumption Count Blank
B26: WATER LOSSES: | D26: =IF(SUM(P23,P13)>0,"",D13-D23) -> 0 | E26: =$E$13 -> MG/Yr | F26: =IF(D26>=0,"",IF(D26<0,"PLEASE CHEK DATA ENTRY - WATER LOSSES NEED TO BE >0","")) ->  | P26: =COUNTBLANK(D26) -> 0 | Q26: Water Losses Count Blank
B28: APPARENT LOSSES: | E28: =$E$13 -> MG/Yr | F28: =IF(D28>=0,"",IF(D28<=0,"PLEASE CHEK DATA ENTRY - APPARENT LOSSES NEED TO BE >0")) ->  | P28: =COUNTBLANK(D28) -> 1 | Q28: Apparent Losses Count Blank
B30: REAL LOSSES: | D30: =IF(SUM(P28,P26)>0,"",D26-D28) ->  | E30: =$E$13 -> MG/Yr | F30: =IF(D30>0,"",IF(D30<=0,"PLEASE CHECK DATA ENTRY - REAL LOSSES NEED TO BE >0")) ->  | P30: =COUNTBLANK(D30) -> 1 | Q30: Real Losses Count Blank
U31: =INDEX('Unit Conversion Sheet'!$C$11:$E$13,MATCH('Start Page'!$Y$36,'Unit Conversion Sheet'!$A$11:$A$13,0),MATCH('AWWA-Water Balance Data Transf.'!$V$43,'Unit Conversion Sheet'!$C$9:$E$9,0)) -> 1000
B32: NON REVENUE WATER: | D32: =IF(SUM(P20,P21,P28,P30)>0,"",D20+D21+D28+D30) ->  | E32: =$E$13 -> MG/Yr | F32: =IF(D32>0,"",IF(D32<=0,"PLEASE CHECK DATA ENTRY - NON REVENUE WATER NEEDS TO BE >0")) ->  | P32: =COUNTBLANK(D32) -> 1 | Q32: NRW Count Blank
B35: SYSTEM DATA
B37: Length of mains: | D37: 0 | E37: =IF('Start Page'!$Y$42=1,"miles",IF('Start Page'!$Y$42=2,"kilometers")) -> miles | P37: =COUNTBLANK(D37) -> 0 | Q37: Length of mains Count Blank
B38: Number of active AND inactive service connections: | D38: 0 | E38: service connections | P38: =COUNTBLANK(D38) -> 0 | Q38: Service Connections Count Blank
B39: Service connection density: | D39: =IF(ISERROR(IF(P39>0,"",SUM(D38:D38)/D37)),"",IF(P39>0,"",SUM(D38:D38)/D37)) ->  | E39: =IF('Start Page'!$Y$42=1,"conn./mile main",IF('Start Page'!$Y$42=2,"conn./kilometer main")) -> conn./mile main | P39: =COUNTBLANK(D37:D38) -> 0 | Q39: Connection density Count Blank
B40: Average length of customer service line*: | D40: 0 | E40: =IF('Start Page'!$Y$42=1,"feet",IF('Start Page'!$Y$42=2,"metres")) -> feet | P40: =COUNTBLANK(D40) -> 0 | Q40: Avg service length Count Blank
B41: Average operating pressure: | D41: 0 | E41: =IF('Start Page'!$Y$36=1,"PSI",IF('Start Page'!$Y$36=2,"metres (head)", IF('Start Page'!$Y$36=3,"PSI"))) -> PSI | P41: =COUNTBLANK(D41) -> 0 | Q41: Avg operating pressure Count Blank | V41: 3
D42: *Note: pipe length between curb stop and customer meter or point of first use for un-metered service connections
B43: COST DATA | U43: Control Index | V43: 2
B45: Total annual cost of operating the water system: | E45: =IF('Start Page'!$Y$36=1,"$/Year",IF('Start Page'!$Y$36=2,"$/Year", IF('Start Page'!$Y$36=3,"$/Year"))) -> $/Year | P45: =COUNTBLANK(D45) -> 1 | Q45: Annual Cost Count Blank | T45: 1 | U45: $/100 cubic feet (ccf)
B46: Customer retail unit cost (applied to Apparent Losses): | D46: 0 | P46: =COUNTBLANK(D46) -> 0 | Q46: Customer Retail Count Blank | T46: 2 | U46: $/1,000 gallons (US)
B47: Variable Production cost (applied to Real Losses): | D47: 0 | E47: =IF('Start Page'!$Y$36=1,"$/MG",IF('Start Page'!$Y$36=2,"$/ML", IF('Start Page'!$Y$36=3,"$/Acre-ft"))) -> $/MG | P47: =COUNTBLANK(D47) -> 0 | Q47: Variable Production Count Blank | T47: 3 | U47: $/1,000 litres
B49: PERFORMANCE INDICATORS
B50: Financial
B51: Non-revenue water as percent by volume of water supplied: | D51: =IF(ISERROR(IF(SUM(P32,P13)>0,"",D32/D13)),"",IF(SUM(P32,P13)>0,"",D32/D13)) -> 
B52: Non-revenue water as percent by cost of operating system: | D52: =IF(ISERROR(IF(SUM(P45:P47,P30,P28,P21,P20)>0,"",IF(ISERROR(1/D45),"",(((D20+D21+D30)*D47)+(D28*D46*INDEX('Unit Conversion Sheet'!$C$11:$E$13,MATCH('Start Page'!$Y$36,'Unit Conversion Sheet'!$A$11:$A$13,0),MATCH('AWWA-Water Balance Data Transf.'!$V$43,'Unit Conversion Sheet'!$C$9:$E$9,0))))/'AWWA-Water Balance Data Transf.'!$D$45))),"",IF(SUM(P45:P47,P30,P28,P21,P20)>0,"",IF(ISERROR(1/D45),"",(((D20+D21+D30)*D47)+(D28*D46*INDEX('Unit Conversion Sheet'!$C$11:$E$13,MATCH('Start Page'!$Y$36,'Unit Conversion Sheet'!$A$11:$A$13,0),MATCH('AWWA-Water Balance Data Transf.'!$V$43,'Unit Conversion Sheet'!$C$9:$E$9,0))))/'AWWA-Water Balance Data Transf.'!$D$45))) -> 
B53: Annual cost of Apparent Losses: | D53: =IF(ISERROR(IF(SUM(P46,P28)>0,"",D28*D46*INDEX('Unit Conversion Sheet'!$C$11:$E$13,MATCH('Start Page'!$Y$36,'Unit Conversion Sheet'!$A$11:$A$13,0),MATCH('AWWA-Water Balance Data Transf.'!$V$43,'Unit Conversion Sheet'!$C$9:$E$9,0)))),"",IF(SUM(P46,P28)>0,"",D28*D46*INDEX('Unit Conversion Sheet'!$C$11:$E$13,MATCH('Start Page'!$Y$36,'Unit Conversion Sheet'!$A$11:$A$13,0),MATCH('AWWA-Water Balance Data Transf.'!$V$43,'Unit Conversion Sheet'!$C$9:$E$9,0)))) -> 
B54: Annual cost of Real Losses: | D54: =IF(ISERROR(IF(SUM(P47,P30)>0,"",D30*D47)),"",IF(SUM(P47,P30)>0,"",D30*D47)) -> 
B56: Operational Efficiency
B57: Apparent Losses per service connection per day: | D57: =IF(ISERROR(IF(SUM(P38,P28)>0,"",IF(D38="","",$D$28*CHOOSE('Start Page'!$Y$36,'Unit Conversion Sheet'!$D$24,'Unit Conversion Sheet'!$D$25,'Unit Conversion Sheet'!$D$26)/('Start Page'!$K$35*$D$38)))),"",IF(D28="","",IF(D38="","",$D$28*CHOOSE('Start Page'!$Y$36,'Unit Conversion Sheet'!$D$24,'Unit Conversion Sheet'!$D$25,'Unit Conversion Sheet'!$D$26)/('Start Page'!$K$35*$D$38)))) ->  | E57: =IF('Start Page'!$Y$36=1,"gal/service conn/day",IF('Start Page'!$Y$36=2,"litres/service conn/day", IF('Start Page'!$Y$36=3,"gal/service conn/day"))) -> gal/service conn/day | P57: =COUNTBLANK(D57) -> 1 | Q57: Ap Loss/serv con./day Count Blank
B58: Real Losses per service connection per day*: | D58: =IF(ISERROR(IF(SUM(P39,P38,P30)>0,"",IF(D39<=32,"N/A",$D$30*CHOOSE('Start Page'!$Y$36,'Unit Conversion Sheet'!$D$24,'Unit Conversion Sheet'!$D$25,'Unit Conversion Sheet'!$D$26)/('Start Page'!$K$35*$D$38)))),"",IF(D39="","",IF(D39<=32,"N/A",$D$30*CHOOSE('Start Page'!$Y$36,'Unit Conversion Sheet'!$D$24,'Unit Conversion Sheet'!$D$25,'Unit Conversion Sheet'!$D$26)/('Start Page'!$K$35*$D$38)))) ->  | E58: =IF('Start Page'!$Y$36=1,"gal/service conn/day",IF('Start Page'!$Y$36=2,"litres/service conn/day", IF('Start Page'!$Y$36=3,"gal/service conn/day"))) -> gal/service conn/day | P58: =COUNTBLANK(D58) -> 1 | Q58: RL/serv con/day Count Blank
B59: Real Losses per length of main per day: | D59: =IF(ISERROR(IF(SUM(P39,P30)>0,"",IF(D39>=32,"N/A",$D$30*CHOOSE('Start Page'!$Y$36,'Unit Conversion Sheet'!$D$24,'Unit Conversion Sheet'!$D$25,'Unit Conversion Sheet'!$D$26)/('Start Page'!$K$35*$D$37)))),"",IF(SUM(P39,P30)>0,"",IF(D39>=32,"N/A",$D$30*CHOOSE('Start Page'!$Y$36,'Unit Conversion Sheet'!$D$24,'Unit Conversion Sheet'!$D$25,'Unit Conversion Sheet'!$D$26)/('Start Page'!$K$35*$D$37)))) ->  | E59: =INDEX('Unit Conversion Sheet'!$C$36:$D$38,MATCH('Start Page'!$Y$36,'Unit Conversion Sheet'!$A$36:$A$38,0),MATCH('Start Page'!$Y$42,'Unit Conversion Sheet'!$C$35:$D$35,0)) -> gal/mi/day | P59: =COUNTBLANK(D59) -> 1 | Q59: RL/length main/day Count Blank
B60: ="Real Losses per service connection per day per "&$E$41& " pressure:" -> Real Losses per service connection per day per PSI pressure: | D60: =IF(SUM(P58,P41)>0,"N/A",IF(ISERROR(D58/D41),"N/A",D58/D41)) -> N/A | E60: =IF('Start Page'!$Y$36=1,"gal/service conn/day/psi",IF('Start Page'!$Y$36=2,"litres/service conn/day/mH", IF('Start Page'!$Y$36=3,"gal/service conn/day/psi"))) -> gal/service conn/day/psi | P60: =COUNTBLANK(D60) -> 0 | Q60: RL/serv con/day/psi Count Blank
B61: Unavoidable Annual Real Losses (UARL): | D61: =IF('Start Page'!K35<365,"N/A",IF($D$38="","",IF(OR($D$38<3000,D39<16),"N/A",IF(ISERROR(IF(AND('Start Page'!$Y$36=1,'Start Page'!$Y$42=1),X14,IF(AND('Start Page'!$Y$36=2,'Start Page'!$Y$42=1),Y14,IF(AND('Start Page'!$Y$36=3,'Start Page'!$Y$42=1),Z14,IF(AND('Start Page'!$Y$36=1,'Start Page'!$Y$42=2),AA14,IF(AND('Start Page'!$Y$36=2,'Start Page'!$Y$42=2),AB14,IF(AND('Start Page'!$Y$36=3,'Start Page'!$Y$42=2),AC14,""))))))),"",IF(AND('Start Page'!$Y$36=1,'Start Page'!$Y$42=1),X14,IF(AND('Start Page'!$Y$36=2,'Start Page'!$Y$42=1),Y14,IF(AND('Start Page'!$Y$36=3,'Start Page'!$Y$42=1),Z14,IF(AND('Start Page'!$Y$36=1,'Start Page'!$Y$42=2),AA14,IF(AND('Start Page'!$Y$36=2,'Start Page'!$Y$42=2),AB14,IF(AND('Start Page'!$Y$36=3,'Start Page'!$Y$42=2),AC14,"")))))))))) -> N/A | E61: =IF('Start Page'!$Y$36=1,"MG/Yr",IF('Start Page'!$Y$36=2,"ML/Yr", IF('Start Page'!$Y$36=3,"Acre-feet/Yr"))) -> MG/Yr | F61: =IF(D13=0,"",IF(D13="","",IF('Start Page'!K35<365,"UARL, CARL, & ILI ARE NOT CALCULATED BECAUSE UARL AND CARL CALCULATIONS SHOULD BE BASED ON AT LEAST A FULL AUDIT YEAR (365 days)",IF(AND(D61="N/A",OR(D39<16,D38<3000)), "UARL CANNOT BE CALCULATED: NUMBER OF SERVICE CONNECTIONS, LENGTH OF MAINS OR AVERAGE PRESSURE MAY BE TOO SMALL","")))) ->  | P61: =COUNTBLANK(D37:D41) -> 1 | Q61: UARL Count Blank
B62: Current Annual Real Losses (CARL): | D62: =IF('Start Page'!K35<365,"N/A",IF(P62>0,"",D30)) ->  | E62: =IF('Start Page'!$Y$36=1,"MG/Yr",IF('Start Page'!$Y$36=2,"ML/Yr", IF('Start Page'!$Y$36=3,"Acre-feet/Yr"))) -> MG/Yr | P62: =COUNTBLANK(D30) -> 1 | Q62: CARL Count Blank
B63: Infrastructure Leakage Index (ILI) [CARL/UARL]: | D63: =IF(AND(D61="N/A",D62="N/A"),"N/A",IF(ISERROR(IF(P63>0,"",D62/D61)),"",IF(P63>0,"",D62/D61))) ->  | P63: =COUNTBLANK(D61:D62) -> 1 | Q63: ILI Count Blank
D64: =IF(ISERROR(1/D61),"",IF(D62/D61>1,"",IF((D62/D61)<1,"PLEASE CHEK DATA ENTRY - ILI SHOULD BE >1 - ALL OTHER PERFORMANCE INDICATORS ARE ALSO QUESTIONABLE"))) -> 
B66: AWWA Water Audit Data Validity Score:
D67: Please enter the Data Validity Score calculated by the AWWA Free Water Audit Software
B69: Note: | D69: If the data validity of your AWWA Water Audit is less than 51 it is recommended to improve the data validity of your AWWA Water Audit data before any of the results of the following economic analysis are considered for implementation.
B74: =IF('Start Page'!$H$29="","",'Start Page'!$H$29) ->  | K74: ©2014 Water Research Foundation. ALL RIGHTS RESERVED.

Sheet Performance Indicator Charts
B1: WaterRF 4372: Real Loss Component Analysis: A Tool for Economic Water Loss Control
B3: =IF('Start Page'!$Y$37="","",IF('Start Page'!$K$37="Partial Audit Period","Water Audit: "&'Start Page'!$D$26&", "&'Start Page'!$H$26&", "&'Start Page'!$K$26&", "&'Start Page'!$Y$37,"Water Audit: "&'Start Page'!$D$26&", "&'Start Page'!$H$26&", "&'Start Page'!$K$26&", "&YEAR('Start Page'!$Y$37))) -> 
B4: PERFORMANCE INDICATOR COMPARISON
B6: Instructions: | C6: Please select a performance indicator from the drop-down box to compare your utility's performance against the AWWA North American Validated Water Audit Data for 2012*. The performance indicator graph also displays the 25th, 50th and 75th percentile of the performance indicators data set.
B8: Utility Name: | C8: ='Start Page'!Y21 ->  | P8: Combo Reference -> | Q8: 2
B10: Performance Indicator:
Q12: Chart Title | R12: =CONCATENATE(C8,": ",R44) -> : Performance Indicator: Non-revenue Water as Percent by Cost of Operating System (%) | T12: Combo Headings
P13: Chart Data Source | T13: =Y13 -> Performance Indicator: Non-revenue Water as Percent by Volume of Water Supplied (%) | Y13: Performance Indicator: Non-revenue Water as Percent by Volume of Water Supplied (%)
T14: =Y43 -> Performance Indicator: Non-revenue Water as Percent by Cost of Operating System (%) | Y14: Utility | Z14: Original Values | AA14: Chart Values | AB14: Percentiles
P15: Rank | Q15: =CHOOSE(Q8,Y$44,Y$74,Y$103,Y$133,Y$163,Y$222,Y$252,Y$282,Y$312) -> Utility | R15: =CHOOSE($Q$8,$Y$13,$Y$43,$Y$73,$Y$102,$Y$132,$Y$162,$Y$192,$Y$221,$Y$251,$Y$281,$Y$311) -> Performance Indicator: Non-revenue Water as Percent by Cost of Operating System (%) | S15: Percentiles | T15: =Y73 -> Financial Indicator: Annual cost of Apparent Losses ($) | Y15: ='Data 2012'!$D$6 -> GCWW | Z15: ='Data 2012'!$D$49 -> 0.2006456217 | AA15: =IF(ISERROR(Z15),"",Z15) -> 0.2006456217 | AB15: 0.25 | AC15: =PERCENTILE(AA15:AA41,AB15) -> 0.1131769647
P16: =RANK(R16,$R$16:$R$42) -> 12 | Q16: =CHOOSE($Q$8,$Y15,$Y45,$Y75,$Y104,$Y134,$Y164,$Y193,$Y223,$Y253,$Y283,$Y313) -> GCWW | R16: =CHOOSE(Q$8,$AA15,$AA45,$AA75,$AA104,$AA134,$AA164,$AA193,$AA223,$AA253,$AA283,$AA313) -> 0.07479818971 | S16: =CHOOSE(Q$8,$AC15,$AC45,$AC75,$AC104,$AC134,$AC164,$AC193,$AC223,$AC253,$AC283,$AC313) -> 0.03559781484 | T16: =Y102 -> Financial Indicator: Annual Cost of Real Losses ($) | Y16: ='Data 2012'!$E$6 -> SMW | Z16: ='Data 2012'!$E$49 -> 0.09843092231 | AA16: =IF(ISERROR(Z16),"",Z16) -> 0.09843092231 | AB16: 0.5 | AC16: =PERCENTILE(AA16:AA42,AB16) -> 0.1354048816
P17: 10 | Q17: SMW | R17: 0.1034360973 | S17: =CHOOSE(Q$8,$AC16,$AC46,$AC76,$AC105,$AC135,$AC165,$AC194,$AC224,$AC254,$AC284,$AC314) -> 0.06682617326 | T17: =Y132 -> Performance Indicator: Apparent Losses per Service Connection per Day [gal/service con./day] | Y17: ='Data 2012'!$F$6 -> ABCWUA | Z17: ='Data 2012'!$F$49 -> 0.1051180239 | AA17: 0.1051180239 | AB17: 0.75 | AC17: 0.2509256948
P18: 3 | Q18: ABCWUA | R18: 0.1834688547 | S18: 0.126519946 | T18: =Y162 -> Performance Indicator: Real Losses per Service Connection per Day [gal/service con./day] | Y18: ='Data 2012'!$G$6 -> AquaWSC | Z18: ='Data 2012'!$G$49 -> 0.1919938703 | AA18: 0.1919938703
P19: 19 | Q19: AquaWSC | R19: 0.03742960864 | T19: =Y192 -> Performance Indicator: Real Losses per length of mains per day [gal/mi/day] | Y19: ='Data 2012'!$H$6 -> AW | Z19: ='Data 2012'!$H$49 -> 0.110316368 | AA19: 0.110316368
P20: 24 | Q20: AW | R20: 0.03010877342 | T20: =Y221 -> Performance Indicator: Real Losses per Service Connections per PSI [gal/service con./day/PSI] | Y20: ='Data 2012'!$I$6 -> BUD | Z20: ='Data 2012'!$I$49 -> 0.3012484079 | AA20: 0.3012484079
P21: 13 | Q21: BUD | R21: 0.0738488774 | T21: =Y251 -> System Characteristic: Unavoidable Annual Real Losses [MG/Yr] | Y21: ='Data 2012'!$J$6 -> BWWB | Z21: ='Data 2012'!$J$49 -> 0.2898826198 | AA21: 0.2898826198
P22: 11 | Q22: BWWB | R22: 0.08012809816 | T22: =Y281 -> Performance Indicator: Current Annual Real Losses [MG/Yr] | Y22: ='Data 2012'!$K$6 -> CW | Z22: ='Data 2012'!$K$49 -> 0.1300832917 | AA22: 0.1300832917
P23: 21 | Q23: CW | R23: 0.03517592255 | T23: =Y311 -> Performance Indicator: Infrastructure Leakage Index (ILI) [CARL/UARL] | Y23: ='Data 2012'!$L$6 -> CCWSA | Z23: ='Data 2012'!$L$49 -> 0.1354048816 | AA23: 0.1354048816
P24: 23 | Q24: CCWSA | R24: 0.03104518632 | Y24: ='Data 2012'!$M$6 -> CCWS | Z24: ='Data 2012'!$M$49 -> 0.08040162962 | AA24: 0.08040162962
P25: 16 | Q25: CCWS | R25: 0.06046706878 | Y25: ='Data 2012'!$N$6 -> CBW | Z25: ='Data 2012'!$N$49 -> 0.2379400532 | AA25: 0.2379400532
P26: 4 | Q26: CBW | R26: 0.1731120987 | Y26: ='Data 2012'!$O$6 -> DUTIL | Z26: ='Data 2012'!$O$49 -> 0.1344390811 | AA26: 0.1344390811
P27: 6 | Q27: DUTIL | R27: 0.1568100245 | Y27: ='Data 2012'!$P$6 -> DCWATER | Z27: ='Data 2012'!$P$49 -> 0.2267668188 | AA27: 0.2267668188
P28: 2 | Q28: DCWATER | R28: 0.2232320532 | Y28: ='Data 2012'!$Q$6 -> HRWC | Z28: ='Data 2012'!$Q$49 -> 0.1695040926 | AA28: 0.1695040926
P29: 26 | Q29: HRWC | R29: 0.01824423246 | Y29: ='Data 2012'!$R$6 -> JCW1 | Z29: ='Data 2012'!$R$49 -> 0.1217587547 | AA29: 0.1217587547
P30: 22 | Q30: JCW1 | R30: 0.03424543284 | Y30: ='Data 2012'!$S$6 -> LVVWD | Z30: ='Data 2012'!$S$49 -> 0.05077375249 | AA30: 0.05077375249
P31: 20 | Q31: LVVWD | R31: 0.03559781484 | Y31: ='Data 2012'!$T$6 -> LWCKY | Z31: ='Data 2012'!$T$49 -> 0.2284719461 | AA31: 0.2284719461
P32: 9 | Q32: LWCKY | R32: 0.1176989963 | Y32: ='Data 2012'!$U$6 -> OCFL | Z32: ='Data 2012'!$U$49 -> 0.05931083961 | AA32: 0.05931083961
P33: 17 | Q33: OCFL | R33: 0.05858683285 | Y33: ='Data 2012'!$V$6 -> PAW | Z33: ='Data 2012'!$V$49 -> 0.4134238454 | AA33: 0.4134238454
P34: 7 | Q34: PAW | R34: 0.1347551812 | Y34: ='Data 2012'!$W$6 -> PWD | Z34: ='Data 2012'!$W$49 -> 0.3969455592 | AA34: 0.3969455592
P35: 1 | Q35: PWD | R35: 0.2720345235 | Y35: ='Data 2012'!$X$6 -> RRW | Z35: ='Data 2012'!$X$49 -> 0.127623135 | AA35: 0.127623135
P36: 18 | Q36: RRW | R36: 0.03947506047 | Y36: ='Data 2012'!$Y$6 -> UI | Z36: ='Data 2012'!$Y$49 -> 0.07986956403 | AA36: 0.07986956403
P37: 25 | Q37: UI | R37: =CHOOSE(Q$8,$AA36,$AA66,$AA96,$AA125,$AA155,$AA185,$AA214,$AA244,$AA274,$AA304,$AA334) -> 0.02484651786 | Y37: ='Data 2012'!$Z$6 -> WWU | Z37: ='Data 2012'!$Z$49 -> 0.1346801347 | AA37: 0.1346801347
P38: 14 | Q38: WWU | R38: 0.06871841809 | Y38: ='Data 2012'!$AA$6 -> WCSA | Z38: ='Data 2012'!$AA$49 -> 0.4868160443 | AA38: 0.4868160443
P39: 8 | Q39: WCSA | R39: 0.1182847108 | Y39: ='Data 2012'!$AB$6 -> WDPW | Z39: ='Data 2012'!$AB$49 -> 0.4728077349 | AA39: 0.4728077349
P40: 5 | Q40: WDPW | R40: 0.1595877296 | Y40: ='Data 2012'!$AC$6 -> WWAWC | Z40: ='Data 2012'!$AC$49 -> 0.1927222692 | AA40: 0.1927222692
P41: 15 | Q41: WWAWC | R41: 0.06493392843 | Y41: =$C$8 ->  | Z41: ='AWWA-Water Balance Data Transf.'!$D$51 ->  | AA41: =Z41 -> 
Y43: Performance Indicator: Non-revenue Water as Percent by Cost of Operating System (%)
P44: Ordered Chart Data | Q44: Y-Axis | R44: =R15 -> Performance Indicator: Non-revenue Water as Percent by Cost of Operating System (%) | Y44: Utility | Z44: Original Values | AA44: Chart Values | AB44: Percentiles
P45: Desired Order | U45: 25th Percentile | V45: 50th Percentile | W45: 75th Percentile | Y45: ='Data 2012'!$D$6 -> GCWW | Z45: ='Data 2012'!$D$50 -> 0.07479818971 | AA45: =IF(ISERROR(Z45),"",Z45) -> 0.07479818971 | AB45: 0.25 | AC45: =PERCENTILE(AA46:AA72,AB45) -> 0.03559781484
P46: 1 | Q46: =IF(ISERROR(VLOOKUP(P46,$P$16:$R$42,2,FALSE)),"",VLOOKUP(P46,$P$16:$R$42,2,FALSE)) -> PWD | R46: =IF(ISERROR(VLOOKUP($P46,$P$16:$R$42,3,FALSE)),"",VLOOKUP($P46,$P$16:$R$42,3,FALSE)) -> 0.2720345235 | S46: =IF(Q46=$Q$42,$R$42,0) -> 0 | T46: =R46-S46 -> 0.2720345235 | U46: =$S$16 -> 0.03559781484 | V46: =$S$17 -> 0.06682617326 | W46: =$S$18 -> 0.126519946 | Y46: ='Data 2012'!$E$6 -> SMW | Z46: ='Data 2012'!$E$50 -> 0.1034360973 | AA46: =IF(ISERROR(Z46),"",Z46) -> 0.1034360973 | AB46: 0.5 | AC46: =PERCENTILE(AA47:AA73,AB46) -> 0.06682617326
P47: 2 | Q47: =IF(ISERROR(VLOOKUP(P47,$P$16:$R$42,2,FALSE)),"",VLOOKUP(P47,$P$16:$R$42,2,FALSE)) -> DCWATER | R47: 0.2232320532 | S47: 0 | T47: =R47-S47 -> 0.2232320532 | U47: =$S$16 -> 0.03559781484 | V47: =$S$17 -> 0.06682617326 | W47: =$S$18 -> 0.126519946 | Y47: ='Data 2012'!$F$6 -> ABCWUA | Z47: ='Data 2012'!$F$50 -> 0.1834688547 | AA47: 0.1834688547 | AB47: 0.75 | AC47: =PERCENTILE(AA48:AA74,AB47) -> 0.126519946
P48: 3 | Q48: =IF(ISERROR(VLOOKUP(P48,$P$16:$R$42,2,FALSE)),"",VLOOKUP(P48,$P$15:$R$42,2,FALSE)) -> ABCWUA | R48: 0.1834688547 | S48: 0 | T48: 0.1834688547 | U48: 0.03559781484 | V48: 0.06682617326 | W48: 0.126519946 | Y48: ='Data 2012'!$G$6 -> AquaWSC | Z48: ='Data 2012'!$G$50 -> 0.03742960864 | AA48: 0.03742960864
P49: 4 | Q49: CBW | R49: 0.1731120987 | S49: 0 | T49: 0.1731120987 | U49: 0.03559781484 | V49: 0.06682617326 | W49: 0.126519946 | Y49: ='Data 2012'!$H$6 -> AW | Z49: ='Data 2012'!$H$50 -> 0.03010877342 | AA49: 0.03010877342
P50: 5 | Q50: WDPW | R50: 0.1595877296 | S50: 0 | T50: 0.1595877296 | U50: 0.03559781484 | V50: 0.06682617326 | W50: 0.126519946 | Y50: ='Data 2012'!$I$6 -> BUD | Z50: ='Data 2012'!$I$50 -> 0.0738488774 | AA50: 0.0738488774
P51: 6 | Q51: DUTIL | R51: 0.1568100245 | S51: 0 | T51: 0.1568100245 | U51: 0.03559781484 | V51: 0.06682617326 | W51: 0.126519946 | Y51: ='Data 2012'!$J$6 -> BWWB | Z51: ='Data 2012'!$J$50 -> 0.08012809816 | AA51: 0.08012809816
P52: 7 | Q52: PAW | R52: 0.1347551812 | S52: 0 | T52: 0.1347551812 | U52: 0.03559781484 | V52: 0.06682617326 | W52: 0.126519946 | Y52: ='Data 2012'!$K$6 -> CW | Z52: ='Data 2012'!$K$50 -> 0.03517592255 | AA52: 0.03517592255
P53: 8 | Q53: WCSA | R53: 0.1182847108 | S53: 0 | T53: 0.1182847108 | U53: 0.03559781484 | V53: 0.06682617326 | W53: 0.126519946 | Y53: ='Data 2012'!$L$6 -> CCWSA | Z53: ='Data 2012'!$L$50 -> 0.03104518632 | AA53: 0.03104518632
P54: 9 | Q54: LWCKY | R54: 0.1176989963 | S54: 0 | T54: 0.1176989963 | U54: 0.03559781484 | V54: 0.06682617326 | W54: 0.126519946 | Y54: ='Data 2012'!$M$6 -> CCWS | Z54: ='Data 2012'!$M$50 -> 0.06046706878 | AA54: 0.06046706878
P55: 10 | Q55: SMW | R55: 0.1034360973 | S55: 0 | T55: 0.1034360973 | U55: 0.03559781484 | V55: 0.06682617326 | W55: 0.126519946 | Y55: ='Data 2012'!$N$6 -> CBW | Z55: ='Data 2012'!$N$50 -> 0.1731120987 | AA55: 0.1731120987
P56: 11 | Q56: BWWB | R56: 0.08012809816 | S56: 0 | T56: 0.08012809816 | U56: 0.03559781484 | V56: 0.06682617326 | W56: 0.126519946 | Y56: ='Data 2012'!$O$6 -> DUTIL | Z56: ='Data 2012'!$O$50 -> 0.1568100245 | AA56: 0.1568100245
P57: 12 | Q57: GCWW | R57: 0.07479818971 | S57: 0 | T57: 0.07479818971 | U57: 0.03559781484 | V57: 0.06682617326 | W57: 0.126519946 | Y57: ='Data 2012'!$P$6 -> DCWATER | Z57: ='Data 2012'!$P$50 -> 0.2232320532 | AA57: 0.2232320532
P58: 13 | Q58: BUD | R58: 0.0738488774 | S58: 0 | T58: 0.0738488774 | U58: 0.03559781484 | V58: 0.06682617326 | W58: 0.126519946 | Y58: ='Data 2012'!$Q$6 -> HRWC | Z58: ='Data 2012'!$Q$50 -> 0.01824423246 | AA58: 0.01824423246
P59: 14 | Q59: WWU | R59: 0.06871841809 | S59: 0 | T59: 0.06871841809 | U59: 0.03559781484 | V59: 0.06682617326 | W59: 0.126519946 | Y59: ='Data 2012'!$R$6 -> JCW1 | Z59: ='Data 2012'!$R$50 -> 0.03424543284 | AA59: 0.03424543284
P60: 15 | Q60: WWAWC | R60: 0.06493392843 | S60: 0 | T60: 0.06493392843 | U60: 0.03559781484 | V60: 0.06682617326 | W60: 0.126519946 | Y60: ='Data 2012'!$S$6 -> LVVWD | Z60: ='Data 2012'!$S$50 -> 0.03559781484 | AA60: 0.03559781484
P61: 16 | Q61: CCWS | R61: 0.06046706878 | S61: 0 | T61: 0.06046706878 | U61: 0.03559781484 | V61: 0.06682617326 | W61: 0.126519946 | Y61: ='Data 2012'!$T$6 -> LWCKY | Z61: ='Data 2012'!$T$50 -> 0.1176989963 | AA61: 0.1176989963
C62: Abbreviation | D62: Utility Name | G62: State or Province | H62: Country | I62: Audit Year | P62: 17 | Q62: OCFL | R62: 0.05858683285 | S62: 0 | T62: 0.05858683285 | U62: 0.03559781484 | V62: 0.06682617326 | W62: 0.126519946 | Y62: ='Data 2012'!$U$6 -> OCFL | Z62: ='Data 2012'!$U$50 -> 0.05858683285 | AA62: 0.05858683285
C63: GCWW | D63: Greater Cincinnati Water Works | G63: Ohio | H63: USA | I63: 2010 | P63: 18 | Q63: RRW | R63: 0.03947506047 | S63: 0 | T63: 0.03947506047 | U63: 0.03559781484 | V63: 0.06682617326 | W63: 0.126519946 | Y63: ='Data 2012'!$V$6 -> PAW | Z63: ='Data 2012'!$V$50 -> 0.1347551812 | AA63: 0.1347551812
C64: SMW | D64: City of Santa Monica | G64: California | H64: USA | I64: 2010 | P64: 19 | Q64: AquaWSC | R64: 0.03742960864 | S64: 0 | T64: 0.03742960864 | U64: 0.03559781484 | V64: 0.06682617326 | W64: 0.126519946 | Y64: ='Data 2012'!$W$6 -> PWD | Z64: ='Data 2012'!$W$50 -> 0.2720345235 | AA64: 0.2720345235
C65: ABCWUA | D65: ALBUQUERQUE BERNALILLO COUNTY WATER UTILITY | G65: New Mexico | H65: USA | I65: 2011 | P65: 20 | Q65: LVVWD | R65: 0.03559781484 | S65: 0 | T65: 0.03559781484 | U65: 0.03559781484 | V65: 0.06682617326 | W65: 0.126519946 | Y65: ='Data 2012'!$X$6 -> RRW | Z65: ='Data 2012'!$X$50 -> 0.03947506047 | AA65: 0.03947506047
C66: AquaWSC | D66: Aqua WSC | G66: Texas | H66: USA | I66: 2011 | P66: 21 | Q66: CW | R66: 0.03517592255 | S66: 0 | T66: 0.03517592255 | U66: 0.03559781484 | V66: 0.06682617326 | W66: 0.126519946 | Y66: ='Data 2012'!$Y$6 -> UI | Z66: ='Data 2012'!$Y$50 -> 0.02484651786 | AA66: 0.02484651786
C67: AW | D67: Austin Water Utility | G67: Texas | H67: USA | I67: 2011 | P67: 22 | Q67: JCW1 | R67: 0.03424543284 | S67: 0 | T67: 0.03424543284 | U67: 0.03559781484 | V67: 0.06682617326 | W67: 0.126519946 | Y67: ='Data 2012'!$Z$6 -> WWU | Z67: ='Data 2012'!$Z$50 -> 0.06871841809 | AA67: 0.06871841809
C68: BUD | D68: City of Belmont | G68: North Carolina | H68: USA | I68: 2011 | P68: 23 | Q68: CCWSA | R68: 0.03104518632 | S68: 0 | T68: 0.03104518632 | U68: 0.03559781484 | V68: 0.06682617326 | W68: 0.126519946 | Y68: ='Data 2012'!$AA$6 -> WCSA | Z68: ='Data 2012'!$AA$50 -> 0.1182847108 | AA68: 0.1182847108
C69: BWWB | D69: Birmingham Water Works Board | G69: Alabama | H69: USA | I69: 2011 | P69: 24 | Q69: AW | R69: 0.03010877342 | S69: 0 | T69: 0.03010877342 | U69: 0.03559781484 | V69: 0.06682617326 | W69: 0.126519946 | Y69: ='Data 2012'!$AB$6 -> WDPW | Z69: ='Data 2012'!$AB$50 -> 0.1595877296 | AA69: 0.1595877296
C70: CW | D70: The City of Calgary | G70: Alberta | H70: Canada | I70: 2011 | P70: 25 | Q70: UI | R70: 0.02484651786 | S70: 0 | T70: 0.02484651786 | U70: 0.03559781484 | V70: 0.06682617326 | W70: 0.126519946 | Y70: ='Data 2012'!$AC$6 -> WWAWC | Z70: ='Data 2012'!$AC$50 -> 0.06493392843 | AA70: 0.06493392843
C71: CCWSA | D71: Cherokee County Water & Sewerage Authority | G71: Georgia | H71: USA | I71: 2011 | P71: 26 | Q71: HRWC | R71: 0.01824423246 | S71: 0 | T71: 0.01824423246 | U71: 0.03559781484 | V71: 0.06682617326 | W71: 0.126519946 | Y71: =$C$8 ->  | Z71: ='AWWA-Water Balance Data Transf.'!$D$52 ->  | AA71: ='AWWA-Water Balance Data Transf.'!$D$52 -> 
C72: CCWS | D72: Cobb County Water System WSID 67003 | G72: Georgia | H72: USA | I72: 2001 | P72: 27 | U72: 0.03559781484 | V72: 0.06682617326 | W72: 0.126519946
C73: CBW | D73: City of Cranbrook, BC | G73: British Colombia | H73: Canada | I73: 2011 | Y73: Financial Indicator: Annual cost of Apparent Losses ($)
C74: DUTIL | D74: Dalton Utilities | G74: Georgia | H74: USA | I74: 2011 | Y74: Utility | Z74: Original Values | AA74: Chart Values | AB74: Percentiles
C75: DCWATER | D75: DC Water & Sewer Authority | G75: District of Colombia | H75: USA | I75: 2011 | Y75: ='Data 2012'!$D$6 -> GCWW | Z75: ='Data 2012'!$D$51 -> 5110562.36 | AA75: =Z75 -> 5110562.36 | AB75: 0.25 | AC75: =PERCENTILE(AA75:AA101,AB75) -> 225208.9025
C76: HRWC | D76: Halifax Regional Water Commission | G76: Nova Scotia | H76: Canada | I76: 2010 | Y76: ='Data 2012'!$E$6 -> SMW | Z76: ='Data 2012'!$E$51 -> 716257.76 | AA76: =Z76 -> 716257.76 | AB76: 0.5 | AC76: =PERCENTILE(AA76:AA102,AB76) -> 1255600.73
C77: LVVWD | D77: Las Vegas Valley Water District | G77: Nevada | H77: USA | I77: 2011 | Y77: ='Data 2012'!$F$6 -> ABCWUA | Z77: ='Data 2012'!$F$51 -> 3054328.9 | AA77: =Z77 -> 3054328.9 | AB77: 0.75 | AC77: 4402040.44
C78: LWCKY | D78: Louisville Water Company | G78: Kentucky | H78: USA | I78: 2011 | Y78: ='Data 2012'!$G$6 -> AquaWSC | Z78: ='Data 2012'!$G$51 -> 209241.62 | AA78: =Z78 -> 209241.62
C79: OCFL | D79: Orange County Utilities Department | G79: California | H79: USA | I79: 2011 | Y79: ='Data 2012'!$H$6 -> AW | Z79: ='Data 2012'!$H$51 -> 4376960.28 | AA79: =Z79 -> 4376960.28
C80: PAW | D80: Pennsylvania American Water / Pittsburgh Division | G80: Pennsylvania | H80: USA | I80: 2011 | Y80: ='Data 2012'!$I$6 -> BUD | Z80: ='Data 2012'!$I$51 -> 172820.97 | AA80: 172820.97
C81: PWD | D81: Philadelphia Water Department | G81: Pennsylvania | H81: USA | I81: 2011 | Y81: ='Data 2012'!$J$6 -> BWWB | Z81: ='Data 2012'!$J$51 -> 3787341.46 | AA81: 3787341.46
C82: RRW | D82: City of Rio Rancho | G82: New Mexico | H82: USA | I82: 2011 | Y82: ='Data 2012'!$K$6 -> CW | Z82: ='Data 2012'!$K$51 -> 4477280.92 | AA82: 4477280.92
C83: UI | D83: Utilities Inc. | G83: South Carolina | H83: USA | I83: 2011 | Y83: ='Data 2012'!$L$6 -> CCWSA | Z83: ='Data 2012'!$L$51 -> 790545.95 | AA83: 790545.95
C84: JCW1 | D84: Water District No. 1 of Johnson County | G84: Kansas | H84: USA | I84: 2011 | Y84: ='Data 2012'!$M$6 -> CCWS | Z84: ='Data 2012'!$M$51 -> 1563003.33 | AA84: 1563003.33
C85: WWU | D85: City of Wauwatosa Water Utility | G85: Wisconsin | H85: USA | I85: 2011 | Y85: ='Data 2012'!$N$6 -> CBW | Z85: ='Data 2012'!$N$51 -> 0 | AA85: 0
C86: WCSA | D86: Washington County Service Authority | G86: Virginia | H86: USA | I86: 2011 | Y86: ='Data 2012'!$O$6 -> DUTIL | Z86: ='Data 2012'!$O$51 -> 1006521.93 | AA86: 1006521.93
C87: WDPW | D87: City of Wilmington, Delaware | G87: Delaware | H87: USA | I87: 2011 | Y87: ='Data 2012'!$P$6 -> DCWATER | Z87: ='Data 2012'!$P$51 -> 9872897.26 | AA87: 9872897.26
C88: WWAWC | D88: Water & Wastewater Authority of Wilson County | G88: Tennessee | H88: USA | I88: 2010 | Y88: ='Data 2012'!$Q$6 -> HRWC | Z88: ='Data 2012'!$Q$51 -> 250913.66 | AA88: 250913.66
C89: *The AWWA Validated Water Audit Data can be found at http://www.awwa.org/resources-tools/water-knowledge/water-loss-control.aspx | Y89: ='Data 2012'!$R$6 -> JCW1 | Z89: ='Data 2012'!$R$51 -> 1867161.43 | AA89: 1867161.43
B90: =IF('Start Page'!$H$29="","",'Start Page'!$H$29) ->  | J90: ©2014 Water Research Foundation. ALL RIGHTS RESERVED. | Y90: ='Data 2012'!$S$6 -> LVVWD | Z90: ='Data 2012'!$S$51 -> 5522565.99 | AA90: 5522565.99
Y91: ='Data 2012'!$T$6 -> LWCKY | Z91: ='Data 2012'!$T$51 -> 5986632.94 | AA91: 5986632.94
Y92: ='Data 2012'!$U$6 -> OCFL | Z92: ='Data 2012'!$U$51 -> 1255600.73 | AA92: 1255600.73
Y93: ='Data 2012'!$V$6 -> PAW | Z93: ='Data 2012'!$V$51 -> 6046889.91 | AA93: 6046889.91
Y94: ='Data 2012'!$W$6 -> PWD | Z94: ='Data 2012'!$W$51 -> 54210000 | AA94: 54210000
Y95: ='Data 2012'!$X$6 -> RRW | Z95: ='Data 2012'!$X$51 -> 454613.7 | AA95: 454613.7
Y96: ='Data 2012'!$Y$6 -> UI | Z96: ='Data 2012'!$Y$51 -> 1030.54 | AA96: 1030.54
Y97: ='Data 2012'!$Z$6 -> WWU | Z97: ='Data 2012'!$Z$51 -> 158242 | AA97: 158242
Y98: ='Data 2012'!$AA$6 -> WCSA | Z98: ='Data 2012'!$AA$51 -> 216640.65 | AA98: 216640.65
Y99: ='Data 2012'!$AB$6 -> WDPW | Z99: ='Data 2012'!$AB$51 -> 3323019.47 | AA99: 3323019.47
Y100: ='Data 2012'!$AC$6 -> WWAWC | Z100: ='Data 2012'!$AC$51 -> 54662.82 | AA100: 54662.82
Y101: =$C$8 ->  | Z101: ='AWWA-Water Balance Data Transf.'!$D$53 ->  | AA101: ='AWWA-Water Balance Data Transf.'!$D$53 -> 
Y102: Financial Indicator: Annual Cost of Real Losses ($)
Y103: Utility | Z103: Original Values | AA103: Chart Values | AB103: Percentiles
Y104: ='Data 2012'!$D$6 -> GCWW | Z104: ='Data 2012'!$D$52 -> 2320966.27 | AA104: =Z104 -> 2320966.27 | AB104: 0.25 | AC104: =PERCENTILE(AA104:AA130,AB104) -> 182073.0125
Y105: ='Data 2012'!$E$6 -> SMW | Z105: ='Data 2012'!$E$52 -> 629688.84 | AA105: =Z105 -> 629688.84 | AB105: 0.5 | AC105: =PERCENTILE(AA105:AA131,AB105) -> 629688.84
Y106: ='Data 2012'!$F$6 -> ABCWUA | Z106: ='Data 2012'!$F$52 -> 549835.67 | AA106: =Z106 -> 549835.67 | AB106: 0.75 | AC106: 1892959.065
Y107: ='Data 2012'!$G$6 -> AquaWSC | Z107: ='Data 2012'!$G$52 -> 175014.88 | AA107: =Z107 -> 175014.88
Y108: ='Data 2012'!$H$6 -> AW | Z108: ='Data 2012'!$H$52 -> 1429629.83 | AA108: =Z108 -> 1429629.83
Y109: ='Data 2012'!$I$6 -> BUD | Z109: ='Data 2012'!$I$52 -> 34976.02 | AA109: 34976.02
Y110: ='Data 2012'!$J$6 -> BWWB | Z110: ='Data 2012'!$J$52 -> 3078997.58 | AA110: 3078997.58
Y111: ='Data 2012'!$K$6 -> CW | Z111: ='Data 2012'!$K$52 -> 1000041.28 | AA111: 1000041.28
Y112: ='Data 2012'!$L$6 -> CCWSA | Z112: ='Data 2012'!$L$52 -> 145965.02 | AA112: 145965.02
Y113: ='Data 2012'!$M$6 -> CCWS | Z113: ='Data 2012'!$M$52 -> 2819008.8 | AA113: 2819008.8
Y114: ='Data 2012'!$N$6 -> CBW | Z114: ='Data 2012'!$N$52 -> 163921.22 | AA114: 163921.22
Y115: ='Data 2012'!$O$6 -> DUTIL | Z115: ='Data 2012'!$O$52 -> 1584275.82 | AA115: 1584275.82
Y116: ='Data 2012'!$P$6 -> DCWATER | Z116: ='Data 2012'!$P$52 -> 4226872 | AA116: 4226872
Y117: ='Data 2012'!$Q$6 -> HRWC | Z117: ='Data 2012'!$Q$52 -> 361617.71 | AA117: 361617.71
Y118: ='Data 2012'!$R$6 -> JCW1 | Z118: ='Data 2012'!$R$52 -> 966285.98 | AA118: 966285.98
Y119: ='Data 2012'!$S$6 -> LVVWD | Z119: ='Data 2012'!$S$52 -> 3328416.88 | AA119: 3328416.88
Y120: ='Data 2012'!$T$6 -> LWCKY | Z120: ='Data 2012'!$T$52 -> 850824.65 | AA120: 850824.65
Y121: ='Data 2012'!$U$6 -> OCFL | Z121: ='Data 2012'!$U$52 -> 162863.83 | AA121: 162863.83
Y122: ='Data 2012'!$V$6 -> PAW | Z122: ='Data 2012'!$V$52 -> 3199885.79 | AA122: 3199885.79
Y123: ='Data 2012'!$W$6 -> PWD | Z123: ='Data 2012'!$W$52 -> 6628223.1 | AA123: 6628223.1
Y124: ='Data 2012'!$X$6 -> RRW | Z124: ='Data 2012'!$X$52 -> 203247.41 | AA124: 203247.41
Y125: ='Data 2012'!$Y$6 -> UI | Z125: ='Data 2012'!$Y$52 -> 212.84 | AA125: 212.84
Y126: ='Data 2012'!$Z$6 -> WWU | Z126: ='Data 2012'!$Z$52 -> 216332.77 | AA126: 216332.77
Y127: ='Data 2012'!$AA$6 -> WCSA | Z127: ='Data 2012'!$AA$52 -> 880047.57 | AA127: 880047.57
Y128: ='Data 2012'!$AB$6 -> WDPW | Z128: ='Data 2012'!$AB$52 -> 609208.59 | AA128: 609208.59
Y129: ='Data 2012'!$AC$6 -> WWAWC | Z129: ='Data 2012'!$AC$52 -> 152350.05 | AA129: 152350.05
Y130: =$C$8 ->  | Z130: ='AWWA-Water Balance Data Transf.'!$D$54 ->  | AA130: ='AWWA-Water Balance Data Transf.'!$D$54 -> 
Y132: =IF('Start Page'!$Y$36=2,"Performance Indicator: Apparent Losses per Service Connection per Day [litres/service con./day]","Performance Indicator: Apparent Losses per Service Connection per Day [gal/service con./day]") -> Performance Indicator: Apparent Losses per Service Connection per Day [gal/service con./day]
Y133: Utility | Z133: Original Values | AA133: Chart Values | AB133: Percentiles
Y134: ='Data 2012'!$D$6 -> GCWW | Z134: ='Data 2012'!$D$53 -> 19.01300697 | AA134: =IF('Start Page'!$Y$36=2,Z134*VLOOKUP('Start Page'!$Y$36,'Unit Conversion Sheet'!$A$43:$C$45,3),Z134) -> 19.01300697 | AB134: 0.25 | AC134: =PERCENTILE(AA134:AA160,AB134) -> 6.552641765
Y135: ='Data 2012'!$E$6 -> SMW | Z135: ='Data 2012'!$E$53 -> 13.7085575 | AA135: =IF('Start Page'!$Y$36=2,Z135*VLOOKUP('Start Page'!$Y$36,'Unit Conversion Sheet'!$A$43:$C$45,3),Z135) -> 13.7085575 | AB135: 0.5 | AC135: =PERCENTILE(AA135:AA161,AB135) -> 10.25712984
Y136: ='Data 2012'!$F$6 -> ABCWUA | Z136: ='Data 2012'!$F$53 -> 12.48460815 | AA136: =IF('Start Page'!$Y$36=2,Z136*VLOOKUP('Start Page'!$Y$36,'Unit Conversion Sheet'!$A$43:$C$45,3),Z136) -> 12.48460815 | AB136: 0.75 | AC136: 13.45274107
Y137: ='Data 2012'!$G$6 -> AquaWSC | Z137: ='Data 2012'!$G$53 -> 7.938071216 | AA137: =IF('Start Page'!$Y$36=2,Z137*VLOOKUP('Start Page'!$Y$36,'Unit Conversion Sheet'!$A$43:$C$45,3),Z137) -> 7.938071216
Y138: ='Data 2012'!$H$6 -> AW | Z138: ='Data 2012'!$H$53 -> 13.7427936 | AA138: =IF('Start Page'!$Y$36=2,Z138*VLOOKUP('Start Page'!$Y$36,'Unit Conversion Sheet'!$A$43:$C$45,3),Z138) -> 13.7427936
Y139: ='Data 2012'!$I$6 -> BUD | Z139: ='Data 2012'!$I$53 -> 13.35605689 | AA139: =IF('Start Page'!$Y$36=2,Z139*VLOOKUP('Start Page'!$Y$36,'Unit Conversion Sheet'!$A$43:$C$45,3),Z139) -> 13.35605689
Y140: ='Data 2012'!$J$6 -> BWWB | Z140: ='Data 2012'!$J$53 -> 10.93817662 | AA140: =IF('Start Page'!$Y$36=2,Z140*VLOOKUP('Start Page'!$Y$36,'Unit Conversion Sheet'!$A$43:$C$45,3),Z140) -> 10.93817662
Y141: ='Data 2012'!$K$6 -> CW | Z141: ='Data 2012'!$K$53 -> 7.97616854 | AA141: =IF('Start Page'!$Y$36=2,Z141*VLOOKUP('Start Page'!$Y$36,'Unit Conversion Sheet'!$A$43:$C$45,3),Z141) -> 7.97616854
Y142: ='Data 2012'!$L$6 -> CCWSA | Z142: ='Data 2012'!$L$53 -> 5.937742957 | AA142: =IF('Start Page'!$Y$36=2,Z142*VLOOKUP('Start Page'!$Y$36,'Unit Conversion Sheet'!$A$43:$C$45,3),Z142) -> 5.937742957
Y143: ='Data 2012'!$M$6 -> CCWS | Z143: ='Data 2012'!$M$53 -> 5.285307712 | AA143: =IF('Start Page'!$Y$36=2,Z143*VLOOKUP('Start Page'!$Y$36,'Unit Conversion Sheet'!$A$43:$C$45,3),Z143) -> 5.285307712
Y144: ='Data 2012'!$N$6 -> CBW | Z144: ='Data 2012'!$N$53 -> 1.24159719 | AA144: =IF('Start Page'!$Y$36=2,Z144*VLOOKUP('Start Page'!$Y$36,'Unit Conversion Sheet'!$A$43:$C$45,3),Z144) -> 1.24159719
Y145: ='Data 2012'!$O$6 -> DUTIL | Z145: ='Data 2012'!$O$53 -> 18.42902235 | AA145: =IF('Start Page'!$Y$36=2,Z145*VLOOKUP('Start Page'!$Y$36,'Unit Conversion Sheet'!$A$43:$C$45,3),Z145) -> 18.42902235
Y146: ='Data 2012'!$P$6 -> DCWATER | Z146: ='Data 2012'!$P$53 -> 48.89230927 | AA146: =IF('Start Page'!$Y$36=2,Z146*VLOOKUP('Start Page'!$Y$36,'Unit Conversion Sheet'!$A$43:$C$45,3),Z146) -> 48.89230927
Y147: ='Data 2012'!$Q$6 -> HRWC | Z147: ='Data 2012'!$Q$53 -> 5.240216992 | AA147: =IF('Start Page'!$Y$36=2,Z147*VLOOKUP('Start Page'!$Y$36,'Unit Conversion Sheet'!$A$43:$C$45,3),Z147) -> 5.240216992
Y148: ='Data 2012'!$R$6 -> JCW1 | Z148: ='Data 2012'!$R$53 -> 10.25712984 | AA148: =IF('Start Page'!$Y$36=2,Z148*VLOOKUP('Start Page'!$Y$36,'Unit Conversion Sheet'!$A$43:$C$45,3),Z148) -> 10.25712984
Y149: ='Data 2012'!$S$6 -> LVVWD | Z149: ='Data 2012'!$S$53 -> 11.01641257 | AA149: =IF('Start Page'!$Y$36=2,Z149*VLOOKUP('Start Page'!$Y$36,'Unit Conversion Sheet'!$A$43:$C$45,3),Z149) -> 11.01641257
Y150: ='Data 2012'!$T$6 -> LWCKY | Z150: ='Data 2012'!$T$53 -> 19.59504535 | AA150: =IF('Start Page'!$Y$36=2,Z150*VLOOKUP('Start Page'!$Y$36,'Unit Conversion Sheet'!$A$43:$C$45,3),Z150) -> 19.59504535
Y151: ='Data 2012'!$U$6 -> OCFL | Z151: ='Data 2012'!$U$53 -> 7.663077332 | AA151: =IF('Start Page'!$Y$36=2,Z151*VLOOKUP('Start Page'!$Y$36,'Unit Conversion Sheet'!$A$43:$C$45,3),Z151) -> 7.663077332
Y152: ='Data 2012'!$V$6 -> PAW | Z152: ='Data 2012'!$V$53 -> 7.476170903 | AA152: =IF('Start Page'!$Y$36=2,Z152*VLOOKUP('Start Page'!$Y$36,'Unit Conversion Sheet'!$A$43:$C$45,3),Z152) -> 7.476170903
Y153: ='Data 2012'!$W$6 -> PWD | Z153: ='Data 2012'!$W$53 -> 43.57122167 | AA153: =IF('Start Page'!$Y$36=2,Z153*VLOOKUP('Start Page'!$Y$36,'Unit Conversion Sheet'!$A$43:$C$45,3),Z153) -> 43.57122167
Y154: ='Data 2012'!$X$6 -> RRW | Z154: ='Data 2012'!$X$53 -> 12.19366091 | AA154: =IF('Start Page'!$Y$36=2,Z154*VLOOKUP('Start Page'!$Y$36,'Unit Conversion Sheet'!$A$43:$C$45,3),Z154) -> 12.19366091
Y155: ='Data 2012'!$Y$6 -> UI | Z155: ='Data 2012'!$Y$53 -> 3.791481713 | AA155: =IF('Start Page'!$Y$36=2,Z155*VLOOKUP('Start Page'!$Y$36,'Unit Conversion Sheet'!$A$43:$C$45,3),Z155) -> 3.791481713
Y156: ='Data 2012'!$Z$6 -> WWU | Z156: ='Data 2012'!$Z$53 -> 8.470947902 | AA156: =IF('Start Page'!$Y$36=2,Z156*VLOOKUP('Start Page'!$Y$36,'Unit Conversion Sheet'!$A$43:$C$45,3),Z156) -> 8.470947902
Y157: ='Data 2012'!$AA$6 -> WCSA | Z157: ='Data 2012'!$AA$53 -> 6.244798719 | AA157: =IF('Start Page'!$Y$36=2,Z157*VLOOKUP('Start Page'!$Y$36,'Unit Conversion Sheet'!$A$43:$C$45,3),Z157) -> 6.244798719
Y158: ='Data 2012'!$AB$6 -> WDPW | Z158: ='Data 2012'!$AB$53 -> 57.67459694 | AA158: =IF('Start Page'!$Y$36=2,Z158*VLOOKUP('Start Page'!$Y$36,'Unit Conversion Sheet'!$A$43:$C$45,3),Z158) -> 57.67459694
Y159: ='Data 2012'!$AC$6 -> WWAWC | Z159: ='Data 2012'!$AC$53 -> 2.552672311 | AA159: =IF('Start Page'!$Y$36=2,Z159*VLOOKUP('Start Page'!$Y$36,'Unit Conversion Sheet'!$A$43:$C$45,3),Z159) -> 2.552672311
Y160: =$C$8 ->  | Z160: ='AWWA-Water Balance Data Transf.'!$D$57 ->  | AA160: ='AWWA-Water Balance Data Transf.'!$D$57 -> 
Y162: =IF('Start Page'!$Y$36=2,"Performance Indicator: Real Losses per Service Connection per Day [litres/service con./day]","Performance Indicator: Real Losses per Service Connection per Day [gal/service con./day]") -> Performance Indicator: Real Losses per Service Connection per Day [gal/service con./day]
Y163: Utility | Z163: Original Values | AA163: Chart Values | AB163: Percentiles
Y164: ='Data 2012'!$D$6 -> GCWW | Z164: ='Data 2012'!$D$54 -> 57.37327199 | AA164: =IF(ISERROR(IF('Start Page'!$Y$36=2,Z164*VLOOKUP('Start Page'!$Y$36,'Unit Conversion Sheet'!$A$43:$C$45,3),Z164)),"",IF('Start Page'!$Y$36=2,Z164*VLOOKUP('Start Page'!$Y$36,'Unit Conversion Sheet'!$A$43:$C$45,3),Z164)) -> 57.37327199 | AB164: 0.25 | AC164: =PERCENTILE(AA164:AA190,AB164) -> 27.52173816
Y165: ='Data 2012'!$E$6 -> SMW | Z165: ='Data 2012'!$E$54 -> 42.45058071 | AA165: =IF(ISERROR(IF('Start Page'!$Y$36=2,Z165*VLOOKUP('Start Page'!$Y$36,'Unit Conversion Sheet'!$A$43:$C$45,3),Z165)),"",IF('Start Page'!$Y$36=2,Z165*VLOOKUP('Start Page'!$Y$36,'Unit Conversion Sheet'!$A$43:$C$45,3),Z165)) -> 42.45058071 | AB165: 0.5 | AC165: =PERCENTILE(AA165:AA191,AB165) -> 42.31934299
Y166: ='Data 2012'!$F$6 -> ABCWUA | Z166: ='Data 2012'!$F$54 -> 24.05465748 | AA166: =IF(ISERROR(IF('Start Page'!$Y$36=2,Z166*VLOOKUP('Start Page'!$Y$36,'Unit Conversion Sheet'!$A$43:$C$45,3),Z166)),"",IF('Start Page'!$Y$36=2,Z166*VLOOKUP('Start Page'!$Y$36,'Unit Conversion Sheet'!$A$43:$C$45,3),Z166)) -> 24.05465748 | AB166: 0.75 | AC166: 99.45221474
Y167: ='Data 2012'!$G$6 -> AquaWSC | Z167: ='Data 2012'!$G$54 -> N/A | AA167: =IF(ISERROR(IF('Start Page'!$Y$36=2,Z167*VLOOKUP('Start Page'!$Y$36,'Unit Conversion Sheet'!$A$43:$C$45,3),Z167)),"",IF('Start Page'!$Y$36=2,Z167*VLOOKUP('Start Page'!$Y$36,'Unit Conversion Sheet'!$A$43:$C$45,3),Z167)) -> N/A
Y168: ='Data 2012'!$H$6 -> AW | Z168: ='Data 2012'!$H$54 -> 56.04144122 | AA168: =IF(ISERROR(IF('Start Page'!$Y$36=2,Z168*VLOOKUP('Start Page'!$Y$36,'Unit Conversion Sheet'!$A$43:$C$45,3),Z168)),"",IF('Start Page'!$Y$36=2,Z168*VLOOKUP('Start Page'!$Y$36,'Unit Conversion Sheet'!$A$43:$C$45,3),Z168)) -> 56.04144122
Y169: ='Data 2012'!$I$6 -> BUD | Z169: ='Data 2012'!$I$54 -> 76.78631795 | AA169: =IF(ISERROR(IF('Start Page'!$Y$36=2,Z169*VLOOKUP('Start Page'!$Y$36,'Unit Conversion Sheet'!$A$43:$C$45,3),Z169)),"",IF('Start Page'!$Y$36=2,Z169*VLOOKUP('Start Page'!$Y$36,'Unit Conversion Sheet'!$A$43:$C$45,3),Z169)) -> 76.78631795
Y170: ='Data 2012'!$J$6 -> BWWB | Z170: ='Data 2012'!$J$54 -> 109.3892612 | AA170: =IF(ISERROR(IF('Start Page'!$Y$36=2,Z170*VLOOKUP('Start Page'!$Y$36,'Unit Conversion Sheet'!$A$43:$C$45,3),Z170)),"",IF('Start Page'!$Y$36=2,Z170*VLOOKUP('Start Page'!$Y$36,'Unit Conversion Sheet'!$A$43:$C$45,3),Z170)) -> 109.3892612
Y171: ='Data 2012'!$K$6 -> CW | Z171: ='Data 2012'!$K$54 -> 39.96323743 | AA171: =IF(ISERROR(IF('Start Page'!$Y$36=2,Z171*VLOOKUP('Start Page'!$Y$36,'Unit Conversion Sheet'!$A$43:$C$45,3),Z171)),"",IF('Start Page'!$Y$36=2,Z171*VLOOKUP('Start Page'!$Y$36,'Unit Conversion Sheet'!$A$43:$C$45,3),Z171)) -> 39.96323743
Y172: ='Data 2012'!$L$6 -> CCWSA | Z172: ='Data 2012'!$L$54 -> 20.25520875 | AA172: =IF(ISERROR(IF('Start Page'!$Y$36=2,Z172*VLOOKUP('Start Page'!$Y$36,'Unit Conversion Sheet'!$A$43:$C$45,3),Z172)),"",IF('Start Page'!$Y$36=2,Z172*VLOOKUP('Start Page'!$Y$36,'Unit Conversion Sheet'!$A$43:$C$45,3),Z172)) -> 20.25520875
Y173: ='Data 2012'!$M$6 -> CCWS | Z173: ='Data 2012'!$M$54 -> 20.16321386 | AA173: =IF(ISERROR(IF('Start Page'!$Y$36=2,Z173*VLOOKUP('Start Page'!$Y$36,'Unit Conversion Sheet'!$A$43:$C$45,3),Z173)),"",IF('Start Page'!$Y$36=2,Z173*VLOOKUP('Start Page'!$Y$36,'Unit Conversion Sheet'!$A$43:$C$45,3),Z173)) -> 20.16321386
Y174: ='Data 2012'!$N$6 -> CBW | Z174: ='Data 2012'!$N$54 -> 110.7206975 | AA174: =IF(ISERROR(IF('Start Page'!$Y$36=2,Z174*VLOOKUP('Start Page'!$Y$36,'Unit Conversion Sheet'!$A$43:$C$45,3),Z174)),"",IF('Start Page'!$Y$36=2,Z174*VLOOKUP('Start Page'!$Y$36,'Unit Conversion Sheet'!$A$43:$C$45,3),Z174)) -> 110.7206975
Y175: ='Data 2012'!$O$6 -> DUTIL | Z175: ='Data 2012'!$O$54 -> 48.26709137 | AA175: =IF(ISERROR(IF('Start Page'!$Y$36=2,Z175*VLOOKUP('Start Page'!$Y$36,'Unit Conversion Sheet'!$A$43:$C$45,3),Z175)),"",IF('Start Page'!$Y$36=2,Z175*VLOOKUP('Start Page'!$Y$36,'Unit Conversion Sheet'!$A$43:$C$45,3),Z175)) -> 48.26709137
Y176: ='Data 2012'!$P$6 -> DCWATER | Z176: ='Data 2012'!$P$54 -> 111.7849264 | AA176: =IF(ISERROR(IF('Start Page'!$Y$36=2,Z176*VLOOKUP('Start Page'!$Y$36,'Unit Conversion Sheet'!$A$43:$C$45,3),Z176)),"",IF('Start Page'!$Y$36=2,Z176*VLOOKUP('Start Page'!$Y$36,'Unit Conversion Sheet'!$A$43:$C$45,3),Z176)) -> 111.7849264
Y177: ='Data 2012'!$Q$6 -> HRWC | Z177: ='Data 2012'!$Q$54 -> 57.76050201 | AA177: =IF(ISERROR(IF('Start Page'!$Y$36=2,Z177*VLOOKUP('Start Page'!$Y$36,'Unit Conversion Sheet'!$A$43:$C$45,3),Z177)),"",IF('Start Page'!$Y$36=2,Z177*VLOOKUP('Start Page'!$Y$36,'Unit Conversion Sheet'!$A$43:$C$45,3),Z177)) -> 57.76050201
Y178: ='Data 2012'!$R$6 -> JCW1 | Z178: ='Data 2012'!$R$54 -> 38.79635367 | AA178: =IF(ISERROR(IF('Start Page'!$Y$36=2,Z178*VLOOKUP('Start Page'!$Y$36,'Unit Conversion Sheet'!$A$43:$C$45,3),Z178)),"",IF('Start Page'!$Y$36=2,Z178*VLOOKUP('Start Page'!$Y$36,'Unit Conversion Sheet'!$A$43:$C$45,3),Z178)) -> 38.79635367
Y179: ='Data 2012'!$S$6 -> LVVWD | Z179: ='Data 2012'!$S$54 -> 25.03011137 | AA179: =IF(ISERROR(IF('Start Page'!$Y$36=2,Z179*VLOOKUP('Start Page'!$Y$36,'Unit Conversion Sheet'!$A$43:$C$45,3),Z179)),"",IF('Start Page'!$Y$36=2,Z179*VLOOKUP('Start Page'!$Y$36,'Unit Conversion Sheet'!$A$43:$C$45,3),Z179)) -> 25.03011137
Y180: ='Data 2012'!$T$6 -> LWCKY | Z180: ='Data 2012'!$T$54 -> 42.18810528 | AA180: =IF(ISERROR(IF('Start Page'!$Y$36=2,Z180*VLOOKUP('Start Page'!$Y$36,'Unit Conversion Sheet'!$A$43:$C$45,3),Z180)),"",IF('Start Page'!$Y$36=2,Z180*VLOOKUP('Start Page'!$Y$36,'Unit Conversion Sheet'!$A$43:$C$45,3),Z180)) -> 42.18810528
Y181: ='Data 2012'!$U$6 -> OCFL | Z181: ='Data 2012'!$U$54 -> 18.92532058 | AA181: =IF(ISERROR(IF('Start Page'!$Y$36=2,Z181*VLOOKUP('Start Page'!$Y$36,'Unit Conversion Sheet'!$A$43:$C$45,3),Z181)),"",IF('Start Page'!$Y$36=2,Z181*VLOOKUP('Start Page'!$Y$36,'Unit Conversion Sheet'!$A$43:$C$45,3),Z181)) -> 18.92532058
Y182: ='Data 2012'!$V$6 -> PAW | Z182: ='Data 2012'!$V$54 -> 99.45221474 | AA182: =IF(ISERROR(IF('Start Page'!$Y$36=2,Z182*VLOOKUP('Start Page'!$Y$36,'Unit Conversion Sheet'!$A$43:$C$45,3),Z182)),"",IF('Start Page'!$Y$36=2,Z182*VLOOKUP('Start Page'!$Y$36,'Unit Conversion Sheet'!$A$43:$C$45,3),Z182)) -> 99.45221474
Y183: ='Data 2012'!$W$6 -> PWD | Z183: ='Data 2012'!$W$54 -> 127.048249 | AA183: =IF(ISERROR(IF('Start Page'!$Y$36=2,Z183*VLOOKUP('Start Page'!$Y$36,'Unit Conversion Sheet'!$A$43:$C$45,3),Z183)),"",IF('Start Page'!$Y$36=2,Z183*VLOOKUP('Start Page'!$Y$36,'Unit Conversion Sheet'!$A$43:$C$45,3),Z183)) -> 127.048249
Y184: ='Data 2012'!$X$6 -> RRW | Z184: ='Data 2012'!$X$54 -> 33.69996766 | AA184: =IF(ISERROR(IF('Start Page'!$Y$36=2,Z184*VLOOKUP('Start Page'!$Y$36,'Unit Conversion Sheet'!$A$43:$C$45,3),Z184)),"",IF('Start Page'!$Y$36=2,Z184*VLOOKUP('Start Page'!$Y$36,'Unit Conversion Sheet'!$A$43:$C$45,3),Z184)) -> 33.69996766
Y185: ='Data 2012'!$Y$6 -> UI | Z185: ='Data 2012'!$Y$54 -> 8.205184549 | AA185: =IF(ISERROR(IF('Start Page'!$Y$36=2,Z185*VLOOKUP('Start Page'!$Y$36,'Unit Conversion Sheet'!$A$43:$C$45,3),Z185)),"",IF('Start Page'!$Y$36=2,Z185*VLOOKUP('Start Page'!$Y$36,'Unit Conversion Sheet'!$A$43:$C$45,3),Z185)) -> 8.205184549
Y186: ='Data 2012'!$Z$6 -> WWU | Z186: ='Data 2012'!$Z$54 -> 30.01336496 | AA186: =IF(ISERROR(IF('Start Page'!$Y$36=2,Z186*VLOOKUP('Start Page'!$Y$36,'Unit Conversion Sheet'!$A$43:$C$45,3),Z186)),"",IF('Start Page'!$Y$36=2,Z186*VLOOKUP('Start Page'!$Y$36,'Unit Conversion Sheet'!$A$43:$C$45,3),Z186)) -> 30.01336496
Y187: ='Data 2012'!$AA$6 -> WCSA | Z187: ='Data 2012'!$AA$54 -> N/A | AA187: =IF(ISERROR(IF('Start Page'!$Y$36=2,Z187*VLOOKUP('Start Page'!$Y$36,'Unit Conversion Sheet'!$A$43:$C$45,3),Z187)),"",IF('Start Page'!$Y$36=2,Z187*VLOOKUP('Start Page'!$Y$36,'Unit Conversion Sheet'!$A$43:$C$45,3),Z187)) -> N/A
Y188: ='Data 2012'!$AB$6 -> WDPW | Z188: ='Data 2012'!$AB$54 -> 156.0701389 | AA188: =IF(ISERROR(IF('Start Page'!$Y$36=2,Z188*VLOOKUP('Start Page'!$Y$36,'Unit Conversion Sheet'!$A$43:$C$45,3),Z188)),"",IF('Start Page'!$Y$36=2,Z188*VLOOKUP('Start Page'!$Y$36,'Unit Conversion Sheet'!$A$43:$C$45,3),Z188)) -> 156.0701389
Y189: ='Data 2012'!$AC$6 -> WWAWC | Z189: ='Data 2012'!$AC$54 -> N/A | AA189: =IF(ISERROR(IF('Start Page'!$Y$36=2,Z189*VLOOKUP('Start Page'!$Y$36,'Unit Conversion Sheet'!$A$43:$C$45,3),Z189)),"",IF('Start Page'!$Y$36=2,Z189*VLOOKUP('Start Page'!$Y$36,'Unit Conversion Sheet'!$A$43:$C$45,3),Z189)) -> N/A
Y190: =$C$8 ->  | Z190: ='AWWA-Water Balance Data Transf.'!$D$58 ->  | AA190: =IF(ISERROR(IF('Start Page'!$Y$36=2,Z190*VLOOKUP('Start Page'!$Y$36,'Unit Conversion Sheet'!$A$43:$C$45,3),Z190)),"",IF('Start Page'!$Y$36=2,Z190*VLOOKUP('Start Page'!$Y$36,'Unit Conversion Sheet'!$A$43:$C$45,3),Z190)) -> 
Y192: =INDEX('Unit Conversion Sheet'!$C$71:$D$73,MATCH('Start Page'!$Y$36,'Unit Conversion Sheet'!$A$36:$A$38,0),MATCH('Start Page'!$Y$42,'Unit Conversion Sheet'!$C$35:$D$35,0)) -> Performance Indicator: Real Losses per length of mains per day [gal/mi/day] | Z192: Original Values | AA192: Chart Values | AB192: Percentiles
Y193: ='Data 2012'!$D$6 -> GCWW | Z193: ='Data 2012'!$D$55 -> N/A | AA193: =IF(ISERROR(Z193*INDEX('Unit Conversion Sheet'!$C$64:$D$67,MATCH('Start Page'!$Y$36,'Unit Conversion Sheet'!$A$36:$A$38,0),MATCH('Start Page'!$Y$42,'Unit Conversion Sheet'!$C$35:$D$35,0))),"",Z193*INDEX('Unit Conversion Sheet'!$C$64:$D$67,MATCH('Start Page'!$Y$36,'Unit Conversion Sheet'!$A$36:$A$38,0),MATCH('Start Page'!$Y$42,'Unit Conversion Sheet'!$C$35:$D$35,0))) ->  | AB193: 0.25 | AC193: =PERCENTILE(AA193:AA219,AB193) -> 641.5692374
Y194: ='Data 2012'!$E$6 -> SMW | Z194: ='Data 2012'!$E$55 -> N/A | AA194: =IF(ISERROR(Z194*INDEX('Unit Conversion Sheet'!$C$64:$D$67,MATCH('Start Page'!$Y$36,'Unit Conversion Sheet'!$A$36:$A$38,0),MATCH('Start Page'!$Y$42,'Unit Conversion Sheet'!$C$35:$D$35,0))),"",Z194*INDEX('Unit Conversion Sheet'!$C$64:$D$67,MATCH('Start Page'!$Y$36,'Unit Conversion Sheet'!$A$36:$A$38,0),MATCH('Start Page'!$Y$42,'Unit Conversion Sheet'!$C$35:$D$35,0))) ->  | AB194: 0.5 | AC194: =PERCENTILE(AA194:AA220,AB194) -> 709.3209769
Y195: ='Data 2012'!$F$6 -> ABCWUA | Z195: ='Data 2012'!$F$55 -> N/A | AA195: =IF(ISERROR(Z195*INDEX('Unit Conversion Sheet'!$C$64:$D$67,MATCH('Start Page'!$Y$36,'Unit Conversion Sheet'!$A$36:$A$38,0),MATCH('Start Page'!$Y$42,'Unit Conversion Sheet'!$C$35:$D$35,0))),"",Z195*INDEX('Unit Conversion Sheet'!$C$64:$D$67,MATCH('Start Page'!$Y$36,'Unit Conversion Sheet'!$A$36:$A$38,0),MATCH('Start Page'!$Y$42,'Unit Conversion Sheet'!$C$35:$D$35,0))) ->  | AB195: 0.75 | AC195: 2612.583502
Y196: ='Data 2012'!$G$6 -> AquaWSC | Z196: ='Data 2012'!$G$55 -> 709.3209769 | AA196: =IF(ISERROR(Z196*INDEX('Unit Conversion Sheet'!$C$64:$D$67,MATCH('Start Page'!$Y$36,'Unit Conversion Sheet'!$A$36:$A$38,0),MATCH('Start Page'!$Y$42,'Unit Conversion Sheet'!$C$35:$D$35,0))),"",Z196*INDEX('Unit Conversion Sheet'!$C$64:$D$67,MATCH('Start Page'!$Y$36,'Unit Conversion Sheet'!$A$36:$A$38,0),MATCH('Start Page'!$Y$42,'Unit Conversion Sheet'!$C$35:$D$35,0))) -> 709.3209769
Y197: ='Data 2012'!$H$6 -> AW | Z197: ='Data 2012'!$H$55 -> N/A | AA197: =IF(ISERROR(Z197*INDEX('Unit Conversion Sheet'!$C$64:$D$67,MATCH('Start Page'!$Y$36,'Unit Conversion Sheet'!$A$36:$A$38,0),MATCH('Start Page'!$Y$42,'Unit Conversion Sheet'!$C$35:$D$35,0))),"",Z197*INDEX('Unit Conversion Sheet'!$C$64:$D$67,MATCH('Start Page'!$Y$36,'Unit Conversion Sheet'!$A$36:$A$38,0),MATCH('Start Page'!$Y$42,'Unit Conversion Sheet'!$C$35:$D$35,0))) -> 
Y198: ='Data 2012'!$I$6 -> BUD | Z198: ='Data 2012'!$I$55 -> N/A | AA198: =IF(ISERROR(Z198*INDEX('Unit Conversion Sheet'!$C$64:$D$67,MATCH('Start Page'!$Y$36,'Unit Conversion Sheet'!$A$36:$A$38,0),MATCH('Start Page'!$Y$42,'Unit Conversion Sheet'!$C$35:$D$35,0))),"",Z198*INDEX('Unit Conversion Sheet'!$C$64:$D$67,MATCH('Start Page'!$Y$36,'Unit Conversion Sheet'!$A$36:$A$38,0),MATCH('Start Page'!$Y$42,'Unit Conversion Sheet'!$C$35:$D$35,0))) -> 
Y199: ='Data 2012'!$J$6 -> BWWB | Z199: ='Data 2012'!$J$55 -> N/A | AA199: =IF(ISERROR(Z199*INDEX('Unit Conversion Sheet'!$C$64:$D$67,MATCH('Start Page'!$Y$36,'Unit Conversion Sheet'!$A$36:$A$38,0),MATCH('Start Page'!$Y$42,'Unit Conversion Sheet'!$C$35:$D$35,0))),"",Z199*INDEX('Unit Conversion Sheet'!$C$64:$D$67,MATCH('Start Page'!$Y$36,'Unit Conversion Sheet'!$A$36:$A$38,0),MATCH('Start Page'!$Y$42,'Unit Conversion Sheet'!$C$35:$D$35,0))) -> 
Y200: ='Data 2012'!$K$6 -> CW | Z200: ='Data 2012'!$K$55 -> N/A | AA200: =IF(ISERROR(Z200*INDEX('Unit Conversion Sheet'!$C$64:$D$67,MATCH('Start Page'!$Y$36,'Unit Conversion Sheet'!$A$36:$A$38,0),MATCH('Start Page'!$Y$42,'Unit Conversion Sheet'!$C$35:$D$35,0))),"",Z200*INDEX('Unit Conversion Sheet'!$C$64:$D$67,MATCH('Start Page'!$Y$36,'Unit Conversion Sheet'!$A$36:$A$38,0),MATCH('Start Page'!$Y$42,'Unit Conversion Sheet'!$C$35:$D$35,0))) -> 
Y201: ='Data 2012'!$L$6 -> CCWSA | Z201: ='Data 2012'!$L$55 -> N/A | AA201: =IF(ISERROR(Z201*INDEX('Unit Conversion Sheet'!$C$64:$D$67,MATCH('Start Page'!$Y$36,'Unit Conversion Sheet'!$A$36:$A$38,0),MATCH('Start Page'!$Y$42,'Unit Conversion Sheet'!$C$35:$D$35,0))),"",Z201*INDEX('Unit Conversion Sheet'!$C$64:$D$67,MATCH('Start Page'!$Y$36,'Unit Conversion Sheet'!$A$36:$A$38,0),MATCH('Start Page'!$Y$42,'Unit Conversion Sheet'!$C$35:$D$35,0))) -> 
Y202: ='Data 2012'!$M$6 -> CCWS | Z202: ='Data 2012'!$M$55 -> N/A | AA202: =IF(ISERROR(Z202*INDEX('Unit Conversion Sheet'!$C$64:$D$67,MATCH('Start Page'!$Y$36,'Unit Conversion Sheet'!$A$36:$A$38,0),MATCH('Start Page'!$Y$42,'Unit Conversion Sheet'!$C$35:$D$35,0))),"",Z202*INDEX('Unit Conversion Sheet'!$C$64:$D$67,MATCH('Start Page'!$Y$36,'Unit Conversion Sheet'!$A$36:$A$38,0),MATCH('Start Page'!$Y$42,'Unit Conversion Sheet'!$C$35:$D$35,0))) -> 
Y203: ='Data 2012'!$N$6 -> CBW | Z203: ='Data 2012'!$N$55 -> N/A | AA203: =IF(ISERROR(Z203*INDEX('Unit Conversion Sheet'!$C$64:$D$67,MATCH('Start Page'!$Y$36,'Unit Conversion Sheet'!$A$36:$A$38,0),MATCH('Start Page'!$Y$42,'Unit Conversion Sheet'!$C$35:$D$35,0))),"",Z203*INDEX('Unit Conversion Sheet'!$C$64:$D$67,MATCH('Start Page'!$Y$36,'Unit Conversion Sheet'!$A$36:$A$38,0),MATCH('Start Page'!$Y$42,'Unit Conversion Sheet'!$C$35:$D$35,0))) -> 
Y204: ='Data 2012'!$O$6 -> DUTIL | Z204: ='Data 2012'!$O$55 -> N/A | AA204: =IF(ISERROR(Z204*INDEX('Unit Conversion Sheet'!$C$64:$D$67,MATCH('Start Page'!$Y$36,'Unit Conversion Sheet'!$A$36:$A$38,0),MATCH('Start Page'!$Y$42,'Unit Conversion Sheet'!$C$35:$D$35,0))),"",Z204*INDEX('Unit Conversion Sheet'!$C$64:$D$67,MATCH('Start Page'!$Y$36,'Unit Conversion Sheet'!$A$36:$A$38,0),MATCH('Start Page'!$Y$42,'Unit Conversion Sheet'!$C$35:$D$35,0))) -> 
Y205: ='Data 2012'!$P$6 -> DCWATER | Z205: ='Data 2012'!$P$55 -> N/A | AA205: =IF(ISERROR(Z205*INDEX('Unit Conversion Sheet'!$C$64:$D$67,MATCH('Start Page'!$Y$36,'Unit Conversion Sheet'!$A$36:$A$38,0),MATCH('Start Page'!$Y$42,'Unit Conversion Sheet'!$C$35:$D$35,0))),"",Z205*INDEX('Unit Conversion Sheet'!$C$64:$D$67,MATCH('Start Page'!$Y$36,'Unit Conversion Sheet'!$A$36:$A$38,0),MATCH('Start Page'!$Y$42,'Unit Conversion Sheet'!$C$35:$D$35,0))) -> 
Y206: ='Data 2012'!$Q$6 -> HRWC | Z206: ='Data 2012'!$Q$55 -> N/A | AA206: =IF(ISERROR(Z206*INDEX('Unit Conversion Sheet'!$C$64:$D$67,MATCH('Start Page'!$Y$36,'Unit Conversion Sheet'!$A$36:$A$38,0),MATCH('Start Page'!$Y$42,'Unit Conversion Sheet'!$C$35:$D$35,0))),"",Z206*INDEX('Unit Conversion Sheet'!$C$64:$D$67,MATCH('Start Page'!$Y$36,'Unit Conversion Sheet'!$A$36:$A$38,0),MATCH('Start Page'!$Y$42,'Unit Conversion Sheet'!$C$35:$D$35,0))) -> 
Y207: ='Data 2012'!$R$6 -> JCW1 | Z207: ='Data 2012'!$R$55 -> N/A | AA207: =IF(ISERROR(Z207*INDEX('Unit Conversion Sheet'!$C$64:$D$67,MATCH('Start Page'!$Y$36,'Unit Conversion Sheet'!$A$36:$A$38,0),MATCH('Start Page'!$Y$42,'Unit Conversion Sheet'!$C$35:$D$35,0))),"",Z207*INDEX('Unit Conversion Sheet'!$C$64:$D$67,MATCH('Start Page'!$Y$36,'Unit Conversion Sheet'!$A$36:$A$38,0),MATCH('Start Page'!$Y$42,'Unit Conversion Sheet'!$C$35:$D$35,0))) -> 
Y208: ='Data 2012'!$S$6 -> LVVWD | Z208: ='Data 2012'!$S$55 -> N/A | AA208: =IF(ISERROR(Z208*INDEX('Unit Conversion Sheet'!$C$64:$D$67,MATCH('Start Page'!$Y$36,'Unit Conversion Sheet'!$A$36:$A$38,0),MATCH('Start Page'!$Y$42,'Unit Conversion Sheet'!$C$35:$D$35,0))),"",Z208*INDEX('Unit Conversion Sheet'!$C$64:$D$67,MATCH('Start Page'!$Y$36,'Unit Conversion Sheet'!$A$36:$A$38,0),MATCH('Start Page'!$Y$42,'Unit Conversion Sheet'!$C$35:$D$35,0))) -> 
Y209: ='Data 2012'!$T$6 -> LWCKY | Z209: ='Data 2012'!$T$55 -> N/A | AA209: =IF(ISERROR(Z209*INDEX('Unit Conversion Sheet'!$C$64:$D$67,MATCH('Start Page'!$Y$36,'Unit Conversion Sheet'!$A$36:$A$38,0),MATCH('Start Page'!$Y$42,'Unit Conversion Sheet'!$C$35:$D$35,0))),"",Z209*INDEX('Unit Conversion Sheet'!$C$64:$D$67,MATCH('Start Page'!$Y$36,'Unit Conversion Sheet'!$A$36:$A$38,0),MATCH('Start Page'!$Y$42,'Unit Conversion Sheet'!$C$35:$D$35,0))) -> 
... 126 more rows

Sheet Real Losses Component Analysis
B1: WaterRF 4372: Real Loss Component Analysis: A Tool for Economic Water Loss Control
B3: =IF('Start Page'!$Y$37="","",IF('Start Page'!$K$37="Partial Audit Period","Water Audit: "&'Start Page'!$D$26&", "&'Start Page'!$H$26&", "&'Start Page'!$K$26&", "&'Start Page'!$Y$37,"Water Audit: "&'Start Page'!$D$26&", "&'Start Page'!$H$26&", "&'Start Page'!$K$26&", "&YEAR('Start Page'!$Y$37))) -> 
B4: REAL LOSSES COMPONENT ANALYSIS
B6: SUMMARY: REAL LOSS COMPONENT ANALYSIS
B8: Instructions: | C8: Follow the instructions provided below in Step 1 to Step 4 to calculate the real loss volumes stemming from background leakage, reported leaks and unreported leaks
B10: System Component | C10: Background Leakage | D10: Reported Failures | E10: Unreported Failures | F10: Total | H10: Note: To the left you have the summary table of the real loss component analysis. Please enter the data in step 1 through 4 for the summary table to be populated.
C11: =IF('Start Page'!$Y$36=1,"(MG)",IF('Start Page'!$Y$36=2,"(ML)",IF('Start Page'!$Y$36=3,"(Acre-feet)"))) -> (MG) | D11: =IF('Start Page'!$Y$36=1,"(MG)",IF('Start Page'!$Y$36=2,"(ML)",IF('Start Page'!$Y$36=3,"(Acre-feet)"))) -> (MG) | E11: =IF('Start Page'!$Y$36=1,"(MG)",IF('Start Page'!$Y$36=2,"(ML)",IF('Start Page'!$Y$36=3,"(Acre-feet)"))) -> (MG) | F11: =IF('Start Page'!$Y$36=1,"(MG)",IF('Start Page'!$Y$36=2,"(ML)",IF('Start Page'!$Y$36=3,"(Acre-feet)"))) -> (MG)
B12: Reservoirs | C12: =G29 -> 0 | D12: =G27 -> 0 | E12: =G28 -> 0 | F12: =SUM(C12:E12) -> 0
B13: Mains and Appurtenances | C13: =I39 -> 0 | D13: =N78+N90 -> 0 | E13: =N137+N149 -> 0 | F13: =SUM(C13:E13) -> 0
B14: Service Connections | C14: =I40+I41 -> 0 | D14: =N100 -> 0 | E14: =N159 -> 0 | F14: =SUM(C14:E14) -> 0
B15: Total Annual Real Loss | C15: =C12+C13+C14 -> 0 | D15: =D12+D13+D14 -> 0 | E15: =E12+E13+E14 -> 0 | F15: =SUM(C15:E15) -> 0
B16: Real Losses as Calculated by Water Audit | F16: =IF('AWWA-Water Balance Data Transf.'!D30="",0,'AWWA-Water Balance Data Transf.'!D30) -> 0
B17: Hidden Losses/Unreported Leakage Currently Running Undetected | F17: =F16-F15 -> 0 | G17: =IF(F17<0, "BALANCING ERROR NEEDS TO BE >0 - CHECK WATER BALANCE DATA, COMPONENT ANALYSIS RESULTS, ICF USED MIGHT BE TOO HIGH","") -> 
B20: Step 1: BACKGROUND LEAKAGE, REPORTED LEAKAGE AND UNREPORTED LEAKAGE FROM RESERVOIRS
B22: Instructions: | C22: First enter the capacity of all distribution system reservoirs and tanks in use during the audit period. In case the system input volume is based on raw water meters located upstream of the Water Treatment Plant (WTP) then also include the capacity of the WTP reservoirs. Next select a reservoir background leakage rate - either the default value provided by the model or a utility specific flow rate. If reservoirs and tanks are well maintained and the utility does not suspect any background leakage from the reservoirs and tanks then enter zero as the utility specific flow rate. In case a reservoir or tank was reported leaking or has overflowed, enter the estimated volume in cell G27 . If a proactive investigation/inspection of the system reservoirs and tanks has discovered a leaking reservoir or tank then enter the estimated annual volume lost in cell G28.
E24: Capacity | F24: Background Leakage Rate | G24: Annual Volume
E25: =IF('Start Page'!$Y$36=1,"(MG)",IF('Start Page'!$Y$36=2,"(ML)",IF('Start Page'!$Y$36=3,"(MG)"))) -> (MG) | F25: =IF('Start Page'!$Y$36=1,"(gpm/MG)",IF('Start Page'!$Y$36=2,"(l/min/ML)",IF('Start Page'!$Y$36=3,"(gpm/MG)"))) -> (gpm/MG) | G25: =IF('Start Page'!$Y$36=1,"(MG)",IF('Start Page'!$Y$36=2,"(ML)",IF('Start Page'!$Y$36=3,"(Acre-feet)"))) -> (MG) | K25: 0.25 | L25: =F25 -> (gpm/MG)
B26: Total Reservoir/Tank Capacity | F26: =IF(S26=1,K25,IF(S26=2,K28)) -> 0.25 | G26: =IF('Start Page'!$Y$36 = 3,'Unit Conversion Sheet'!E17*E26*F26*60*24*'Start Page'!K35/10^6,E26*F26*60*24*'Start Page'!K35/10^6) -> 0 | S26: 1 | T26: cell reference for group box
B27: Reported Reservoir Leakage and any recorded Reservoir and Tank Overflows
B28: Unreported Reservoir Leakage | K28: 0 | L28: =F25 -> (gpm/MG)
B29: Total Background Leakage, Reported and Unreported leakage from Reservoirs | G29: =SUM(G26:G28) -> 0
B30: =IF('Start Page'!Y36=3,"SYSTEM INPUT VOLUME REPORTED IN ACRE-FEET, BACKGROUND LEAKAGE THEREFORE SHOWN IN ACRE-FEET","") -> 
B32: Step 2: BACKGROUND LEAKAGE ON MAINS AND SERVICES
B34: Instructions: | C34: The background leakage volume from mains and service connections will be automatically calculated after selecting one of the default Infrastructure Condition Factors (ICF) based on infrastructure age or after a utility specific ICF has been selected and entered in cell P43. The level of background leakage tends to increase with infrastructure age and is higher for systems with higher pressure. The volume of background losses is generally a significant component of the total real loss volume, at times up to 50% of the total volume of real losses. Overestimating (ICF used in model is too high) or underestimating (ICF used in model is too low) the background leakage volume might lead to a real loss control strategy that is not truly optimized. Selecting the ICF based on general age of the distribution network should only be seen as a starting point. It is strongly recommended that over time a utility specific ICF is assessed and confirmed through field tests using one of the recommended approaches outlined in the AWWA M36 manual.
H36: Pressure Corrected Calculation | X36: UARL Background Leakage Values - at 70PSI -- 49.2 meters head
B37: System Component | C37: Units | D37: Quantity | E37: Component UARL Values | F37: Infrastructure Condition Factor | G37: Average Pressure | H37: N1 (Leakage-Pressure Exponent) Value | I37: Annual Volume | L37: Select Infrastructure Condition Factor (ICF) based on age of distribution network | Y37: Component UARL Values | Z37: Component UARL Values | AB37: For Pressure Correction
E38: =IF('Start Page'!$Y$36=1,"(g/unit/d/psi)",IF('Start Page'!$Y$36=2,"(l/unit/d/mH)", IF('Start Page'!$Y$36=3,"(g/unit/d/psi)"))) -> (g/unit/d/psi) | G38: =IF('Start Page'!$Y$36=1,"(psi)",IF('Start Page'!$Y$36=2,"mH", IF('Start Page'!$Y$36=3,"(psi)"))) -> (psi) | I38: =IF('Start Page'!$Y$36=1,"(MG)",IF('Start Page'!$Y$36=2,"(ML)",IF('Start Page'!$Y$36=3,"Acre-feet"))) -> (MG) | P38: 1 | S38: 1 | T38: cell reference for group box | Y38: g/unit/d/psi | Z38: (l/unit/d/metres (head)) | AB38: g/unit/d/psi | AC38: (l/unit/d/metres (head))
B39: Mains | C39: =IF('Start Page'!$Y$42=1,"miles",IF('Start Page'!$Y$42=2,"kilometers")) -> miles | D39: ='AWWA-Water Balance Data Transf.'!D37 -> 0 | E39: =IF(AND('Start Page'!$Y$36=1,'Start Page'!$Y$42=2),Y44,IF(AND('Start Page'!$Y$36=2,'Start Page'!$Y$42=2),Z39,IF(AND('Start Page'!$Y$36=3,'Start Page'!$Y$42=2),Y44,IF(AND('Start Page'!$Y$36=1,'Start Page'!$Y$42=1),Y39,IF(AND('Start Page'!$Y$36=2,'Start Page'!$Y$42=1),Z44,IF(AND('Start Page'!$Y$36=3,'Start Page'!$Y$42=1),Y39)))))) -> 2.87 | F39: =IF($S$38=1,$P$38,IF($S$38=2,$P$39,IF($S$38=3,$P$40,IF($S$38=4,$P$43)))) -> 1 | G39: ='AWWA-Water Balance Data Transf.'!$D$41 -> 0 | H39: 1.5 | I39: =IF('Start Page'!$Y$36=1,($E39*$D39*'Start Page'!$K$35*$AB$39*$F39/10^6)*(($G39/$AB$39)^$H39),IF('Start Page'!$Y$36=2,($E39*$D39*'Start Page'!$K$35*$AC$39*$F39/10^6)*(($G39/$AC$39)^$H39),IF('Start Page'!$Y$36=3,('Unit Conversion Sheet'!E17*$E39*$D39*'Start Page'!$K$35*$AB$39*$F39/10^6)*(($G39/$AB$39)^$H39)))) -> 0 | P39: 1.5 | X39: Mains | Y39: 2.87 | Z39: 9.6 | AB39: 70 | AC39: 49.2
B40: Services - Main to Curb-Stop | C40: number | D40: ='AWWA-Water Balance Data Transf.'!D38 -> 0 | E40: =IF(AND('Start Page'!$Y$36=1,'Start Page'!$Y$42=2),Y45,IF(AND('Start Page'!$Y$36=2,'Start Page'!$Y$42=2),Z40,IF(AND('Start Page'!$Y$36=3,'Start Page'!$Y$42=2),Y45,IF(AND('Start Page'!$Y$36=1,'Start Page'!$Y$42=1),Y40,IF(AND('Start Page'!$Y$36=2,'Start Page'!$Y$42=1),Z45,IF(AND('Start Page'!$Y$36=3,'Start Page'!$Y$42=1),Y40)))))) -> 0.112 | F40: =IF($S$38=1,$P$38,IF($S$38=2,$P$39,IF($S$38=3,$P$40,IF($S$38=4,$P$43)))) -> 1 | G40: ='AWWA-Water Balance Data Transf.'!$D$41 -> 0 | H40: 1.5 | I40: =IF('Start Page'!$Y$36=1,($E40*$D40*'Start Page'!$K$35*$AB$39*$F40/10^6)*(($G40/$AB$39)^$H40),IF('Start Page'!$Y$36=2,($E40*$D40*'Start Page'!$K$35*$AC$39*$F40/10^6)*(($G40/$AC$39)^$H40),IF('Start Page'!$Y$36=3,('Unit Conversion Sheet'!E17*$E40*$D40*'Start Page'!$K$35*$AB$39*$F40/10^6)*(($G40/$AB$39)^$H40)))) -> 0 | P40: 2.5 | X40: Services - Main to Curb-Stop | Y40: 0.112 | Z40: 0.6
B41: Services - Curb-Stop to Meter | C41: =IF('Start Page'!$Y$42=1,"miles",IF('Start Page'!$Y$42=2,"kilometers")) -> miles | D41: =IF('Start Page'!Y42=1,'AWWA-Water Balance Data Transf.'!D38*'AWWA-Water Balance Data Transf.'!D40/5280,IF('Start Page'!Y42=2,'AWWA-Water Balance Data Transf.'!D38*'AWWA-Water Balance Data Transf.'!D40/1000)) -> 0 | E41: =IF(AND('Start Page'!$Y$36=1,'Start Page'!$Y$42=2),Y46,IF(AND('Start Page'!$Y$36=2,'Start Page'!$Y$42=2),Z41,IF(AND('Start Page'!$Y$36=3,'Start Page'!$Y$42=2),Y46,IF(AND('Start Page'!$Y$36=1,'Start Page'!$Y$42=1),Y41,IF(AND('Start Page'!$Y$36=2,'Start Page'!$Y$42=1),Z46,IF(AND('Start Page'!$Y$36=3,'Start Page'!$Y$42=1),Y41)))))) -> 4.78 | F41: =IF($S$38=1,$P$38,IF($S$38=2,$P$39,IF($S$38=3,$P$40,IF($S$38=4,$P$43)))) -> 1 | G41: ='AWWA-Water Balance Data Transf.'!$D$41 -> 0 | H41: 1.5 | I41: =IF('Start Page'!$Y$36=1,($E41*$D41*'Start Page'!$K$35*$AB$39*$F41/10^6)*(($G41/$AB$39)^$H41),IF('Start Page'!$Y$36=2,($E41*$D41*'Start Page'!$K$35*$AC$39*$F41/10^6)*(($G41/$AC$39)^$H41),IF('Start Page'!$Y$36=3,('Unit Conversion Sheet'!E17*$E41*$D41*'Start Page'!$K$35*$AB$39*$F41/10^6)*(($G41/$AB$39)^$H41)))) -> 0 | X41: Services - Curb-Stop to Meter | Y41: 4.78 | Z41: 16
B42: Total Background Leakage on Mains and Services | I42: =SUM(I39:I41) -> 0 | Y42: Component UARL Values | Z42: Component UARL Values
Y43: g/unit/d/psi | Z43: (l/unit/d/metres (head))
P44: =IF(AND(S38=4,P43<1),"ICF VALUE MUST BE GREATER THAN 1.0","") ->  | X44: Mains | Y44: =Y39/1.60934 -> 1.783339754 | Z44: =Z39*1.60934 -> 15.449664
X45: Services - Main to Curb-Stop | Y45: =Y40 -> 0.112 | Z45: =Z40 -> 0.6 | AB45: =AB39 & "psi" -> 70psi
X46: Services - Curb-Stop to Meter | Y46: =Y41/1.60934 -> 2.970161681 | Z46: =Z41*1.60934 -> 25.74944
B47: STEP 3: REPORTED FAILURES | Y47: g/km | Z47: l/mi
B49: Instructions: | C49: Drinking water utilities supply water through underground piping systems. Such systems - sooner or later - will incur failures in the form of leaks and breaks (ruptures) in distribution piping. Failures are categorized into three broad types: failures that occur on the primary water main piping , failures on customer service connection piping, and failures on appurtenances attached to water mains; including fire hydrants, valves and air valves or taps. This section "REPORTED FAILURES" of the model features a standardized calculation of the real loss volume stemming from failure events reported to the utility. Reported leaks and breaks (failure events) are defined as events that are brought to the attention of the water utility by the general public or other parties as a result of either water showing on the ground surface or other visible places, or of customer complaints. Follow Steps 3A,3B and 3C to calculate the real loss volume stemming from reported leaks and breaks.
B51: STEP 3A: REPORTED FAILURES ON MAINS
B53: Instructions: | C53: Enter the total number of failures by main size that were reported to and repaired by the water utility during the audit period in cells C58 to C77. Next enter the total length of mains for each mains size group in cells D58 to D77 (Note: this information is not required for the real loss component analysis but serves to calculate failure frequencies by mains size). Next enter the average awareness duration for reported failure events by mains size in cells I58 to I77 (Awareness duration is the average time from the occurrence of the failure event until the water utility becomes aware of its existence). Next enter the average duration of locating and containing reported failure events by mains size in cells K58 to K77. Next select either the default average leak flow rate provided by the model in cells P58 to P77 or select and enter your own utility specific average leakage flow rates in cells Q58 to R77. Average failure flow rates are based on AWWA M36 recommended flow rates and flow rates collected by the research team.
B55: Mains by Size | C55: Number of Leaks & Failures per Year | D55: Length of Main | E55: Failure Frequency | F55: Average Failure Flow Rate @ | G55: Average Pressure | H55: N1 (Leakage-Pressure Exponent) Value | I55: Average Failure Duration | M55: Average Annual Loss per Failure | N55: Total Annual Loss | P55: Use Default Average Failure Flow Rate | Q55: Use Utility Specific Average Failure Flow Rate | R55: Average Failure Flow Rate @ | AB55: Based on Select Preferred Volumetric Units for Audit and Component Analysis | AC55: Sum for whether F56 states that its at 70/49.2 pressure or at system specific pressure) | AD55: Pressure for average leak flow rate depending on whether user utilized default flow rate or utility specific flow rate (which does not need to be pressure corrected) | AH55: Number of Leaks times Location and Repair Duration | AI55: Real Loss Volume per Leak Stemming From Location and Repair Duration | AJ55: Total Annual Real Loss Volume Stemming From Location and Repair Duration
E56: =IF('Start Page'!$Y$42=1,"(number / 100miles / yr)",IF('Start Page'!$Y$42=2,"(number /100kilometers / yr)")) -> (number / 100miles / yr) | F56: =IF(AC58=19,IF('Start Page'!$Y$36=1,$AB$39 & "psi",IF('Start Page'!$Y$36=2,$AC$39 & "metres head",IF('Start Page'!$Y$36=3,$AB$39 & "psi"))),("Average System Pressure")) -> 70psi | I56: Average Awareness Duration | J56: Average Duration for Location and Repair/Shutoff Failure | L56: Total Duration | R56: ="Average System Pressure" -> Average System Pressure
D57: =$C$39 -> miles | F57: =IF('Start Page'!$Y$36=1,"(gpm)",IF('Start Page'!$Y$36=2,"(lpm)", IF('Start Page'!$Y$36=3,"(gpm)"))) -> (gpm) | G57: =$G$38 -> (psi) | I57: (days) | J57: (days) | L57: (days) | M57: =$I$38 -> (MG) | N57: =$I$38 -> (MG) | R57: =$F$57 -> (gpm) | Y57: gpm | Z57: lpm | AB57: =$F$57 -> (gpm) | AH57: days | AI57: =$N$57 -> (MG) | AJ57: =$N$57 -> (MG)
B58: =IF('Start Page'!$Y$36=2,"DN 50","Diameter 2''") -> Diameter 2'' | C58: 0 | D58: 0 | E58: =IF(D58=0,0,C58/D58*100) -> 0 | F58: =IF(S58=1,AB58,R58) -> 13.9 | G58: ='AWWA-Water Balance Data Transf.'!$D$41 -> 0 | H58: 1 | I58: 0 | J58: 0 | L58: =IF(ISERROR(IF(SUM(I58:K58)>'Start Page'!$K$35,'Start Page'!$K$35,SUM(I58:K58))),"",IF(SUM(I58:K58)>'Start Page'!$K$35,'Start Page'!$K$35,SUM(I58:K58))) -> 0 | M58: =IF(ISERROR(IF(C58=0,0,IF('Start Page'!$Y$36=1,($F58*60*24*$L58)*(($G58/AD58)^$H58)/10^6,IF('Start Page'!$Y$36=2,($F58*60*24*$L58)*(($G58/AD58)^$H58)/10^6,IF('Start Page'!$Y$36=3,('Unit Conversion Sheet'!$E$17*$F58*60*24*$L58)*(($G58/AD58)^$H58)/10^6))))),0,IF(C58=0,0,IF('Start Page'!$Y$36=1,($F58*60*24*$L58)*(($G58/AD58)^$H58)/10^6,IF('Start Page'!$Y$36=2,($F58*60*24*$L58)*(($G58/AD58)^$H58)/10^6,IF('Start Page'!$Y$36=3,('Unit Conversion Sheet'!$E$17*$F58*60*24*$L58)*(($G58/AD58)^$H58)/10^6))))) -> 0 | N58: =IF(C58=0,0,M58*C58) -> 0 | R58: 0 | S58: 1 | T58: provide option for default flow are or individual flow rate | Y58: 13.9 | Z58: =Y58*'Unit Conversion Sheet'!$C$5 -> 52.61722402 | AB58: =IF('Start Page'!$Y$36=1,Y58,IF('Start Page'!$Y$36=2,Z58,IF('Start Page'!$Y$36=3,Y58))) -> 13.9 | AC58: =SUM(S58:S76) -> 19 | AD58: =IF(S58=1,(IF('Start Page'!$Y$36=1,$AB$39,IF('Start Page'!$Y$36=2,$AC$39,IF('Start Page'!$Y$36=3,$AB$39)))),'AWWA-Water Balance Data Transf.'!$D$41) -> 70 | AE58: ='AWWA-Water Balance Data Transf.'!$E$41 -> PSI | AH58: =IF(C58=0,"",C58*J58) ->  | AI58: =IF(C58=0,"",IF('Start Page'!$Y$36=1,($F58*60*24*J58)*(($G58/$AB$39)^$H58)/10^6,IF('Start Page'!$Y$36=2,($F58*60*24*J58)*(($G58/$AC$39)^$H58)/10^6,IF('Start Page'!$Y$36=3,('Unit Conversion Sheet'!$E$17*$F58*60*24*J58)*(($G58/$AB$39)^$H58)/10^6)))) ->  | AJ58: =IF(C58=0,"",AI58*C58) -> 
B59: =IF('Start Page'!$Y$36=2,"DN 80","Diameter 3''") -> Diameter 3'' | C59: 0 | D59: 0 | E59: =IF(D59=0,0,C59/D59*100) -> 0 | F59: =IF(S59=1,AB59,R59) -> 13.9 | G59: ='AWWA-Water Balance Data Transf.'!$D$41 -> 0 | H59: 1 | I59: 0 | J59: 0 | L59: =IF(ISERROR(IF(SUM(I59:K59)>'Start Page'!$K$35,'Start Page'!$K$35,SUM(I59:K59))),"",IF(SUM(I59:K59)>'Start Page'!$K$35,'Start Page'!$K$35,SUM(I59:K59))) -> 0 | M59: =IF(ISERROR(IF(C59=0,0,IF('Start Page'!$Y$36=1,($F59*60*24*$L59)*(($G59/AD59)^$H59)/10^6,IF('Start Page'!$Y$36=2,($F59*60*24*$L59)*(($G59/AD59)^$H59)/10^6,IF('Start Page'!$Y$36=3,('Unit Conversion Sheet'!$E$17*$F59*60*24*$L59)*(($G59/AD59)^$H59)/10^6))))),0,IF(C59=0,0,IF('Start Page'!$Y$36=1,($F59*60*24*$L59)*(($G59/AD59)^$H59)/10^6,IF('Start Page'!$Y$36=2,($F59*60*24*$L59)*(($G59/AD59)^$H59)/10^6,IF('Start Page'!$Y$36=3,('Unit Conversion Sheet'!$E$17*$F59*60*24*$L59)*(($G59/AD59)^$H59)/10^6))))) -> 0 | N59: =IF(C59=0,0,M59*C59) -> 0 | R59: 0 | S59: 1 | Y59: 13.9 | Z59: =Y59*'Unit Conversion Sheet'!$C$5 -> 52.61722402 | AB59: =IF('Start Page'!$Y$36=1,Y59,IF('Start Page'!$Y$36=2,Z59,IF('Start Page'!$Y$36=3,Y59))) -> 13.9 | AD59: =IF(S59=1,(IF('Start Page'!$Y$36=1,$AB$39,IF('Start Page'!$Y$36=2,$AC$39,IF('Start Page'!$Y$36=3,$AB$39)))),'AWWA-Water Balance Data Transf.'!$D$41) -> 70 | AE59: ='AWWA-Water Balance Data Transf.'!$E$41 -> PSI | AH59: =IF(C59=0,"",C59*J59) ->  | AI59: =IF(C59=0,"",IF('Start Page'!$Y$36=1,($F59*60*24*J59)*(($G59/$AB$39)^$H59)/10^6,IF('Start Page'!$Y$36=2,($F59*60*24*J59)*(($G59/$AC$39)^$H59)/10^6,IF('Start Page'!$Y$36=3,('Unit Conversion Sheet'!$E$17*$F59*60*24*J59)*(($G59/$AB$39)^$H59)/10^6)))) ->  | AJ59: =IF(C59=0,"",AI59*C59) -> 
B60: =IF('Start Page'!$Y$36=2,"DN 100","Diameter 4''") -> Diameter 4'' | C60: 0 | D60: 0 | E60: 0 | F60: 44 | G60: ='AWWA-Water Balance Data Transf.'!$D$41 -> 0 | H60: 1 | I60: 0 | J60: 0 | L60: =IF(ISERROR(IF(SUM(I60:K60)>'Start Page'!$K$35,'Start Page'!$K$35,SUM(I60:K60))),"",IF(SUM(I60:K60)>'Start Page'!$K$35,'Start Page'!$K$35,SUM(I60:K60))) -> 0 | M60: =IF(ISERROR(IF(C60=0,0,IF('Start Page'!$Y$36=1,($F60*60*24*$L60)*(($G60/AD60)^$H60)/10^6,IF('Start Page'!$Y$36=2,($F60*60*24*$L60)*(($G60/AD60)^$H60)/10^6,IF('Start Page'!$Y$36=3,('Unit Conversion Sheet'!$E$17*$F60*60*24*$L60)*(($G60/AD60)^$H60)/10^6))))),0,IF(C60=0,0,IF('Start Page'!$Y$36=1,($F60*60*24*$L60)*(($G60/AD60)^$H60)/10^6,IF('Start Page'!$Y$36=2,($F60*60*24*$L60)*(($G60/AD60)^$H60)/10^6,IF('Start Page'!$Y$36=3,('Unit Conversion Sheet'!$E$17*$F60*60*24*$L60)*(($G60/AD60)^$H60)/10^6))))) -> 0 | N60: 0 | R60: 0 | S60: 1 | Y60: =22*2 -> 44 | Z60: =Y60*'Unit Conversion Sheet'!$C$5 -> 166.5581192 | AB60: =IF('Start Page'!$Y$36=1,Y60,IF('Start Page'!$Y$36=2,Z60,IF('Start Page'!$Y$36=3,Y60))) -> 44 | AD60: =IF(S60=1,(IF('Start Page'!$Y$36=1,$AB$39,IF('Start Page'!$Y$36=2,$AC$39,IF('Start Page'!$Y$36=3,$AB$39)))),'AWWA-Water Balance Data Transf.'!$D$41) -> 70 | AE60: ='AWWA-Water Balance Data Transf.'!$E$41 -> PSI | AI60: =IF(C60=0,"",IF('Start Page'!$Y$36=1,($F60*60*24*J60)*(($G60/$AB$39)^$H60)/10^6,IF('Start Page'!$Y$36=2,($F60*60*24*J60)*(($G60/$AC$39)^$H60)/10^6,IF('Start Page'!$Y$36=3,('Unit Conversion Sheet'!$E$17*$F60*60*24*J60)*(($G60/$AB$39)^$H60)/10^6)))) -> 
B61: =IF('Start Page'!$Y$36=2,"DN 150","Diameter 6''") -> Diameter 6'' | C61: 0 | D61: 0 | E61: 0 | F61: 92 | G61: ='AWWA-Water Balance Data Transf.'!$D$41 -> 0 | H61: 1 | I61: 0 | J61: 0 | L61: =IF(ISERROR(IF(SUM(I61:K61)>'Start Page'!$K$35,'Start Page'!$K$35,SUM(I61:K61))),"",IF(SUM(I61:K61)>'Start Page'!$K$35,'Start Page'!$K$35,SUM(I61:K61))) -> 0 | M61: =IF(ISERROR(IF(C61=0,0,IF('Start Page'!$Y$36=1,($F61*60*24*$L61)*(($G61/AD61)^$H61)/10^6,IF('Start Page'!$Y$36=2,($F61*60*24*$L61)*(($G61/AD61)^$H61)/10^6,IF('Start Page'!$Y$36=3,('Unit Conversion Sheet'!$E$17*$F61*60*24*$L61)*(($G61/AD61)^$H61)/10^6))))),0,IF(C61=0,0,IF('Start Page'!$Y$36=1,($F61*60*24*$L61)*(($G61/AD61)^$H61)/10^6,IF('Start Page'!$Y$36=2,($F61*60*24*$L61)*(($G61/AD61)^$H61)/10^6,IF('Start Page'!$Y$36=3,('Unit Conversion Sheet'!$E$17*$F61*60*24*$L61)*(($G61/AD61)^$H61)/10^6))))) -> 0 | N61: 0 | R61: 0 | S61: 1 | Y61: =46*2 -> 92 | Z61: =Y61*'Unit Conversion Sheet'!$C$5 -> 348.2578856 | AB61: =IF('Start Page'!$Y$36=1,Y61,IF('Start Page'!$Y$36=2,Z61,IF('Start Page'!$Y$36=3,Y61))) -> 92 | AD61: =IF(S61=1,(IF('Start Page'!$Y$36=1,$AB$39,IF('Start Page'!$Y$36=2,$AC$39,IF('Start Page'!$Y$36=3,$AB$39)))),'AWWA-Water Balance Data Transf.'!$D$41) -> 70 | AE61: ='AWWA-Water Balance Data Transf.'!$E$41 -> PSI | AI61: =IF(C61=0,"",IF('Start Page'!$Y$36=1,($F61*60*24*J61)*(($G61/$AB$39)^$H61)/10^6,IF('Start Page'!$Y$36=2,($F61*60*24*J61)*(($G61/$AC$39)^$H61)/10^6,IF('Start Page'!$Y$36=3,('Unit Conversion Sheet'!$E$17*$F61*60*24*J61)*(($G61/$AB$39)^$H61)/10^6)))) -> 
B62: =IF('Start Page'!$Y$36=2,"DN 200","Diameter 8''") -> Diameter 8'' | C62: 0 | D62: 0 | E62: 0 | F62: 92 | G62: ='AWWA-Water Balance Data Transf.'!$D$41 -> 0 | H62: 1 | I62: 0 | J62: 0 | L62: =IF(ISERROR(IF(SUM(I62:K62)>'Start Page'!$K$35,'Start Page'!$K$35,SUM(I62:K62))),"",IF(SUM(I62:K62)>'Start Page'!$K$35,'Start Page'!$K$35,SUM(I62:K62))) -> 0 | M62: =IF(ISERROR(IF(C62=0,0,IF('Start Page'!$Y$36=1,($F62*60*24*$L62)*(($G62/AD62)^$H62)/10^6,IF('Start Page'!$Y$36=2,($F62*60*24*$L62)*(($G62/AD62)^$H62)/10^6,IF('Start Page'!$Y$36=3,('Unit Conversion Sheet'!$E$17*$F62*60*24*$L62)*(($G62/AD62)^$H62)/10^6))))),0,IF(C62=0,0,IF('Start Page'!$Y$36=1,($F62*60*24*$L62)*(($G62/AD62)^$H62)/10^6,IF('Start Page'!$Y$36=2,($F62*60*24*$L62)*(($G62/AD62)^$H62)/10^6,IF('Start Page'!$Y$36=3,('Unit Conversion Sheet'!$E$17*$F62*60*24*$L62)*(($G62/AD62)^$H62)/10^6))))) -> 0 | N62: 0 | R62: 0 | S62: 1 | Y62: =46*2 -> 92 | Z62: =Y62*'Unit Conversion Sheet'!$C$5 -> 348.2578856 | AB62: =IF('Start Page'!$Y$36=1,Y62,IF('Start Page'!$Y$36=2,Z62,IF('Start Page'!$Y$36=3,Y62))) -> 92 | AD62: =IF(S62=1,(IF('Start Page'!$Y$36=1,$AB$39,IF('Start Page'!$Y$36=2,$AC$39,IF('Start Page'!$Y$36=3,$AB$39)))),'AWWA-Water Balance Data Transf.'!$D$41) -> 70 | AE62: ='AWWA-Water Balance Data Transf.'!$E$41 -> PSI | AI62: =IF(C62=0,"",IF('Start Page'!$Y$36=1,($F62*60*24*J62)*(($G62/$AB$39)^$H62)/10^6,IF('Start Page'!$Y$36=2,($F62*60*24*J62)*(($G62/$AC$39)^$H62)/10^6,IF('Start Page'!$Y$36=3,('Unit Conversion Sheet'!$E$17*$F62*60*24*J62)*(($G62/$AB$39)^$H62)/10^6)))) -> 
B63: =IF('Start Page'!$Y$36=2,"DN 250","Diameter 10''") -> Diameter 10'' | C63: 0 | D63: 0 | E63: 0 | F63: 92 | G63: ='AWWA-Water Balance Data Transf.'!$D$41 -> 0 | H63: 1 | I63: 0 | J63: 0 | L63: =IF(ISERROR(IF(SUM(I63:K63)>'Start Page'!$K$35,'Start Page'!$K$35,SUM(I63:K63))),"",IF(SUM(I63:K63)>'Start Page'!$K$35,'Start Page'!$K$35,SUM(I63:K63))) -> 0 | M63: =IF(ISERROR(IF(C63=0,0,IF('Start Page'!$Y$36=1,($F63*60*24*$L63)*(($G63/AD63)^$H63)/10^6,IF('Start Page'!$Y$36=2,($F63*60*24*$L63)*(($G63/AD63)^$H63)/10^6,IF('Start Page'!$Y$36=3,('Unit Conversion Sheet'!$E$17*$F63*60*24*$L63)*(($G63/AD63)^$H63)/10^6))))),0,IF(C63=0,0,IF('Start Page'!$Y$36=1,($F63*60*24*$L63)*(($G63/AD63)^$H63)/10^6,IF('Start Page'!$Y$36=2,($F63*60*24*$L63)*(($G63/AD63)^$H63)/10^6,IF('Start Page'!$Y$36=3,('Unit Conversion Sheet'!$E$17*$F63*60*24*$L63)*(($G63/AD63)^$H63)/10^6))))) -> 0 | N63: 0 | R63: 0 | S63: 1 | Y63: =46*2 -> 92 | Z63: =Y63*'Unit Conversion Sheet'!$C$5 -> 348.2578856 | AB63: =IF('Start Page'!$Y$36=1,Y63,IF('Start Page'!$Y$36=2,Z63,IF('Start Page'!$Y$36=3,Y63))) -> 92 | AD63: =IF(S63=1,(IF('Start Page'!$Y$36=1,$AB$39,IF('Start Page'!$Y$36=2,$AC$39,IF('Start Page'!$Y$36=3,$AB$39)))),'AWWA-Water Balance Data Transf.'!$D$41) -> 70 | AE63: ='AWWA-Water Balance Data Transf.'!$E$41 -> PSI | AI63: =IF(C63=0,"",IF('Start Page'!$Y$36=1,($F63*60*24*J63)*(($G63/$AB$39)^$H63)/10^6,IF('Start Page'!$Y$36=2,($F63*60*24*J63)*(($G63/$AC$39)^$H63)/10^6,IF('Start Page'!$Y$36=3,('Unit Conversion Sheet'!$E$17*$F63*60*24*J63)*(($G63/$AB$39)^$H63)/10^6)))) -> 
B64: =IF('Start Page'!$Y$36=2,"DN 300","Diameter 12''") -> Diameter 12'' | C64: 0 | D64: 0 | E64: 0 | F64: 222 | G64: ='AWWA-Water Balance Data Transf.'!$D$41 -> 0 | H64: 1 | I64: 0 | J64: 0 | L64: =IF(ISERROR(IF(SUM(I64:K64)>'Start Page'!$K$35,'Start Page'!$K$35,SUM(I64:K64))),"",IF(SUM(I64:K64)>'Start Page'!$K$35,'Start Page'!$K$35,SUM(I64:K64))) -> 0 | M64: =IF(ISERROR(IF(C64=0,0,IF('Start Page'!$Y$36=1,($F64*60*24*$L64)*(($G64/AD64)^$H64)/10^6,IF('Start Page'!$Y$36=2,($F64*60*24*$L64)*(($G64/AD64)^$H64)/10^6,IF('Start Page'!$Y$36=3,('Unit Conversion Sheet'!$E$17*$F64*60*24*$L64)*(($G64/AD64)^$H64)/10^6))))),0,IF(C64=0,0,IF('Start Page'!$Y$36=1,($F64*60*24*$L64)*(($G64/AD64)^$H64)/10^6,IF('Start Page'!$Y$36=2,($F64*60*24*$L64)*(($G64/AD64)^$H64)/10^6,IF('Start Page'!$Y$36=3,('Unit Conversion Sheet'!$E$17*$F64*60*24*$L64)*(($G64/AD64)^$H64)/10^6))))) -> 0 | N64: 0 | R64: 0 | S64: 1 | Y64: =111*2 -> 222 | Z64: =Y64*'Unit Conversion Sheet'!$C$5 -> 840.3614196 | AB64: =IF('Start Page'!$Y$36=1,Y64,IF('Start Page'!$Y$36=2,Z64,IF('Start Page'!$Y$36=3,Y64))) -> 222 | AD64: =IF(S64=1,(IF('Start Page'!$Y$36=1,$AB$39,IF('Start Page'!$Y$36=2,$AC$39,IF('Start Page'!$Y$36=3,$AB$39)))),'AWWA-Water Balance Data Transf.'!$D$41) -> 70 | AE64: ='AWWA-Water Balance Data Transf.'!$E$41 -> PSI | AI64: =IF(C64=0,"",IF('Start Page'!$Y$36=1,($F64*60*24*J64)*(($G64/$AB$39)^$H64)/10^6,IF('Start Page'!$Y$36=2,($F64*60*24*J64)*(($G64/$AC$39)^$H64)/10^6,IF('Start Page'!$Y$36=3,('Unit Conversion Sheet'!$E$17*$F64*60*24*J64)*(($G64/$AB$39)^$H64)/10^6)))) -> 
B65: =IF('Start Page'!$Y$36=2,"DN 350","Diameter 14''") -> Diameter 14'' | C65: 0 | D65: 0 | E65: 0 | F65: 222 | G65: ='AWWA-Water Balance Data Transf.'!$D$41 -> 0 | H65: 1 | I65: 0 | J65: 0 | L65: =IF(ISERROR(IF(SUM(I65:K65)>'Start Page'!$K$35,'Start Page'!$K$35,SUM(I65:K65))),"",IF(SUM(I65:K65)>'Start Page'!$K$35,'Start Page'!$K$35,SUM(I65:K65))) -> 0 | M65: =IF(ISERROR(IF(C65=0,0,IF('Start Page'!$Y$36=1,($F65*60*24*$L65)*(($G65/AD65)^$H65)/10^6,IF('Start Page'!$Y$36=2,($F65*60*24*$L65)*(($G65/AD65)^$H65)/10^6,IF('Start Page'!$Y$36=3,('Unit Conversion Sheet'!$E$17*$F65*60*24*$L65)*(($G65/AD65)^$H65)/10^6))))),0,IF(C65=0,0,IF('Start Page'!$Y$36=1,($F65*60*24*$L65)*(($G65/AD65)^$H65)/10^6,IF('Start Page'!$Y$36=2,($F65*60*24*$L65)*(($G65/AD65)^$H65)/10^6,IF('Start Page'!$Y$36=3,('Unit Conversion Sheet'!$E$17*$F65*60*24*$L65)*(($G65/AD65)^$H65)/10^6))))) -> 0 | N65: 0 | R65: 0 | S65: 1 | Y65: =111*2 -> 222 | Z65: =Y65*'Unit Conversion Sheet'!$C$5 -> 840.3614196 | AB65: =IF('Start Page'!$Y$36=1,Y65,IF('Start Page'!$Y$36=2,Z65,IF('Start Page'!$Y$36=3,Y65))) -> 222 | AD65: =IF(S65=1,(IF('Start Page'!$Y$36=1,$AB$39,IF('Start Page'!$Y$36=2,$AC$39,IF('Start Page'!$Y$36=3,$AB$39)))),'AWWA-Water Balance Data Transf.'!$D$41) -> 70 | AE65: ='AWWA-Water Balance Data Transf.'!$E$41 -> PSI | AI65: =IF(C65=0,"",IF('Start Page'!$Y$36=1,($F65*60*24*J65)*(($G65/$AB$39)^$H65)/10^6,IF('Start Page'!$Y$36=2,($F65*60*24*J65)*(($G65/$AC$39)^$H65)/10^6,IF('Start Page'!$Y$36=3,('Unit Conversion Sheet'!$E$17*$F65*60*24*J65)*(($G65/$AB$39)^$H65)/10^6)))) -> 
B66: =IF('Start Page'!$Y$36=2,"DN 400","Diameter 16''") -> Diameter 16'' | C66: 0 | D66: 0 | E66: 0 | F66: 222 | G66: ='AWWA-Water Balance Data Transf.'!$D$41 -> 0 | H66: 1 | I66: 0 | J66: 0 | L66: =IF(ISERROR(IF(SUM(I66:K66)>'Start Page'!$K$35,'Start Page'!$K$35,SUM(I66:K66))),"",IF(SUM(I66:K66)>'Start Page'!$K$35,'Start Page'!$K$35,SUM(I66:K66))) -> 0 | M66: =IF(ISERROR(IF(C66=0,0,IF('Start Page'!$Y$36=1,($F66*60*24*$L66)*(($G66/AD66)^$H66)/10^6,IF('Start Page'!$Y$36=2,($F66*60*24*$L66)*(($G66/AD66)^$H66)/10^6,IF('Start Page'!$Y$36=3,('Unit Conversion Sheet'!$E$17*$F66*60*24*$L66)*(($G66/AD66)^$H66)/10^6))))),0,IF(C66=0,0,IF('Start Page'!$Y$36=1,($F66*60*24*$L66)*(($G66/AD66)^$H66)/10^6,IF('Start Page'!$Y$36=2,($F66*60*24*$L66)*(($G66/AD66)^$H66)/10^6,IF('Start Page'!$Y$36=3,('Unit Conversion Sheet'!$E$17*$F66*60*24*$L66)*(($G66/AD66)^$H66)/10^6))))) -> 0 | N66: 0 | R66: 0 | S66: 1 | Y66: 222 | Z66: =Y66*'Unit Conversion Sheet'!$C$5 -> 840.3614196 | AB66: =IF('Start Page'!$Y$36=1,Y66,IF('Start Page'!$Y$36=2,Z66,IF('Start Page'!$Y$36=3,Y66))) -> 222 | AD66: =IF(S66=1,(IF('Start Page'!$Y$36=1,$AB$39,IF('Start Page'!$Y$36=2,$AC$39,IF('Start Page'!$Y$36=3,$AB$39)))),'AWWA-Water Balance Data Transf.'!$D$41) -> 70 | AE66: ='AWWA-Water Balance Data Transf.'!$E$41 -> PSI | AI66: =IF(C66=0,"",IF('Start Page'!$Y$36=1,($F66*60*24*J66)*(($G66/$AB$39)^$H66)/10^6,IF('Start Page'!$Y$36=2,($F66*60*24*J66)*(($G66/$AC$39)^$H66)/10^6,IF('Start Page'!$Y$36=3,('Unit Conversion Sheet'!$E$17*$F66*60*24*J66)*(($G66/$AB$39)^$H66)/10^6)))) -> 
B67: =IF('Start Page'!$Y$36=2,"DN 450","Diameter 18''") -> Diameter 18'' | C67: 0 | D67: 0 | E67: 0 | F67: 222 | G67: ='AWWA-Water Balance Data Transf.'!$D$41 -> 0 | H67: 1 | I67: 0 | J67: 0 | L67: =IF(ISERROR(IF(SUM(I67:K67)>'Start Page'!$K$35,'Start Page'!$K$35,SUM(I67:K67))),"",IF(SUM(I67:K67)>'Start Page'!$K$35,'Start Page'!$K$35,SUM(I67:K67))) -> 0 | M67: =IF(ISERROR(IF(C67=0,0,IF('Start Page'!$Y$36=1,($F67*60*24*$L67)*(($G67/AD67)^$H67)/10^6,IF('Start Page'!$Y$36=2,($F67*60*24*$L67)*(($G67/AD67)^$H67)/10^6,IF('Start Page'!$Y$36=3,('Unit Conversion Sheet'!$E$17*$F67*60*24*$L67)*(($G67/AD67)^$H67)/10^6))))),0,IF(C67=0,0,IF('Start Page'!$Y$36=1,($F67*60*24*$L67)*(($G67/AD67)^$H67)/10^6,IF('Start Page'!$Y$36=2,($F67*60*24*$L67)*(($G67/AD67)^$H67)/10^6,IF('Start Page'!$Y$36=3,('Unit Conversion Sheet'!$E$17*$F67*60*24*$L67)*(($G67/AD67)^$H67)/10^6))))) -> 0 | N67: 0 | R67: 0 | S67: 1 | Y67: 222 | Z67: =Y67*'Unit Conversion Sheet'!$C$5 -> 840.3614196 | AB67: =IF('Start Page'!$Y$36=1,Y67,IF('Start Page'!$Y$36=2,Z67,IF('Start Page'!$Y$36=3,Y67))) -> 222 | AD67: =IF(S67=1,(IF('Start Page'!$Y$36=1,$AB$39,IF('Start Page'!$Y$36=2,$AC$39,IF('Start Page'!$Y$36=3,$AB$39)))),'AWWA-Water Balance Data Transf.'!$D$41) -> 70 | AE67: ='AWWA-Water Balance Data Transf.'!$E$41 -> PSI | AI67: =IF(C67=0,"",IF('Start Page'!$Y$36=1,($F67*60*24*J67)*(($G67/$AB$39)^$H67)/10^6,IF('Start Page'!$Y$36=2,($F67*60*24*J67)*(($G67/$AC$39)^$H67)/10^6,IF('Start Page'!$Y$36=3,('Unit Conversion Sheet'!$E$17*$F67*60*24*J67)*(($G67/$AB$39)^$H67)/10^6)))) -> 
B68: =IF('Start Page'!$Y$36=2,"DN 500","Diameter 20''") -> Diameter 20'' | C68: 0 | D68: 0 | E68: 0 | F68: 222 | G68: ='AWWA-Water Balance Data Transf.'!$D$41 -> 0 | H68: 1 | I68: 0 | J68: 0 | L68: =IF(ISERROR(IF(SUM(I68:K68)>'Start Page'!$K$35,'Start Page'!$K$35,SUM(I68:K68))),"",IF(SUM(I68:K68)>'Start Page'!$K$35,'Start Page'!$K$35,SUM(I68:K68))) -> 0 | M68: =IF(ISERROR(IF(C68=0,0,IF('Start Page'!$Y$36=1,($F68*60*24*$L68)*(($G68/AD68)^$H68)/10^6,IF('Start Page'!$Y$36=2,($F68*60*24*$L68)*(($G68/AD68)^$H68)/10^6,IF('Start Page'!$Y$36=3,('Unit Conversion Sheet'!$E$17*$F68*60*24*$L68)*(($G68/AD68)^$H68)/10^6))))),0,IF(C68=0,0,IF('Start Page'!$Y$36=1,($F68*60*24*$L68)*(($G68/AD68)^$H68)/10^6,IF('Start Page'!$Y$36=2,($F68*60*24*$L68)*(($G68/AD68)^$H68)/10^6,IF('Start Page'!$Y$36=3,('Unit Conversion Sheet'!$E$17*$F68*60*24*$L68)*(($G68/AD68)^$H68)/10^6))))) -> 0 | N68: 0 | R68: 0 | S68: 1 | Y68: 222 | Z68: =Y68*'Unit Conversion Sheet'!$C$5 -> 840.3614196 | AB68: =IF('Start Page'!$Y$36=1,Y68,IF('Start Page'!$Y$36=2,Z68,IF('Start Page'!$Y$36=3,Y68))) -> 222 | AD68: =IF(S68=1,(IF('Start Page'!$Y$36=1,$AB$39,IF('Start Page'!$Y$36=2,$AC$39,IF('Start Page'!$Y$36=3,$AB$39)))),'AWWA-Water Balance Data Transf.'!$D$41) -> 70 | AE68: ='AWWA-Water Balance Data Transf.'!$E$41 -> PSI | AI68: =IF(C68=0,"",IF('Start Page'!$Y$36=1,($F68*60*24*J68)*(($G68/$AB$39)^$H68)/10^6,IF('Start Page'!$Y$36=2,($F68*60*24*J68)*(($G68/$AC$39)^$H68)/10^6,IF('Start Page'!$Y$36=3,('Unit Conversion Sheet'!$E$17*$F68*60*24*J68)*(($G68/$AB$39)^$H68)/10^6)))) -> 
B69: =IF('Start Page'!$Y$36=2,"DN 600","Diameter 24''") -> Diameter 24'' | C69: 0 | D69: 0 | E69: 0 | F69: 222 | G69: ='AWWA-Water Balance Data Transf.'!$D$41 -> 0 | H69: 1 | I69: 0 | J69: 0 | L69: =IF(ISERROR(IF(SUM(I69:K69)>'Start Page'!$K$35,'Start Page'!$K$35,SUM(I69:K69))),"",IF(SUM(I69:K69)>'Start Page'!$K$35,'Start Page'!$K$35,SUM(I69:K69))) -> 0 | M69: =IF(ISERROR(IF(C69=0,0,IF('Start Page'!$Y$36=1,($F69*60*24*$L69)*(($G69/AD69)^$H69)/10^6,IF('Start Page'!$Y$36=2,($F69*60*24*$L69)*(($G69/AD69)^$H69)/10^6,IF('Start Page'!$Y$36=3,('Unit Conversion Sheet'!$E$17*$F69*60*24*$L69)*(($G69/AD69)^$H69)/10^6))))),0,IF(C69=0,0,IF('Start Page'!$Y$36=1,($F69*60*24*$L69)*(($G69/AD69)^$H69)/10^6,IF('Start Page'!$Y$36=2,($F69*60*24*$L69)*(($G69/AD69)^$H69)/10^6,IF('Start Page'!$Y$36=3,('Unit Conversion Sheet'!$E$17*$F69*60*24*$L69)*(($G69/AD69)^$H69)/10^6))))) -> 0 | N69: 0 | R69: 0 | S69: 1 | Y69: 222 | Z69: =Y69*'Unit Conversion Sheet'!$C$5 -> 840.3614196 | AB69: =IF('Start Page'!$Y$36=1,Y69,IF('Start Page'!$Y$36=2,Z69,IF('Start Page'!$Y$36=3,Y69))) -> 222 | AD69: =IF(S69=1,(IF('Start Page'!$Y$36=1,$AB$39,IF('Start Page'!$Y$36=2,$AC$39,IF('Start Page'!$Y$36=3,$AB$39)))),'AWWA-Water Balance Data Transf.'!$D$41) -> 70 | AE69: ='AWWA-Water Balance Data Transf.'!$E$41 -> PSI | AI69: =IF(C69=0,"",IF('Start Page'!$Y$36=1,($F69*60*24*J69)*(($G69/$AB$39)^$H69)/10^6,IF('Start Page'!$Y$36=2,($F69*60*24*J69)*(($G69/$AC$39)^$H69)/10^6,IF('Start Page'!$Y$36=3,('Unit Conversion Sheet'!$E$17*$F69*60*24*J69)*(($G69/$AB$39)^$H69)/10^6)))) -> 
B70: =IF('Start Page'!$Y$36=2,"DN 750","Diameter 30''") -> Diameter 30'' | C70: 0 | D70: 0 | E70: 0 | F70: 222 | G70: ='AWWA-Water Balance Data Transf.'!$D$41 -> 0 | H70: 1 | I70: 0 | J70: 0 | L70: =IF(ISERROR(IF(SUM(I70:K70)>'Start Page'!$K$35,'Start Page'!$K$35,SUM(I70:K70))),"",IF(SUM(I70:K70)>'Start Page'!$K$35,'Start Page'!$K$35,SUM(I70:K70))) -> 0 | M70: =IF(ISERROR(IF(C70=0,0,IF('Start Page'!$Y$36=1,($F70*60*24*$L70)*(($G70/AD70)^$H70)/10^6,IF('Start Page'!$Y$36=2,($F70*60*24*$L70)*(($G70/AD70)^$H70)/10^6,IF('Start Page'!$Y$36=3,('Unit Conversion Sheet'!$E$17*$F70*60*24*$L70)*(($G70/AD70)^$H70)/10^6))))),0,IF(C70=0,0,IF('Start Page'!$Y$36=1,($F70*60*24*$L70)*(($G70/AD70)^$H70)/10^6,IF('Start Page'!$Y$36=2,($F70*60*24*$L70)*(($G70/AD70)^$H70)/10^6,IF('Start Page'!$Y$36=3,('Unit Conversion Sheet'!$E$17*$F70*60*24*$L70)*(($G70/AD70)^$H70)/10^6))))) -> 0 | N70: 0 | R70: 0 | S70: 1 | Y70: 222 | Z70: =Y70*'Unit Conversion Sheet'!$C$5 -> 840.3614196 | AB70: =IF('Start Page'!$Y$36=1,Y70,IF('Start Page'!$Y$36=2,Z70,IF('Start Page'!$Y$36=3,Y70))) -> 222 | AD70: =IF(S70=1,(IF('Start Page'!$Y$36=1,$AB$39,IF('Start Page'!$Y$36=2,$AC$39,IF('Start Page'!$Y$36=3,$AB$39)))),'AWWA-Water Balance Data Transf.'!$D$41) -> 70 | AE70: ='AWWA-Water Balance Data Transf.'!$E$41 -> PSI | AI70: =IF(C70=0,"",IF('Start Page'!$Y$36=1,($F70*60*24*J70)*(($G70/$AB$39)^$H70)/10^6,IF('Start Page'!$Y$36=2,($F70*60*24*J70)*(($G70/$AC$39)^$H70)/10^6,IF('Start Page'!$Y$36=3,('Unit Conversion Sheet'!$E$17*$F70*60*24*J70)*(($G70/$AB$39)^$H70)/10^6)))) -> 
B71: =IF('Start Page'!$Y$36=2,"DN 900","Diameter 36''") -> Diameter 36'' | C71: 0 | D71: 0 | E71: 0 | F71: 222 | G71: ='AWWA-Water Balance Data Transf.'!$D$41 -> 0 | H71: 1 | I71: 0 | J71: 0 | L71: =IF(ISERROR(IF(SUM(I71:K71)>'Start Page'!$K$35,'Start Page'!$K$35,SUM(I71:K71))),"",IF(SUM(I71:K71)>'Start Page'!$K$35,'Start Page'!$K$35,SUM(I71:K71))) -> 0 | M71: =IF(ISERROR(IF(C71=0,0,IF('Start Page'!$Y$36=1,($F71*60*24*$L71)*(($G71/AD71)^$H71)/10^6,IF('Start Page'!$Y$36=2,($F71*60*24*$L71)*(($G71/AD71)^$H71)/10^6,IF('Start Page'!$Y$36=3,('Unit Conversion Sheet'!$E$17*$F71*60*24*$L71)*(($G71/AD71)^$H71)/10^6))))),0,IF(C71=0,0,IF('Start Page'!$Y$36=1,($F71*60*24*$L71)*(($G71/AD71)^$H71)/10^6,IF('Start Page'!$Y$36=2,($F71*60*24*$L71)*(($G71/AD71)^$H71)/10^6,IF('Start Page'!$Y$36=3,('Unit Conversion Sheet'!$E$17*$F71*60*24*$L71)*(($G71/AD71)^$H71)/10^6))))) -> 0 | N71: 0 | R71: 0 | S71: 1 | Y71: 222 | Z71: =Y71*'Unit Conversion Sheet'!$C$5 -> 840.3614196 | AB71: =IF('Start Page'!$Y$36=1,Y71,IF('Start Page'!$Y$36=2,Z71,IF('Start Page'!$Y$36=3,Y71))) -> 222 | AD71: =IF(S71=1,(IF('Start Page'!$Y$36=1,$AB$39,IF('Start Page'!$Y$36=2,$AC$39,IF('Start Page'!$Y$36=3,$AB$39)))),'AWWA-Water Balance Data Transf.'!$D$41) -> 70 | AE71: ='AWWA-Water Balance Data Transf.'!$E$41 -> PSI | AI71: =IF(C71=0,"",IF('Start Page'!$Y$36=1,($F71*60*24*J71)*(($G71/$AB$39)^$H71)/10^6,IF('Start Page'!$Y$36=2,($F71*60*24*J71)*(($G71/$AC$39)^$H71)/10^6,IF('Start Page'!$Y$36=3,('Unit Conversion Sheet'!$E$17*$F71*60*24*J71)*(($G71/$AB$39)^$H71)/10^6)))) -> 
B72: =IF('Start Page'!$Y$36=2,"DN 1050","Diameter 42''") -> Diameter 42'' | C72: 0 | D72: 0 | E72: 0 | F72: 222 | G72: ='AWWA-Water Balance Data Transf.'!$D$41 -> 0 | H72: 1 | I72: 0 | J72: 0 | L72: =IF(ISERROR(IF(SUM(I72:K72)>'Start Page'!$K$35,'Start Page'!$K$35,SUM(I72:K72))),"",IF(SUM(I72:K72)>'Start Page'!$K$35,'Start Page'!$K$35,SUM(I72:K72))) -> 0 | M72: =IF(ISERROR(IF(C72=0,0,IF('Start Page'!$Y$36=1,($F72*60*24*$L72)*(($G72/AD72)^$H72)/10^6,IF('Start Page'!$Y$36=2,($F72*60*24*$L72)*(($G72/AD72)^$H72)/10^6,IF('Start Page'!$Y$36=3,('Unit Conversion Sheet'!$E$17*$F72*60*24*$L72)*(($G72/AD72)^$H72)/10^6))))),0,IF(C72=0,0,IF('Start Page'!$Y$36=1,($F72*60*24*$L72)*(($G72/AD72)^$H72)/10^6,IF('Start Page'!$Y$36=2,($F72*60*24*$L72)*(($G72/AD72)^$H72)/10^6,IF('Start Page'!$Y$36=3,('Unit Conversion Sheet'!$E$17*$F72*60*24*$L72)*(($G72/AD72)^$H72)/10^6))))) -> 0 | N72: 0 | R72: 0 | S72: 1 | Y72: 222 | Z72: =Y72*'Unit Conversion Sheet'!$C$5 -> 840.3614196 | AB72: =IF('Start Page'!$Y$36=1,Y72,IF('Start Page'!$Y$36=2,Z72,IF('Start Page'!$Y$36=3,Y72))) -> 222 | AD72: =IF(S72=1,(IF('Start Page'!$Y$36=1,$AB$39,IF('Start Page'!$Y$36=2,$AC$39,IF('Start Page'!$Y$36=3,$AB$39)))),'AWWA-Water Balance Data Transf.'!$D$41) -> 70 | AE72: ='AWWA-Water Balance Data Transf.'!$E$41 -> PSI | AI72: =IF(C72=0,"",IF('Start Page'!$Y$36=1,($F72*60*24*J72)*(($G72/$AB$39)^$H72)/10^6,IF('Start Page'!$Y$36=2,($F72*60*24*J72)*(($G72/$AC$39)^$H72)/10^6,IF('Start Page'!$Y$36=3,('Unit Conversion Sheet'!$E$17*$F72*60*24*J72)*(($G72/$AB$39)^$H72)/10^6)))) -> 
B73: =IF('Start Page'!$Y$36=2,"DN 1200","Diameter 48''") -> Diameter 48'' | C73: 0 | D73: 0 | E73: 0 | F73: 222 | G73: ='AWWA-Water Balance Data Transf.'!$D$41 -> 0 | H73: 1 | I73: 0 | J73: 0 | L73: =IF(ISERROR(IF(SUM(I73:K73)>'Start Page'!$K$35,'Start Page'!$K$35,SUM(I73:K73))),"",IF(SUM(I73:K73)>'Start Page'!$K$35,'Start Page'!$K$35,SUM(I73:K73))) -> 0 | M73: =IF(ISERROR(IF(C73=0,0,IF('Start Page'!$Y$36=1,($F73*60*24*$L73)*(($G73/AD73)^$H73)/10^6,IF('Start Page'!$Y$36=2,($F73*60*24*$L73)*(($G73/AD73)^$H73)/10^6,IF('Start Page'!$Y$36=3,('Unit Conversion Sheet'!$E$17*$F73*60*24*$L73)*(($G73/AD73)^$H73)/10^6))))),0,IF(C73=0,0,IF('Start Page'!$Y$36=1,($F73*60*24*$L73)*(($G73/AD73)^$H73)/10^6,IF('Start Page'!$Y$36=2,($F73*60*24*$L73)*(($G73/AD73)^$H73)/10^6,IF('Start Page'!$Y$36=3,('Unit Conversion Sheet'!$E$17*$F73*60*24*$L73)*(($G73/AD73)^$H73)/10^6))))) -> 0 | N73: 0 | R73: 0 | S73: 1 | Y73: 222 | Z73: =Y73*'Unit Conversion Sheet'!$C$5 -> 840.3614196 | AB73: =IF('Start Page'!$Y$36=1,Y73,IF('Start Page'!$Y$36=2,Z73,IF('Start Page'!$Y$36=3,Y73))) -> 222 | AD73: =IF(S73=1,(IF('Start Page'!$Y$36=1,$AB$39,IF('Start Page'!$Y$36=2,$AC$39,IF('Start Page'!$Y$36=3,$AB$39)))),'AWWA-Water Balance Data Transf.'!$D$41) -> 70 | AE73: ='AWWA-Water Balance Data Transf.'!$E$41 -> PSI | AI73: =IF(C73=0,"",IF('Start Page'!$Y$36=1,($F73*60*24*J73)*(($G73/$AB$39)^$H73)/10^6,IF('Start Page'!$Y$36=2,($F73*60*24*J73)*(($G73/$AC$39)^$H73)/10^6,IF('Start Page'!$Y$36=3,('Unit Conversion Sheet'!$E$17*$F73*60*24*J73)*(($G73/$AB$39)^$H73)/10^6)))) -> 
B74: =IF('Start Page'!$Y$36=2,"DN 1350","Diameter 54''") -> Diameter 54'' | C74: 0 | D74: 0 | E74: 0 | F74: 222 | G74: ='AWWA-Water Balance Data Transf.'!$D$41 -> 0 | H74: 1 | I74: 0 | J74: 0 | L74: =IF(ISERROR(IF(SUM(I74:K74)>'Start Page'!$K$35,'Start Page'!$K$35,SUM(I74:K74))),"",IF(SUM(I74:K74)>'Start Page'!$K$35,'Start Page'!$K$35,SUM(I74:K74))) -> 0 | M74: =IF(ISERROR(IF(C74=0,0,IF('Start Page'!$Y$36=1,($F74*60*24*$L74)*(($G74/AD74)^$H74)/10^6,IF('Start Page'!$Y$36=2,($F74*60*24*$L74)*(($G74/AD74)^$H74)/10^6,IF('Start Page'!$Y$36=3,('Unit Conversion Sheet'!$E$17*$F74*60*24*$L74)*(($G74/AD74)^$H74)/10^6))))),0,IF(C74=0,0,IF('Start Page'!$Y$36=1,($F74*60*24*$L74)*(($G74/AD74)^$H74)/10^6,IF('Start Page'!$Y$36=2,($F74*60*24*$L74)*(($G74/AD74)^$H74)/10^6,IF('Start Page'!$Y$36=3,('Unit Conversion Sheet'!$E$17*$F74*60*24*$L74)*(($G74/AD74)^$H74)/10^6))))) -> 0 | N74: 0 | R74: 0 | S74: 1 | Y74: 222 | Z74: =Y74*'Unit Conversion Sheet'!$C$5 -> 840.3614196 | AB74: =IF('Start Page'!$Y$36=1,Y74,IF('Start Page'!$Y$36=2,Z74,IF('Start Page'!$Y$36=3,Y74))) -> 222 | AD74: =IF(S74=1,(IF('Start Page'!$Y$36=1,$AB$39,IF('Start Page'!$Y$36=2,$AC$39,IF('Start Page'!$Y$36=3,$AB$39)))),'AWWA-Water Balance Data Transf.'!$D$41) -> 70 | AE74: ='AWWA-Water Balance Data Transf.'!$E$41 -> PSI | AI74: =IF(C74=0,"",IF('Start Page'!$Y$36=1,($F74*60*24*J74)*(($G74/$AB$39)^$H74)/10^6,IF('Start Page'!$Y$36=2,($F74*60*24*J74)*(($G74/$AC$39)^$H74)/10^6,IF('Start Page'!$Y$36=3,('Unit Conversion Sheet'!$E$17*$F74*60*24*J74)*(($G74/$AB$39)^$H74)/10^6)))) -> 
B75: =IF('Start Page'!$Y$36=2,"DN 1500","Diameter 60''") -> Diameter 60'' | C75: 0 | D75: 0 | E75: 0 | F75: 222 | G75: ='AWWA-Water Balance Data Transf.'!$D$41 -> 0 | H75: 1 | I75: 0 | J75: 0 | L75: =IF(ISERROR(IF(SUM(I75:K75)>'Start Page'!$K$35,'Start Page'!$K$35,SUM(I75:K75))),"",IF(SUM(I75:K75)>'Start Page'!$K$35,'Start Page'!$K$35,SUM(I75:K75))) -> 0 | M75: =IF(ISERROR(IF(C75=0,0,IF('Start Page'!$Y$36=1,($F75*60*24*$L75)*(($G75/AD75)^$H75)/10^6,IF('Start Page'!$Y$36=2,($F75*60*24*$L75)*(($G75/AD75)^$H75)/10^6,IF('Start Page'!$Y$36=3,('Unit Conversion Sheet'!$E$17*$F75*60*24*$L75)*(($G75/AD75)^$H75)/10^6))))),0,IF(C75=0,0,IF('Start Page'!$Y$36=1,($F75*60*24*$L75)*(($G75/AD75)^$H75)/10^6,IF('Start Page'!$Y$36=2,($F75*60*24*$L75)*(($G75/AD75)^$H75)/10^6,IF('Start Page'!$Y$36=3,('Unit Conversion Sheet'!$E$17*$F75*60*24*$L75)*(($G75/AD75)^$H75)/10^6))))) -> 0 | N75: 0 | R75: 0 | S75: 1 | Y75: 222 | Z75: =Y75*'Unit Conversion Sheet'!$C$5 -> 840.3614196 | AB75: =IF('Start Page'!$Y$36=1,Y75,IF('Start Page'!$Y$36=2,Z75,IF('Start Page'!$Y$36=3,Y75))) -> 222 | AD75: =IF(S75=1,(IF('Start Page'!$Y$36=1,$AB$39,IF('Start Page'!$Y$36=2,$AC$39,IF('Start Page'!$Y$36=3,$AB$39)))),'AWWA-Water Balance Data Transf.'!$D$41) -> 70 | AE75: ='AWWA-Water Balance Data Transf.'!$E$41 -> PSI | AI75: =IF(C75=0,"",IF('Start Page'!$Y$36=1,($F75*60*24*J75)*(($G75/$AB$39)^$H75)/10^6,IF('Start Page'!$Y$36=2,($F75*60*24*J75)*(($G75/$AC$39)^$H75)/10^6,IF('Start Page'!$Y$36=3,('Unit Conversion Sheet'!$E$17*$F75*60*24*J75)*(($G75/$AB$39)^$H75)/10^6)))) -> 
B76: =IF('Start Page'!$Y$36=2,"> DN 1500","Diameter >60''") -> Diameter >60'' | C76: 0 | D76: 0 | E76: 0 | F76: =IF(S76=1,AB76,R76) -> 222 | G76: ='AWWA-Water Balance Data Transf.'!$D$41 -> 0 | H76: 1 | I76: 0 | J76: 0 | L76: =IF(ISERROR(IF(SUM(I76:K76)>'Start Page'!$K$35,'Start Page'!$K$35,SUM(I76:K76))),"",IF(SUM(I76:K76)>'Start Page'!$K$35,'Start Page'!$K$35,SUM(I76:K76))) -> 0 | M76: =IF(ISERROR(IF(C76=0,0,IF('Start Page'!$Y$36=1,($F76*60*24*$L76)*(($G76/AD76)^$H76)/10^6,IF('Start Page'!$Y$36=2,($F76*60*24*$L76)*(($G76/AD76)^$H76)/10^6,IF('Start Page'!$Y$36=3,('Unit Conversion Sheet'!$E$17*$F76*60*24*$L76)*(($G76/AD76)^$H76)/10^6))))),0,IF(C76=0,0,IF('Start Page'!$Y$36=1,($F76*60*24*$L76)*(($G76/AD76)^$H76)/10^6,IF('Start Page'!$Y$36=2,($F76*60*24*$L76)*(($G76/AD76)^$H76)/10^6,IF('Start Page'!$Y$36=3,('Unit Conversion Sheet'!$E$17*$F76*60*24*$L76)*(($G76/AD76)^$H76)/10^6))))) -> 0 | N76: 0 | R76: 0 | S76: 1 | Y76: 222 | Z76: =Y76*'Unit Conversion Sheet'!$C$5 -> 840.3614196 | AB76: =IF('Start Page'!$Y$36=1,Y76,IF('Start Page'!$Y$36=2,Z76,IF('Start Page'!$Y$36=3,Y76))) -> 222 | AD76: =IF(S76=1,(IF('Start Page'!$Y$36=1,$AB$39,IF('Start Page'!$Y$36=2,$AC$39,IF('Start Page'!$Y$36=3,$AB$39)))),'AWWA-Water Balance Data Transf.'!$D$41) -> 70 | AE76: ='AWWA-Water Balance Data Transf.'!$E$41 -> PSI | AI76: =IF(C76=0,"",IF('Start Page'!$Y$36=1,($F76*60*24*J76)*(($G76/$AB$39)^$H76)/10^6,IF('Start Page'!$Y$36=2,($F76*60*24*J76)*(($G76/$AC$39)^$H76)/10^6,IF('Start Page'!$Y$36=3,('Unit Conversion Sheet'!$E$17*$F76*60*24*J76)*(($G76/$AB$39)^$H76)/10^6)))) -> 
B77: Other Diameter | C77: 0 | D77: 0 | E77: 0 | F77: =R77 -> 0 | G77: ='AWWA-Water Balance Data Transf.'!$D$41 -> 0 | H77: 1 | I77: 0 | J77: 0 | L77: =IF(ISERROR(IF(SUM(I77:K77)>'Start Page'!$K$35,'Start Page'!$K$35,SUM(I77:K77))),"",IF(SUM(I77:K77)>'Start Page'!$K$35,'Start Page'!$K$35,SUM(I77:K77))) -> 0 | M77: =IF(ISERROR(IF(C77=0,0,IF('Start Page'!$Y$36=1,($F77*60*24*$L77)*(($G77/AD77)^$H77)/10^6,IF('Start Page'!$Y$36=2,($F77*60*24*$L77)*(($G77/AD77)^$H77)/10^6,IF('Start Page'!$Y$36=3,('Unit Conversion Sheet'!$E$17*$F77*60*24*$L77)*(($G77/AD77)^$H77)/10^6))))),0,IF(C77=0,0,IF('Start Page'!$Y$36=1,($F77*60*24*$L77)*(($G77/AD77)^$H77)/10^6,IF('Start Page'!$Y$36=2,($F77*60*24*$L77)*(($G77/AD77)^$H77)/10^6,IF('Start Page'!$Y$36=3,('Unit Conversion Sheet'!$E$17*$F77*60*24*$L77)*(($G77/AD77)^$H77)/10^6))))) -> 0 | N77: 0 | P77: Enter avg flow rate | R77: 0 | AD77: ='AWWA-Water Balance Data Transf.'!$D$41 -> 0 | AE77: ='AWWA-Water Balance Data Transf.'!$E$41 -> PSI | AI77: =IF(C77=0,"",IF('Start Page'!$Y$36=1,($F77*60*24*J77)*(($G77/$AB$39)^$H77)/10^6,IF('Start Page'!$Y$36=2,($F77*60*24*J77)*(($G77/$AC$39)^$H77)/10^6,IF('Start Page'!$Y$36=3,('Unit Conversion Sheet'!$E$17*$F77*60*24*J77)*(($G77/$AB$39)^$H77)/10^6)))) -> 
B78: =IF(C77=0,"",IF(C77="","",IF(R77=0,"PLEASE ENTER FLOW RATE FOR OTHER DIAMETER LEAKS IN CELL R77",IF(R77="","PLEASE ENTER FLOW RATE FOR OTHER DIAMETER LEAKS IN CELL R77","")))) ->  | M78: SUB-TOTAL REPORTED FAILURES ON MAINS | N78: =SUM(N58:N77) -> 0 | AG78: Sum | AH78: =SUM(AH58:AH77) -> 0 | AI78: =SUM(AI58:AI77) -> 0 | AJ78: =SUM(AJ58:AJ77) -> 0
B79: STEP 3B: REPORTED FAILURES ON DISTRIBUTION SYSTEM APPURTENANCES
B81: Instructions: | C81: Enter the total number of failures by distribution system appurtenance type that were reported to and repaired by the water utility during the audit period in cells C86 to C89. Next enter the total number of appurtenances for each system appurtenance group in cells D86 to D89 (Note: this information is not required for the real loss component analysis but serves to calculate failure frequencies by appurtenance type). Next enter the average awareness duration for reported failure events by system appurtenance type in cells I86 to I89 (Awareness duration is the average time from the occurrence of the failure event until the water utility becomes aware of its existence). Next enter the average duration of locating and containing reported failure events by system appurtenance type in cells K86 to K89. Next select either the default average leak flow rate provided by the model in cells P86 to P89 or select and enter your own utility specific average leakage flow rates in cells Q86 to R89. Average failure flow rates are based on AWWA M36 recommended flow rates and flow rates collected by the research team. | AB81: Based on Select Preferred Volumetric Units for Audit and Component Analysis
AC82: Sum for whether F56 states that its at 70/49.2 pressure or at system specific pressure) | AD82: Pressure for average leak flow rate depending on whether user utilized default flow rate or utility specific flow rate (which does not need to be pressure corrected)
B83: System Appurtenances by Type | C83: Number of Failures per Year | D83: Total Number of Appurtenances | E83: Failure Frequency | F83: Average Failure Flow Rate @ | G83: Average Pressure | H83: N1 (Leakage-Pressure Exponent) Value | I83: Average Failure Duration | M83: Average Annual Loss per Failure | N83: Total Annual Loss | P83: Use Default Average Failure Flow Rate | Q83: Use Utility Specific Average Failure Flow Rate | R83: Average Failure Flow Rate @ | AH83: Number of Leaks times Location and Repair Duration | AI83: Real Loss Volume per Leak Stemming From Location and Repair Duration | AJ83: Total Annual Real Loss Volume Stemming From Location and Repair Duration
E84: Number of Failures per 1000 Appurtenances | F84: =IF(AC86=3,IF('Start Page'!$Y$36=1,$AB$39 & "psi",IF('Start Page'!$Y$36=2,$AC$39 & "metres head",IF('Start Page'!$Y$36=3,$AB$39 & "psi"))),("Average System Pressure")) -> 70psi | I84: Average Awareness Duration | J84: Average Duration for Location and Repair/Shutoff Failure | L84: Total Duration | R84: ="Average System Pressure" -> Average System Pressure
F85: =IF('Start Page'!$Y$36=1,"(gpm)",IF('Start Page'!$Y$36=2,"(lpm)", IF('Start Page'!$Y$36=3,"(gpm)"))) -> (gpm) | G85: =$G$38 -> (psi) | I85: (days) | J85: (days) | L85: (days) | M85: =$I$38 -> (MG) | N85: =$I$38 -> (MG) | R85: =$F$57 -> (gpm) | Y85: gpm | Z85: lpm | AB85: =$F$57 -> (gpm) | AH85: days | AI85: =$N$57 -> (MG) | AJ85: =$N$57 -> (MG)
B86: Hydrants | C86: 0 | D86: 0 | E86: =IF(D86=0,0,C86/D86*1000) -> 0 | F86: =IF(S86=1,AB86,R86) -> 3.5 | G86: ='AWWA-Water Balance Data Transf.'!$D$41 -> 0 | H86: 1 | I86: 0 | J86: 0 | L86: =IF(SUM(I86:K86)>'Start Page'!$K$35,'Start Page'!$K$35,SUM(I86:K86)) -> 0 | M86: =IF(ISERROR(IF(C86=0,0,IF(C86=0,"",IF('Start Page'!$Y$36=1,(F86*60*24*L86)*((G86/AD86)^H86)/10^6,IF('Start Page'!$Y$36=2,(F86*60*24*L86)*((G86/AD86)^H86)/10^6,IF('Start Page'!$Y$36=3,('Unit Conversion Sheet'!$E$17*F86*60*24*L86)*((G86/AD86)^H86)/10^6)))))),0,IF(C86=0,0,IF(C86=0,"",IF('Start Page'!$Y$36=1,(F86*60*24*L86)*((G86/AD86)^H86)/10^6,IF('Start Page'!$Y$36=2,(F86*60*24*L86)*((G86/AD86)^H86)/10^6,IF('Start Page'!$Y$36=3,('Unit Conversion Sheet'!$E$17*F86*60*24*L86)*((G86/AD86)^H86)/10^6)))))) -> 0 | N86: =IF(C86=0,0,M86*C86) -> 0 | R86: 0 | S86: 1 | Y86: 3.5 | Z86: =Y86*'Unit Conversion Sheet'!$C$5 -> 13.2489413 | AB86: =IF('Start Page'!$Y$36=1,Y86,IF('Start Page'!$Y$36=2,Z86,IF('Start Page'!$Y$36=3,Y86))) -> 3.5 | AC86: =SUM(S86:S88) -> 3 | AD86: =IF(S86=1,(IF('Start Page'!$Y$36=1,$AB$39,IF('Start Page'!$Y$36=2,$AC$39,IF('Start Page'!$Y$36=3,$AB$39)))),'AWWA-Water Balance Data Transf.'!$D$41) -> 70 | AE86: ='AWWA-Water Balance Data Transf.'!$E$41 -> PSI | AH86: =IF(C86=0,"",C86*J86) ->  | AI86: =IF(C86=0,"",IF('Start Page'!$Y$36=1,($F86*60*24*J86)*(($G86/$AB$39)^$H86)/10^6,IF('Start Page'!$Y$36=2,($F86*60*24*J86)*(($G86/$AC$39)^$H86)/10^6,IF('Start Page'!$Y$36=3,('Unit Conversion Sheet'!$E$17*$F86*60*24*J86)*(($G86/$AB$39)^$H86)/10^6)))) ->  | AJ86: =IF(C86=0,"",AI86*C86) -> 
B87: Valves | C87: 0 | D87: 0 | E87: =IF(D87=0,0,C87/D87*1000) -> 0 | F87: =IF(S87=1,AB87,R87) -> 6.9 | G87: ='AWWA-Water Balance Data Transf.'!$D$41 -> 0 | H87: 1 | I87: 0 | J87: 0 | L87: =IF(SUM(I87:K87)>'Start Page'!$K$35,'Start Page'!$K$35,SUM(I87:K87)) -> 0 | M87: =IF(ISERROR(IF(C87=0,0,IF(C87=0,"",IF('Start Page'!$Y$36=1,(F87*60*24*L87)*((G87/AD87)^H87)/10^6,IF('Start Page'!$Y$36=2,(F87*60*24*L87)*((G87/AD87)^H87)/10^6,IF('Start Page'!$Y$36=3,('Unit Conversion Sheet'!$E$17*F87*60*24*L87)*((G87/AD87)^H87)/10^6)))))),0,IF(C87=0,0,IF(C87=0,"",IF('Start Page'!$Y$36=1,(F87*60*24*L87)*((G87/AD87)^H87)/10^6,IF('Start Page'!$Y$36=2,(F87*60*24*L87)*((G87/AD87)^H87)/10^6,IF('Start Page'!$Y$36=3,('Unit Conversion Sheet'!$E$17*F87*60*24*L87)*((G87/AD87)^H87)/10^6)))))) -> 0 | N87: =IF(C87=0,0,M87*C87) -> 0 | R87: 0 | S87: 1 | Y87: 6.9 | Z87: =Y87*'Unit Conversion Sheet'!$C$5 -> 26.11934142 | AB87: =IF('Start Page'!$Y$36=1,Y87,IF('Start Page'!$Y$36=2,Z87,IF('Start Page'!$Y$36=3,Y87))) -> 6.9 | AD87: =IF(S87=1,(IF('Start Page'!$Y$36=1,$AB$39,IF('Start Page'!$Y$36=2,$AC$39,IF('Start Page'!$Y$36=3,$AB$39)))),'AWWA-Water Balance Data Transf.'!$D$41) -> 70 | AE87: ='AWWA-Water Balance Data Transf.'!$E$41 -> PSI | AH87: =IF(C87=0,"",C87*J87) ->  | AI87: =IF(C87=0,"",IF('Start Page'!$Y$36=1,($F87*60*24*J87)*(($G87/$AB$39)^$H87)/10^6,IF('Start Page'!$Y$36=2,($F87*60*24*J87)*(($G87/$AC$39)^$H87)/10^6,IF('Start Page'!$Y$36=3,('Unit Conversion Sheet'!$E$17*$F87*60*24*J87)*(($G87/$AB$39)^$H87)/10^6)))) ->  | AJ87: =IF(C87=0,"",AI87*C87) -> 
B88: Meters | C88: 0 | D88: 0 | E88: =IF(D88=0,0,C88/D88*1000) -> 0 | F88: 0.25 | G88: ='AWWA-Water Balance Data Transf.'!$D$41 -> 0 | H88: 1 | I88: 0 | J88: 0 | L88: =IF(SUM(I88:K88)>'Start Page'!$K$35,'Start Page'!$K$35,SUM(I88:K88)) -> 0 | M88: =IF(ISERROR(IF(C88=0,0,IF(C88=0,"",IF('Start Page'!$Y$36=1,(F88*60*24*L88)*((G88/AD88)^H88)/10^6,IF('Start Page'!$Y$36=2,(F88*60*24*L88)*((G88/AD88)^H88)/10^6,IF('Start Page'!$Y$36=3,('Unit Conversion Sheet'!$E$17*F88*60*24*L88)*((G88/AD88)^H88)/10^6)))))),0,IF(C88=0,0,IF(C88=0,"",IF('Start Page'!$Y$36=1,(F88*60*24*L88)*((G88/AD88)^H88)/10^6,IF('Start Page'!$Y$36=2,(F88*60*24*L88)*((G88/AD88)^H88)/10^6,IF('Start Page'!$Y$36=3,('Unit Conversion Sheet'!$E$17*F88*60*24*L88)*((G88/AD88)^H88)/10^6)))))) -> 0 | N88: 0 | R88: 0 | S88: 1 | Y88: 0.25 | Z88: =Y88*'Unit Conversion Sheet'!$C$5 -> 0.94635295 | AB88: =IF('Start Page'!$Y$36=1,Y88,IF('Start Page'!$Y$36=2,Z88,IF('Start Page'!$Y$36=3,Y88))) -> 0.25 | AD88: =IF(S88=1,(IF('Start Page'!$Y$36=1,$AB$39,IF('Start Page'!$Y$36=2,$AC$39,IF('Start Page'!$Y$36=3,$AB$39)))),'AWWA-Water Balance Data Transf.'!$D$41) -> 70 | AE88: ='AWWA-Water Balance Data Transf.'!$E$41 -> PSI | AI88: =IF(C88=0,"",IF('Start Page'!$Y$36=1,($F88*60*24*J88)*(($G88/$AB$39)^$H88)/10^6,IF('Start Page'!$Y$36=2,($F88*60*24*J88)*(($G88/$AC$39)^$H88)/10^6,IF('Start Page'!$Y$36=3,('Unit Conversion Sheet'!$E$17*$F88*60*24*J88)*(($G88/$AB$39)^$H88)/10^6)))) ->  | AJ88: =IF(C88=0,"",AI88*C88) -> 
B89: Other (e.g. Blow-offs, etc.) | C89: 0 | D89: 0 | E89: =IF(D89=0,0,C89/D89*1000) -> 0 | F89: =R89 -> 0 | G89: ='AWWA-Water Balance Data Transf.'!$D$41 -> 0 | H89: 1 | I89: 0 | J89: 0 | L89: =IF(SUM(I89:K89)>'Start Page'!$K$35,'Start Page'!$K$35,SUM(I89:K89)) -> 0 | M89: =IF(ISERROR(IF(C89=0,0,IF(C89=0,"",IF('Start Page'!$Y$36=1,(F89*60*24*L89)*((G89/AD89)^H89)/10^6,IF('Start Page'!$Y$36=2,(F89*60*24*L89)*((G89/AD89)^H89)/10^6,IF('Start Page'!$Y$36=3,('Unit Conversion Sheet'!$E$17*F89*60*24*L89)*((G89/AD89)^H89)/10^6)))))),0,IF(C89=0,0,IF(C89=0,"",IF('Start Page'!$Y$36=1,(F89*60*24*L89)*((G89/AD89)^H89)/10^6,IF('Start Page'!$Y$36=2,(F89*60*24*L89)*((G89/AD89)^H89)/10^6,IF('Start Page'!$Y$36=3,('Unit Conversion Sheet'!$E$17*F89*60*24*L89)*((G89/AD89)^H89)/10^6)))))) -> 0 | N89: 0 | P89: Enter avg flow rate | R89: 0 | S89: =IF(R89>0,2,0) -> 0 | AD89: ='AWWA-Water Balance Data Transf.'!$D$41 -> 0 | AE89: ='AWWA-Water Balance Data Transf.'!$E$41 -> PSI | AI89: =IF(C89=0,"",IF('Start Page'!$Y$36=1,($F89*60*24*J89)*(($G89/$AB$39)^$H89)/10^6,IF('Start Page'!$Y$36=2,($F89*60*24*J89)*(($G89/$AC$39)^$H89)/10^6,IF('Start Page'!$Y$36=3,('Unit Conversion Sheet'!$E$17*$F89*60*24*J89)*(($G89/$AB$39)^$H89)/10^6)))) ->  | AJ89: =IF(C89=0,"",AI89*C89) -> 
B90: =IF(C89=0,"",IF(C89="","",IF(R89=0,"PLEASE ENTER FLOW RATE FOR OTHER APPURTENANCE LEAKS IN CELL R89",IF(R89="","PLEASE ENTER FLOW RATE FOR OTHER APPURTENANCE LEAKS IN CELL R89","")))) ->  | M90: SUB-TOTAL REPORTED LEAKS ON SYSTEM APPURTENANCES | N90: =SUM(N86:N89) -> 0 | AG90: sum | AH90: =SUM(AH86:AH89) -> 0 | AI90: =SUM(AI86:AI89) -> 0 | AJ90: 0
B91: STEP 3C: REPORTED FAILURES ON SERVICE CONNECTIONS
B93: Instructions: | C93: Enter the total number of failures by service connection size (<1" or >=1") that were reported to and repaired the water utility during the audit period in cells C98 to C99. Next enter the total number of service connections for each service connection size group in cells D98 to D99 (Note: this information is not required for the real loss component analysis but serves to calculate failure frequencies by service connection size group). Next enter the average awareness duration for reported failure events by service connection size group in cells I98 to I99 (Awareness duration is the average time from the occurrence of the failure event until the water utility becomes aware of its existence). Next enter the average duration of locating and containing reported failure events by service connection size group in cells K89 to K99. Next select either the default average leak flow rate provided by the model in cells P98 to P99 or select and enter your own utility specific average leakage flow rates in cells Q98 to R99. Average failure flow rates are based on AWWA M36 recommended flow rates and flow rates collected by the research team.
B95: Service Connections by Size | C95: Number of Failures per Year | D95: Total Number of Service Connections | E95: Failure Frequency | F95: Average Failure Flow Rate @ | G95: Average Pressure | H95: N1 (Leakage-Pressure Exponent) Value | I95: Average Failure Duration | M95: Average Annual Loss per Failure | N95: Total Annual Loss | P95: Use Default Average Failure Flow Rate | Q95: Use Utility Specific Average Failure Flow Rate | R95: Average Failure Flow Rate @ | AB95: Based on Select Preferred Volumetric Units for Audit and Component Analysis | AC95: Sum for whether F56 states that its at 70/49.2 pressure or at system specific pressure) | AD95: Pressure for average leak flow rate depending on whether user utilized default flow rate or utility specific flow rate (which does not need to be pressure corrected) | AH95: Number of Leaks times Location and Repair Duration | AI95: Real Loss Volume per Leak Stemming From Location and Repair Duration | AJ95: Total Annual Real Loss Volume Stemming From Location and Repair Duration
E96: Number of Failures per 1000 Service Connections | F96: =IF(AC98=2,IF('Start Page'!$Y$36=1,$AB$39 & "psi",IF('Start Page'!$Y$36=2,$AC$39 & "metres head",IF('Start Page'!$Y$36=3,$AB$39 & "psi"))),("Avergage System Presure")) -> 70psi | I96: Average Awareness Duration | J96: Average Duration for Location and Repair/Shutoff Failure | L96: Total Duration | R96: ="average system pressure" -> average system pressure
F97: =IF('Start Page'!$Y$36=1,"(gpm)",IF('Start Page'!$Y$36=2,"(lpm)", IF('Start Page'!$Y$36=3,"(gpm)"))) -> (gpm) | G97: =$G$38 -> (psi) | I97: (days) | J97: (days) | L97: (days) | M97: =$I$38 -> (MG) | N97: =$I$38 -> (MG) | R97: =$F$57 -> (gpm) | Y97: gpm | Z97: lpm | AB97: =$F$57 -> (gpm) | AH97: days | AI97: =$N$57 -> (MG) | AJ97: =$N$57 -> (MG)
B98: =IF('Start Page'!$Y$36=2,"Services < DN 25","Services < 1''") -> Services < 1'' | C98: 0 | D98: 0 | E98: =IF(D98=0,0,C98/D98*1000) -> 0 | F98: =IF(S98=1,AB98,R98) -> 6.9 | G98: ='AWWA-Water Balance Data Transf.'!$D$41 -> 0 | H98: 1 | I98: 0 | J98: 0 | L98: =IF(SUM(I98:K98)>'Start Page'!$K$35,'Start Page'!$K$35,SUM(I98:K98)) -> 0 | M98: =IF(ISERROR(IF(C98=0,0,IF('Start Page'!$Y$36=1,(F98*60*24*L98)*((G98/AD98)^H98)/10^6,IF('Start Page'!$Y$36=2,(F98*60*24*L98)*((G98/AD98)^H98)/10^6,IF('Start Page'!$Y$36=3,('Unit Conversion Sheet'!$E$17*F98*60*24*L98)*((G98/AD98)^H98)/10^6))))),0,IF(C98=0,0,IF('Start Page'!$Y$36=1,(F98*60*24*L98)*((G98/AD98)^H98)/10^6,IF('Start Page'!$Y$36=2,(F98*60*24*L98)*((G98/AD98)^H98)/10^6,IF('Start Page'!$Y$36=3,('Unit Conversion Sheet'!$E$17*F98*60*24*L98)*((G98/AD98)^H98)/10^6))))) -> 0 | N98: =IF(C98=0,0,M98*C98) -> 0 | R98: 0 | S98: 1 | Y98: 6.9 | Z98: =Y98*'Unit Conversion Sheet'!$C$5 -> 26.11934142 | AB98: =IF('Start Page'!$Y$36=1,Y98,IF('Start Page'!$Y$36=2,Z98,IF('Start Page'!$Y$36=3,Y98))) -> 6.9 | AC98: =SUM(S98:S99) -> 2 | AD98: =IF(S98=1,(IF('Start Page'!$Y$36=1,$AB$39,IF('Start Page'!$Y$36=2,$AC$39,IF('Start Page'!$Y$36=3,$AB$39)))),'AWWA-Water Balance Data Transf.'!$D$41) -> 70 | AE98: ='AWWA-Water Balance Data Transf.'!$E$41 -> PSI | AH98: =IF(C98=0,"",C98*J98) ->  | AI98: =IF(C98=0,"",IF('Start Page'!$Y$36=1,($F98*60*24*J98)*(($G98/$AB$39)^$H98)/10^6,IF('Start Page'!$Y$36=2,($F98*60*24*J98)*(($G98/$AC$39)^$H98)/10^6,IF('Start Page'!$Y$36=3,('Unit Conversion Sheet'!$E$17*$F98*60*24*J98)*(($G98/$AB$39)^$H98)/10^6)))) ->  | AJ98: =IF(C98=0,"",AI98*C98) -> 
B99: =IF('Start Page'!$Y$36=2,"Services >= DN 25","Services >= 1''") -> Services >= 1'' | C99: 0 | D99: 0 | E99: =IF(D99=0,0,C99/D99*1000) -> 0 | F99: =IF(S99=1,AB99,R99) -> 13.9 | G99: ='AWWA-Water Balance Data Transf.'!$D$41 -> 0 | H99: 1 | I99: 0 | J99: 0 | L99: =IF(SUM(I99:K99)>'Start Page'!$K$35,'Start Page'!$K$35,SUM(I99:K99)) -> 0 | M99: =IF(ISERROR(IF(C99=0,0,IF('Start Page'!$Y$36=1,(F99*60*24*L99)*((G99/AD99)^H99)/10^6,IF('Start Page'!$Y$36=2,(F99*60*24*L99)*((G99/AD99)^H99)/10^6,IF('Start Page'!$Y$36=3,('Unit Conversion Sheet'!$E$17*F99*60*24*L99)*((G99/AD99)^H99)/10^6))))),0,IF(C99=0,0,IF('Start Page'!$Y$36=1,(F99*60*24*L99)*((G99/AD99)^H99)/10^6,IF('Start Page'!$Y$36=2,(F99*60*24*L99)*((G99/AD99)^H99)/10^6,IF('Start Page'!$Y$36=3,('Unit Conversion Sheet'!$E$17*F99*60*24*L99)*((G99/AD99)^H99)/10^6))))) -> 0 | N99: =IF(C99=0,0,M99*C99) -> 0 | R99: 0 | S99: 1 | Y99: 13.9 | Z99: =Y99*'Unit Conversion Sheet'!$C$5 -> 52.61722402 | AB99: =IF('Start Page'!$Y$36=1,Y99,IF('Start Page'!$Y$36=2,Z99,IF('Start Page'!$Y$36=3,Y99))) -> 13.9 | AD99: =IF(S99=1,(IF('Start Page'!$Y$36=1,$AB$39,IF('Start Page'!$Y$36=2,$AC$39,IF('Start Page'!$Y$36=3,$AB$39)))),'AWWA-Water Balance Data Transf.'!$D$41) -> 70 | AE99: ='AWWA-Water Balance Data Transf.'!$E$41 -> PSI | AH99: =IF(C99=0,"",C99*J99) ->  | AI99: =IF(C99=0,"",IF('Start Page'!$Y$36=1,($F99*60*24*J99)*(($G99/$AB$39)^$H99)/10^6,IF('Start Page'!$Y$36=2,($F99*60*24*J99)*(($G99/$AC$39)^$H99)/10^6,IF('Start Page'!$Y$36=3,('Unit Conversion Sheet'!$E$17*$F99*60*24*J99)*(($G99/$AB$39)^$H99)/10^6)))) ->  | AJ99: =IF(C99=0,"",AI99*C99) -> 
M100: SUB-TOTAL REPORTED LEAKS ON SERVICE CONNECTIONS | N100: =SUM(N98:N99) -> 0 | AG100: Sum | AH100: =SUM(AH98:AH99) -> 0 | AI100: =SUM(AI98:AI99) -> 0 | AJ100: 0
M101: GRAND TOTAL REPORTED FAILURES | N101: =N78+N90+N100 -> 0
B105: Did your utility carry out proactive leak detection during the audit period? If NO then go to the Component Analysis Summary Table at the top of this sheet - If YES then provide the data requested in STEP 4A, 4B , and 4C
B106: STEP 4: UNREPORTED FAILURES
B108: Instructions: | C108: Drinking water utilities supply water through underground piping systems. Such systems - sooner or later - will incur failures in the form of leaks and breaks (ruptures) in distribution piping. Failures are categorized into three broad types: failures that occur on the primary water main piping , failures on customer service connection piping, and failures on appurtenances attached to water mains; including fire hydrants, valves and air valves or taps. This section "UNREPORTED FAILURES" of the model features a standardized calculation of the real loss volume stemming from failure events found through proactive leak detection programs. Unreported leaks and breaks (failure events) are defined as events that are usually hidden and are found only if a water utility has an active leakage control/leak detection program. Follow Steps 4A, 4B and 4C to calculate the real loss volume stemming from unreported leaks and breaks.
B110: STEP 4A: UNREPORTED FAILURES ON MAINS
B112: Instructions: | C112: Enter the total failures by main size that were detected and repaired through proactive leak detection during the audit period in cells C117 to C136. Next enter the total length of mains for each mains size group in cells D117 to D136 (Note: this information is not required for the real loss component analysis but serves to calculate failure frequencies by mains size). Next enter the average awareness duration for unreported failure events by mains size in cells I117 to I136 (If the entire distribution system is surveyed once a year the average awareness time is 365 days ÷ 2 = 182.5 days, if the system is surveyed twice a year then the average awareness time is 365 days ÷ 4 = 91.25 days and so on). Next enter the average duration of locating and containing unreported failure events by mains size in cells K117 to K136. Next select either the default average leak flow rate provided by the model in cells P117 to P136 or select and enter your own utility specific average leakage flow rates in cells Q117 to R136. Average failure flow rates are based on AWWA M36 recommended flow rates and flow rates collected by the research team.
B114: Mains by Size | C114: Number of Failures per Year | D114: Length of Main | E114: Failure Frequency | F114: Average Failure Flow Rate @ | G114: Average Pressure | H114: N1 (Leakage-Pressure Exponent) Value | I114: Average Failure Duration | M114: Average Annual Loss per Failure | N114: Total Annual Loss | P114: Use Default Average Failure Flow Rate | Q114: Use Utility Specific Average Failure Flow Rate | R114: Average Failure Flow Rate @ | AB114: Based on Select Preferred Volumetric Units for Audit and Component Analysis | AC114: Sum for whether F56 states that its at 70/49.2 pressure or at system specific pressure) | AD114: Pressure for average leak flow rate depending on whether user utilized default flow rate or utility specific flow rate (which does not need to be pressure corrected) | AH114: Number of Leaks times Location and Repair Duration | AI114: Real Loss Volume per Leak Stemming From Location and Repair Duration | AJ114: Total Annual Real Loss Volume Stemming From Location and Repair Duration
E115: =IF('Start Page'!$Y$42=1,"(number / 100miles / yr)",IF('Start Page'!$Y$42=2,"(number /100kilometers / yr)")) -> (number / 100miles / yr) | F115: =IF(AC58=19,IF('Start Page'!$Y$36=1,$AB$39 & "psi",IF('Start Page'!$Y$36=2,$AC$39 & "metres head",IF('Start Page'!$Y$36=3,$AB$39 & "psi"))),("Avergage System Presure")) -> 70psi | I115: Average Awareness Duration | J115: Average Duration for Location and Repair/Shutoff Failure | L115: Total Duration | R115: ="average system pressure" -> average system pressure
D116: =$C$39 -> miles | F116: =IF('Start Page'!$Y$36=1,"(gpm)",IF('Start Page'!$Y$36=2,"(lpm)", IF('Start Page'!$Y$36=3,"(gpm)"))) -> (gpm) | G116: =$G$38 -> (psi) | I116: (days) | J116: (days) | L116: (days) | M116: =$I$38 -> (MG) | N116: =$I$38 -> (MG) | R116: =$F$57 -> (gpm) | Y116: gpm | Z116: lpm | AB116: =$F$57 -> (gpm) | AH116: days | AI116: =$N$57 -> (MG) | AJ116: =$N$57 -> (MG)
B117: =IF('Start Page'!$Y$36=2,"DN 50","Diameter 2''") -> Diameter 2'' | C117: 0 | D117: 0 | E117: =IF(D117=0,0,C117/D117*100) -> 0 | F117: =IF(S117=1,AB117,R117) -> 13.9 | G117: ='AWWA-Water Balance Data Transf.'!$D$41 -> 0 | H117: 1 | I117: 0 | J117: 0 | L117: =IF(SUM(I117:K117)>'Start Page'!$K$35,'Start Page'!$K$35,SUM(I117:K117)) -> 0 | M117: =IF(ISERROR(IF(C117=0,0,IF('Start Page'!$Y$36=1,($F117*60*24*$L117)*(($G117/AD117)^$H117)/10^6,IF('Start Page'!$Y$36=2,($F117*60*24*$L117)*(($G117/AD117)^$H117)/10^6,IF('Start Page'!$Y$36=3,('Unit Conversion Sheet'!$E$17*$F117*60*24*$L117)*(($G117/AD117)^$H117)/10^6))))),0,IF(C117=0,0,IF('Start Page'!$Y$36=1,($F117*60*24*$L117)*(($G117/AD117)^$H117)/10^6,IF('Start Page'!$Y$36=2,($F117*60*24*$L117)*(($G117/AD117)^$H117)/10^6,IF('Start Page'!$Y$36=3,('Unit Conversion Sheet'!$E$17*$F117*60*24*$L117)*(($G117/AD117)^$H117)/10^6))))) -> 0 | N117: =IF(C117=0,0,M117*C117) -> 0 | R117: 0 | S117: 1 | T117: provide option for default flow are or individual flow rate | Y117: 13.9 | Z117: =Y117*'Unit Conversion Sheet'!$C$5 -> 52.61722402 | AB117: =IF('Start Page'!$Y$36=1,Y117,IF('Start Page'!$Y$36=2,Z117,IF('Start Page'!$Y$36=3,Y117))) -> 13.9 | AC117: =SUM(S117:S135) -> 19 | AD117: =IF(S117=1,(IF('Start Page'!$Y$36=1,$AB$39,IF('Start Page'!$Y$36=2,$AC$39,IF('Start Page'!$Y$36=3,$AB$39)))),'AWWA-Water Balance Data Transf.'!$D$41) -> 70 | AE117: ='AWWA-Water Balance Data Transf.'!$E$41 -> PSI | AH117: =IF(C117=0,"",C117*J117) ->  | AI117: =IF(C117=0,"",IF('Start Page'!$Y$36=1,($F117*60*24*J117)*(($G117/$AB$39)^$H117)/10^6,IF('Start Page'!$Y$36=2,($F117*60*24*J117)*(($G117/$AC$39)^$H117)/10^6,IF('Start Page'!$Y$36=3,('Unit Conversion Sheet'!$E$17*$F117*60*24*J117)*(($G117/$AB$39)^$H117)/10^6)))) ->  | AJ117: =IF(C117=0,"",AI117*C117) -> 
B118: =IF('Start Page'!$Y$36=2,"DN 80","Diameter 3''") -> Diameter 3'' | C118: 0 | D118: 0 | E118: =IF(D118=0,0,C118/D118*100) -> 0 | F118: =IF(S118=1,AB118,R118) -> 13.9 | G118: ='AWWA-Water Balance Data Transf.'!$D$41 -> 0 | H118: 1 | I118: 0 | J118: 0 | L118: =IF(SUM(I118:K118)>'Start Page'!$K$35,'Start Page'!$K$35,SUM(I118:K118)) -> 0 | M118: =IF(ISERROR(IF(C118=0,0,IF('Start Page'!$Y$36=1,($F118*60*24*$L118)*(($G118/AD118)^$H118)/10^6,IF('Start Page'!$Y$36=2,($F118*60*24*$L118)*(($G118/AD118)^$H118)/10^6,IF('Start Page'!$Y$36=3,('Unit Conversion Sheet'!$E$17*$F118*60*24*$L118)*(($G118/AD118)^$H118)/10^6))))),0,IF(C118=0,0,IF('Start Page'!$Y$36=1,($F118*60*24*$L118)*(($G118/AD118)^$H118)/10^6,IF('Start Page'!$Y$36=2,($F118*60*24*$L118)*(($G118/AD118)^$H118)/10^6,IF('Start Page'!$Y$36=3,('Unit Conversion Sheet'!$E$17*$F118*60*24*$L118)*(($G118/AD118)^$H118)/10^6))))) -> 0 | N118: =IF(C118=0,0,M118*C118) -> 0 | R118: 0 | S118: 1 | Y118: 13.9 | Z118: =Y118*'Unit Conversion Sheet'!$C$5 -> 52.61722402 | AB118: =IF('Start Page'!$Y$36=1,Y118,IF('Start Page'!$Y$36=2,Z118,IF('Start Page'!$Y$36=3,Y118))) -> 13.9 | AD118: =IF(S118=1,(IF('Start Page'!$Y$36=1,$AB$39,IF('Start Page'!$Y$36=2,$AC$39,IF('Start Page'!$Y$36=3,$AB$39)))),'AWWA-Water Balance Data Transf.'!$D$41) -> 70 | AE118: ='AWWA-Water Balance Data Transf.'!$E$41 -> PSI | AH118: =IF(C118=0,"",C118*J118) ->  | AI118: =IF(C118=0,"",IF('Start Page'!$Y$36=1,($F118*60*24*J118)*(($G118/$AB$39)^$H118)/10^6,IF('Start Page'!$Y$36=2,($F118*60*24*J118)*(($G118/$AC$39)^$H118)/10^6,IF('Start Page'!$Y$36=3,('Unit Conversion Sheet'!$E$17*$F118*60*24*J118)*(($G118/$AB$39)^$H118)/10^6)))) ->  | AJ118: =IF(C118=0,"",AI118*C118) -> 
B119: =IF('Start Page'!$Y$36=2,"DN 100","Diameter 4''") -> Diameter 4'' | C119: 0 | D119: 0 | E119: 0 | F119: 22 | G119: ='AWWA-Water Balance Data Transf.'!$D$41 -> 0 | H119: 1 | I119: 0 | J119: 0 | L119: =IF(SUM(I119:K119)>'Start Page'!$K$35,'Start Page'!$K$35,SUM(I119:K119)) -> 0 | M119: =IF(ISERROR(IF(C119=0,0,IF('Start Page'!$Y$36=1,($F119*60*24*$L119)*(($G119/AD119)^$H119)/10^6,IF('Start Page'!$Y$36=2,($F119*60*24*$L119)*(($G119/AD119)^$H119)/10^6,IF('Start Page'!$Y$36=3,('Unit Conversion Sheet'!$E$17*$F119*60*24*$L119)*(($G119/AD119)^$H119)/10^6))))),0,IF(C119=0,0,IF('Start Page'!$Y$36=1,($F119*60*24*$L119)*(($G119/AD119)^$H119)/10^6,IF('Start Page'!$Y$36=2,($F119*60*24*$L119)*(($G119/AD119)^$H119)/10^6,IF('Start Page'!$Y$36=3,('Unit Conversion Sheet'!$E$17*$F119*60*24*$L119)*(($G119/AD119)^$H119)/10^6))))) -> 0 | N119: 0 | R119: 0 | S119: 1 | Y119: 22 | Z119: =Y119*'Unit Conversion Sheet'!$C$5 -> 83.2790596 | AB119: =IF('Start Page'!$Y$36=1,Y119,IF('Start Page'!$Y$36=2,Z119,IF('Start Page'!$Y$36=3,Y119))) -> 22 | AD119: =IF(S119=1,(IF('Start Page'!$Y$36=1,$AB$39,IF('Start Page'!$Y$36=2,$AC$39,IF('Start Page'!$Y$36=3,$AB$39)))),'AWWA-Water Balance Data Transf.'!$D$41) -> 70 | AE119: ='AWWA-Water Balance Data Transf.'!$E$41 -> PSI | AI119: =IF(C119=0,"",IF('Start Page'!$Y$36=1,($F119*60*24*J119)*(($G119/$AB$39)^$H119)/10^6,IF('Start Page'!$Y$36=2,($F119*60*24*J119)*(($G119/$AC$39)^$H119)/10^6,IF('Start Page'!$Y$36=3,('Unit Conversion Sheet'!$E$17*$F119*60*24*J119)*(($G119/$AB$39)^$H119)/10^6)))) -> 
B120: =IF('Start Page'!$Y$36=2,"DN 150","Diameter 6''") -> Diameter 6'' | C120: 0 | D120: 0 | E120: 0 | F120: 46 | G120: ='AWWA-Water Balance Data Transf.'!$D$41 -> 0 | H120: 1 | I120: 0 | J120: 0 | L120: =IF(SUM(I120:K120)>'Start Page'!$K$35,'Start Page'!$K$35,SUM(I120:K120)) -> 0 | M120: =IF(ISERROR(IF(C120=0,0,IF('Start Page'!$Y$36=1,($F120*60*24*$L120)*(($G120/AD120)^$H120)/10^6,IF('Start Page'!$Y$36=2,($F120*60*24*$L120)*(($G120/AD120)^$H120)/10^6,IF('Start Page'!$Y$36=3,('Unit Conversion Sheet'!$E$17*$F120*60*24*$L120)*(($G120/AD120)^$H120)/10^6))))),0,IF(C120=0,0,IF('Start Page'!$Y$36=1,($F120*60*24*$L120)*(($G120/AD120)^$H120)/10^6,IF('Start Page'!$Y$36=2,($F120*60*24*$L120)*(($G120/AD120)^$H120)/10^6,IF('Start Page'!$Y$36=3,('Unit Conversion Sheet'!$E$17*$F120*60*24*$L120)*(($G120/AD120)^$H120)/10^6))))) -> 0 | N120: 0 | R120: 0 | S120: 1 | Y120: 46 | Z120: =Y120*'Unit Conversion Sheet'!$C$5 -> 174.1289428 | AB120: =IF('Start Page'!$Y$36=1,Y120,IF('Start Page'!$Y$36=2,Z120,IF('Start Page'!$Y$36=3,Y120))) -> 46 | AD120: =IF(S120=1,(IF('Start Page'!$Y$36=1,$AB$39,IF('Start Page'!$Y$36=2,$AC$39,IF('Start Page'!$Y$36=3,$AB$39)))),'AWWA-Water Balance Data Transf.'!$D$41) -> 70 | AE120: ='AWWA-Water Balance Data Transf.'!$E$41 -> PSI | AI120: =IF(C120=0,"",IF('Start Page'!$Y$36=1,($F120*60*24*J120)*(($G120/$AB$39)^$H120)/10^6,IF('Start Page'!$Y$36=2,($F120*60*24*J120)*(($G120/$AC$39)^$H120)/10^6,IF('Start Page'!$Y$36=3,('Unit Conversion Sheet'!$E$17*$F120*60*24*J120)*(($G120/$AB$39)^$H120)/10^6)))) -> 
B121: =IF('Start Page'!$Y$36=2,"DN 200","Diameter 8''") -> Diameter 8'' | C121: 0 | D121: 0 | E121: 0 | F121: 46 | G121: ='AWWA-Water Balance Data Transf.'!$D$41 -> 0 | H121: 1 | I121: 0 | J121: 0 | L121: =IF(SUM(I121:K121)>'Start Page'!$K$35,'Start Page'!$K$35,SUM(I121:K121)) -> 0 | M121: =IF(ISERROR(IF(C121=0,0,IF('Start Page'!$Y$36=1,($F121*60*24*$L121)*(($G121/AD121)^$H121)/10^6,IF('Start Page'!$Y$36=2,($F121*60*24*$L121)*(($G121/AD121)^$H121)/10^6,IF('Start Page'!$Y$36=3,('Unit Conversion Sheet'!$E$17*$F121*60*24*$L121)*(($G121/AD121)^$H121)/10^6))))),0,IF(C121=0,0,IF('Start Page'!$Y$36=1,($F121*60*24*$L121)*(($G121/AD121)^$H121)/10^6,IF('Start Page'!$Y$36=2,($F121*60*24*$L121)*(($G121/AD121)^$H121)/10^6,IF('Start Page'!$Y$36=3,('Unit Conversion Sheet'!$E$17*$F121*60*24*$L121)*(($G121/AD121)^$H121)/10^6))))) -> 0 | N121: 0 | R121: 0 | S121: 1 | Y121: 46 | Z121: =Y121*'Unit Conversion Sheet'!$C$5 -> 174.1289428 | AB121: =IF('Start Page'!$Y$36=1,Y121,IF('Start Page'!$Y$36=2,Z121,IF('Start Page'!$Y$36=3,Y121))) -> 46 | AD121: =IF(S121=1,(IF('Start Page'!$Y$36=1,$AB$39,IF('Start Page'!$Y$36=2,$AC$39,IF('Start Page'!$Y$36=3,$AB$39)))),'AWWA-Water Balance Data Transf.'!$D$41) -> 70 | AE121: ='AWWA-Water Balance Data Transf.'!$E$41 -> PSI | AI121: =IF(C121=0,"",IF('Start Page'!$Y$36=1,($F121*60*24*J121)*(($G121/$AB$39)^$H121)/10^6,IF('Start Page'!$Y$36=2,($F121*60*24*J121)*(($G121/$AC$39)^$H121)/10^6,IF('Start Page'!$Y$36=3,('Unit Conversion Sheet'!$E$17*$F121*60*24*J121)*(($G121/$AB$39)^$H121)/10^6)))) -> 
B122: =IF('Start Page'!$Y$36=2,"DN 250","Diameter 10''") -> Diameter 10'' | C122: 0 | D122: 0 | E122: 0 | F122: 46 | G122: ='AWWA-Water Balance Data Transf.'!$D$41 -> 0 | H122: 1 | I122: 0 | J122: 0 | L122: =IF(SUM(I122:K122)>'Start Page'!$K$35,'Start Page'!$K$35,SUM(I122:K122)) -> 0 | M122: =IF(ISERROR(IF(C122=0,0,IF('Start Page'!$Y$36=1,($F122*60*24*$L122)*(($G122/AD122)^$H122)/10^6,IF('Start Page'!$Y$36=2,($F122*60*24*$L122)*(($G122/AD122)^$H122)/10^6,IF('Start Page'!$Y$36=3,('Unit Conversion Sheet'!$E$17*$F122*60*24*$L122)*(($G122/AD122)^$H122)/10^6))))),0,IF(C122=0,0,IF('Start Page'!$Y$36=1,($F122*60*24*$L122)*(($G122/AD122)^$H122)/10^6,IF('Start Page'!$Y$36=2,($F122*60*24*$L122)*(($G122/AD122)^$H122)/10^6,IF('Start Page'!$Y$36=3,('Unit Conversion Sheet'!$E$17*$F122*60*24*$L122)*(($G122/AD122)^$H122)/10^6))))) -> 0 | N122: 0 | R122: 0 | S122: 1 | Y122: 46 | Z122: =Y122*'Unit Conversion Sheet'!$C$5 -> 174.1289428 | AB122: =IF('Start Page'!$Y$36=1,Y122,IF('Start Page'!$Y$36=2,Z122,IF('Start Page'!$Y$36=3,Y122))) -> 46 | AD122: =IF(S122=1,(IF('Start Page'!$Y$36=1,$AB$39,IF('Start Page'!$Y$36=2,$AC$39,IF('Start Page'!$Y$36=3,$AB$39)))),'AWWA-Water Balance Data Transf.'!$D$41) -> 70 | AE122: ='AWWA-Water Balance Data Transf.'!$E$41 -> PSI | AI122: =IF(C122=0,"",IF('Start Page'!$Y$36=1,($F122*60*24*J122)*(($G122/$AB$39)^$H122)/10^6,IF('Start Page'!$Y$36=2,($F122*60*24*J122)*(($G122/$AC$39)^$H122)/10^6,IF('Start Page'!$Y$36=3,('Unit Conversion Sheet'!$E$17*$F122*60*24*J122)*(($G122/$AB$39)^$H122)/10^6)))) -> 
B123: =IF('Start Page'!$Y$36=2,"DN 300","Diameter 12''") -> Diameter 12'' | C123: 0 | D123: 0 | E123: 0 | F123: 111 | G123: ='AWWA-Water Balance Data Transf.'!$D$41 -> 0 | H123: 1 | I123: 0 | J123: 0 | L123: =IF(SUM(I123:K123)>'Start Page'!$K$35,'Start Page'!$K$35,SUM(I123:K123)) -> 0 | M123: =IF(ISERROR(IF(C123=0,0,IF('Start Page'!$Y$36=1,($F123*60*24*$L123)*(($G123/AD123)^$H123)/10^6,IF('Start Page'!$Y$36=2,($F123*60*24*$L123)*(($G123/AD123)^$H123)/10^6,IF('Start Page'!$Y$36=3,('Unit Conversion Sheet'!$E$17*$F123*60*24*$L123)*(($G123/AD123)^$H123)/10^6))))),0,IF(C123=0,0,IF('Start Page'!$Y$36=1,($F123*60*24*$L123)*(($G123/AD123)^$H123)/10^6,IF('Start Page'!$Y$36=2,($F123*60*24*$L123)*(($G123/AD123)^$H123)/10^6,IF('Start Page'!$Y$36=3,('Unit Conversion Sheet'!$E$17*$F123*60*24*$L123)*(($G123/AD123)^$H123)/10^6))))) -> 0 | N123: 0 | R123: 0 | S123: 1 | Y123: 111 | Z123: =Y123*'Unit Conversion Sheet'!$C$5 -> 420.1807098 | AB123: =IF('Start Page'!$Y$36=1,Y123,IF('Start Page'!$Y$36=2,Z123,IF('Start Page'!$Y$36=3,Y123))) -> 111 | AD123: =IF(S123=1,(IF('Start Page'!$Y$36=1,$AB$39,IF('Start Page'!$Y$36=2,$AC$39,IF('Start Page'!$Y$36=3,$AB$39)))),'AWWA-Water Balance Data Transf.'!$D$41) -> 70 | AE123: ='AWWA-Water Balance Data Transf.'!$E$41 -> PSI | AI123: =IF(C123=0,"",IF('Start Page'!$Y$36=1,($F123*60*24*J123)*(($G123/$AB$39)^$H123)/10^6,IF('Start Page'!$Y$36=2,($F123*60*24*J123)*(($G123/$AC$39)^$H123)/10^6,IF('Start Page'!$Y$36=3,('Unit Conversion Sheet'!$E$17*$F123*60*24*J123)*(($G123/$AB$39)^$H123)/10^6)))) -> 
B124: =IF('Start Page'!$Y$36=2,"DN 350","Diameter 14''") -> Diameter 14'' | C124: 0 | D124: 0 | E124: 0 | F124: 111 | G124: ='AWWA-Water Balance Data Transf.'!$D$41 -> 0 | H124: 1 | I124: 0 | J124: 0 | L124: =IF(SUM(I124:K124)>'Start Page'!$K$35,'Start Page'!$K$35,SUM(I124:K124)) -> 0 | M124: =IF(ISERROR(IF(C124=0,0,IF('Start Page'!$Y$36=1,($F124*60*24*$L124)*(($G124/AD124)^$H124)/10^6,IF('Start Page'!$Y$36=2,($F124*60*24*$L124)*(($G124/AD124)^$H124)/10^6,IF('Start Page'!$Y$36=3,('Unit Conversion Sheet'!$E$17*$F124*60*24*$L124)*(($G124/AD124)^$H124)/10^6))))),0,IF(C124=0,0,IF('Start Page'!$Y$36=1,($F124*60*24*$L124)*(($G124/AD124)^$H124)/10^6,IF('Start Page'!$Y$36=2,($F124*60*24*$L124)*(($G124/AD124)^$H124)/10^6,IF('Start Page'!$Y$36=3,('Unit Conversion Sheet'!$E$17*$F124*60*24*$L124)*(($G124/AD124)^$H124)/10^6))))) -> 0 | N124: 0 | R124: 0 | S124: 1 | Y124: 111 | Z124: =Y124*'Unit Conversion Sheet'!$C$5 -> 420.1807098 | AB124: =IF('Start Page'!$Y$36=1,Y124,IF('Start Page'!$Y$36=2,Z124,IF('Start Page'!$Y$36=3,Y124))) -> 111 | AD124: =IF(S124=1,(IF('Start Page'!$Y$36=1,$AB$39,IF('Start Page'!$Y$36=2,$AC$39,IF('Start Page'!$Y$36=3,$AB$39)))),'AWWA-Water Balance Data Transf.'!$D$41) -> 70 | AE124: ='AWWA-Water Balance Data Transf.'!$E$41 -> PSI | AI124: =IF(C124=0,"",IF('Start Page'!$Y$36=1,($F124*60*24*J124)*(($G124/$AB$39)^$H124)/10^6,IF('Start Page'!$Y$36=2,($F124*60*24*J124)*(($G124/$AC$39)^$H124)/10^6,IF('Start Page'!$Y$36=3,('Unit Conversion Sheet'!$E$17*$F124*60*24*J124)*(($G124/$AB$39)^$H124)/10^6)))) -> 
B125: =IF('Start Page'!$Y$36=2,"DN 400","Diameter 16''") -> Diameter 16'' | C125: 0 | D125: 0 | E125: 0 | F125: 111 | G125: ='AWWA-Water Balance Data Transf.'!$D$41 -> 0 | H125: 1 | I125: 0 | J125: 0 | L125: =IF(SUM(I125:K125)>'Start Page'!$K$35,'Start Page'!$K$35,SUM(I125:K125)) -> 0 | M125: =IF(ISERROR(IF(C125=0,0,IF('Start Page'!$Y$36=1,($F125*60*24*$L125)*(($G125/AD125)^$H125)/10^6,IF('Start Page'!$Y$36=2,($F125*60*24*$L125)*(($G125/AD125)^$H125)/10^6,IF('Start Page'!$Y$36=3,('Unit Conversion Sheet'!$E$17*$F125*60*24*$L125)*(($G125/AD125)^$H125)/10^6))))),0,IF(C125=0,0,IF('Start Page'!$Y$36=1,($F125*60*24*$L125)*(($G125/AD125)^$H125)/10^6,IF('Start Page'!$Y$36=2,($F125*60*24*$L125)*(($G125/AD125)^$H125)/10^6,IF('Start Page'!$Y$36=3,('Unit Conversion Sheet'!$E$17*$F125*60*24*$L125)*(($G125/AD125)^$H125)/10^6))))) -> 0 | N125: 0 | R125: 0 | S125: 1 | Y125: 111 | Z125: =Y125*'Unit Conversion Sheet'!$C$5 -> 420.1807098 | AB125: =IF('Start Page'!$Y$36=1,Y125,IF('Start Page'!$Y$36=2,Z125,IF('Start Page'!$Y$36=3,Y125))) -> 111 | AD125: =IF(S125=1,(IF('Start Page'!$Y$36=1,$AB$39,IF('Start Page'!$Y$36=2,$AC$39,IF('Start Page'!$Y$36=3,$AB$39)))),'AWWA-Water Balance Data Transf.'!$D$41) -> 70 | AE125: ='AWWA-Water Balance Data Transf.'!$E$41 -> PSI | AI125: =IF(C125=0,"",IF('Start Page'!$Y$36=1,($F125*60*24*J125)*(($G125/$AB$39)^$H125)/10^6,IF('Start Page'!$Y$36=2,($F125*60*24*J125)*(($G125/$AC$39)^$H125)/10^6,IF('Start Page'!$Y$36=3,('Unit Conversion Sheet'!$E$17*$F125*60*24*J125)*(($G125/$AB$39)^$H125)/10^6)))) -> 
B126: =IF('Start Page'!$Y$36=2,"DN 450","Diameter 18''") -> Diameter 18'' | C126: 0 | D126: 0 | E126: 0 | F126: 111 | G126: ='AWWA-Water Balance Data Transf.'!$D$41 -> 0 | H126: 1 | I126: 0 | J126: 0 | L126: =IF(SUM(I126:K126)>'Start Page'!$K$35,'Start Page'!$K$35,SUM(I126:K126)) -> 0 | M126: =IF(ISERROR(IF(C126=0,0,IF('Start Page'!$Y$36=1,($F126*60*24*$L126)*(($G126/AD126)^$H126)/10^6,IF('Start Page'!$Y$36=2,($F126*60*24*$L126)*(($G126/AD126)^$H126)/10^6,IF('Start Page'!$Y$36=3,('Unit Conversion Sheet'!$E$17*$F126*60*24*$L126)*(($G126/AD126)^$H126)/10^6))))),0,IF(C126=0,0,IF('Start Page'!$Y$36=1,($F126*60*24*$L126)*(($G126/AD126)^$H126)/10^6,IF('Start Page'!$Y$36=2,($F126*60*24*$L126)*(($G126/AD126)^$H126)/10^6,IF('Start Page'!$Y$36=3,('Unit Conversion Sheet'!$E$17*$F126*60*24*$L126)*(($G126/AD126)^$H126)/10^6))))) -> 0 | N126: 0 | R126: 0 | S126: 1 | Y126: 111 | Z126: =Y126*'Unit Conversion Sheet'!$C$5 -> 420.1807098 | AB126: =IF('Start Page'!$Y$36=1,Y126,IF('Start Page'!$Y$36=2,Z126,IF('Start Page'!$Y$36=3,Y126))) -> 111 | AD126: =IF(S126=1,(IF('Start Page'!$Y$36=1,$AB$39,IF('Start Page'!$Y$36=2,$AC$39,IF('Start Page'!$Y$36=3,$AB$39)))),'AWWA-Water Balance Data Transf.'!$D$41) -> 70 | AE126: ='AWWA-Water Balance Data Transf.'!$E$41 -> PSI | AI126: =IF(C126=0,"",IF('Start Page'!$Y$36=1,($F126*60*24*J126)*(($G126/$AB$39)^$H126)/10^6,IF('Start Page'!$Y$36=2,($F126*60*24*J126)*(($G126/$AC$39)^$H126)/10^6,IF('Start Page'!$Y$36=3,('Unit Conversion Sheet'!$E$17*$F126*60*24*J126)*(($G126/$AB$39)^$H126)/10^6)))) -> 
B127: =IF('Start Page'!$Y$36=2,"DN 500","Diameter 20''") -> Diameter 20'' | C127: 0 | D127: 0 | E127: 0 | F127: 111 | G127: ='AWWA-Water Balance Data Transf.'!$D$41 -> 0 | H127: 1 | I127: 0 | J127: 0 | L127: =IF(SUM(I127:K127)>'Start Page'!$K$35,'Start Page'!$K$35,SUM(I127:K127)) -> 0 | M127: =IF(ISERROR(IF(C127=0,0,IF('Start Page'!$Y$36=1,($F127*60*24*$L127)*(($G127/AD127)^$H127)/10^6,IF('Start Page'!$Y$36=2,($F127*60*24*$L127)*(($G127/AD127)^$H127)/10^6,IF('Start Page'!$Y$36=3,('Unit Conversion Sheet'!$E$17*$F127*60*24*$L127)*(($G127/AD127)^$H127)/10^6))))),0,IF(C127=0,0,IF('Start Page'!$Y$36=1,($F127*60*24*$L127)*(($G127/AD127)^$H127)/10^6,IF('Start Page'!$Y$36=2,($F127*60*24*$L127)*(($G127/AD127)^$H127)/10^6,IF('Start Page'!$Y$36=3,('Unit Conversion Sheet'!$E$17*$F127*60*24*$L127)*(($G127/AD127)^$H127)/10^6))))) -> 0 | N127: 0 | R127: 0 | S127: 1 | Y127: 111 | Z127: =Y127*'Unit Conversion Sheet'!$C$5 -> 420.1807098 | AB127: =IF('Start Page'!$Y$36=1,Y127,IF('Start Page'!$Y$36=2,Z127,IF('Start Page'!$Y$36=3,Y127))) -> 111 | AD127: =IF(S127=1,(IF('Start Page'!$Y$36=1,$AB$39,IF('Start Page'!$Y$36=2,$AC$39,IF('Start Page'!$Y$36=3,$AB$39)))),'AWWA-Water Balance Data Transf.'!$D$41) -> 70 | AE127: ='AWWA-Water Balance Data Transf.'!$E$41 -> PSI | AI127: =IF(C127=0,"",IF('Start Page'!$Y$36=1,($F127*60*24*J127)*(($G127/$AB$39)^$H127)/10^6,IF('Start Page'!$Y$36=2,($F127*60*24*J127)*(($G127/$AC$39)^$H127)/10^6,IF('Start Page'!$Y$36=3,('Unit Conversion Sheet'!$E$17*$F127*60*24*J127)*(($G127/$AB$39)^$H127)/10^6)))) -> 
B128: =IF('Start Page'!$Y$36=2,"DN 600","Diameter 24''") -> Diameter 24'' | C128: 0 | D128: 0 | E128: 0 | F128: 111 | G128: ='AWWA-Water Balance Data Transf.'!$D$41 -> 0 | H128: 1 | I128: 0 | J128: 0 | L128: =IF(SUM(I128:K128)>'Start Page'!$K$35,'Start Page'!$K$35,SUM(I128:K128)) -> 0 | M128: =IF(ISERROR(IF(C128=0,0,IF('Start Page'!$Y$36=1,($F128*60*24*$L128)*(($G128/AD128)^$H128)/10^6,IF('Start Page'!$Y$36=2,($F128*60*24*$L128)*(($G128/AD128)^$H128)/10^6,IF('Start Page'!$Y$36=3,('Unit Conversion Sheet'!$E$17*$F128*60*24*$L128)*(($G128/AD128)^$H128)/10^6))))),0,IF(C128=0,0,IF('Start Page'!$Y$36=1,($F128*60*24*$L128)*(($G128/AD128)^$H128)/10^6,IF('Start Page'!$Y$36=2,($F128*60*24*$L128)*(($G128/AD128)^$H128)/10^6,IF('Start Page'!$Y$36=3,('Unit Conversion Sheet'!$E$17*$F128*60*24*$L128)*(($G128/AD128)^$H128)/10^6))))) -> 0 | N128: 0 | R128: 0 | S128: 1 | Y128: 111 | Z128: =Y128*'Unit Conversion Sheet'!$C$5 -> 420.1807098 | AB128: =IF('Start Page'!$Y$36=1,Y128,IF('Start Page'!$Y$36=2,Z128,IF('Start Page'!$Y$36=3,Y128))) -> 111 | AD128: =IF(S128=1,(IF('Start Page'!$Y$36=1,$AB$39,IF('Start Page'!$Y$36=2,$AC$39,IF('Start Page'!$Y$36=3,$AB$39)))),'AWWA-Water Balance Data Transf.'!$D$41) -> 70 | AE128: ='AWWA-Water Balance Data Transf.'!$E$41 -> PSI | AI128: =IF(C128=0,"",IF('Start Page'!$Y$36=1,($F128*60*24*J128)*(($G128/$AB$39)^$H128)/10^6,IF('Start Page'!$Y$36=2,($F128*60*24*J128)*(($G128/$AC$39)^$H128)/10^6,IF('Start Page'!$Y$36=3,('Unit Conversion Sheet'!$E$17*$F128*60*24*J128)*(($G128/$AB$39)^$H128)/10^6)))) -> 
B129: =IF('Start Page'!$Y$36=2,"DN 750","Diameter 30''") -> Diameter 30'' | C129: 0 | D129: 0 | E129: 0 | F129: 111 | G129: ='AWWA-Water Balance Data Transf.'!$D$41 -> 0 | H129: 1 | I129: 0 | J129: 0 | L129: =IF(SUM(I129:K129)>'Start Page'!$K$35,'Start Page'!$K$35,SUM(I129:K129)) -> 0 | M129: =IF(ISERROR(IF(C129=0,0,IF('Start Page'!$Y$36=1,($F129*60*24*$L129)*(($G129/AD129)^$H129)/10^6,IF('Start Page'!$Y$36=2,($F129*60*24*$L129)*(($G129/AD129)^$H129)/10^6,IF('Start Page'!$Y$36=3,('Unit Conversion Sheet'!$E$17*$F129*60*24*$L129)*(($G129/AD129)^$H129)/10^6))))),0,IF(C129=0,0,IF('Start Page'!$Y$36=1,($F129*60*24*$L129)*(($G129/AD129)^$H129)/10^6,IF('Start Page'!$Y$36=2,($F129*60*24*$L129)*(($G129/AD129)^$H129)/10^6,IF('Start Page'!$Y$36=3,('Unit Conversion Sheet'!$E$17*$F129*60*24*$L129)*(($G129/AD129)^$H129)/10^6))))) -> 0 | N129: 0 | R129: 0 | S129: 1 | Y129: 111 | Z129: =Y129*'Unit Conversion Sheet'!$C$5 -> 420.1807098 | AB129: =IF('Start Page'!$Y$36=1,Y129,IF('Start Page'!$Y$36=2,Z129,IF('Start Page'!$Y$36=3,Y129))) -> 111 | AD129: =IF(S129=1,(IF('Start Page'!$Y$36=1,$AB$39,IF('Start Page'!$Y$36=2,$AC$39,IF('Start Page'!$Y$36=3,$AB$39)))),'AWWA-Water Balance Data Transf.'!$D$41) -> 70 | AE129: ='AWWA-Water Balance Data Transf.'!$E$41 -> PSI | AI129: =IF(C129=0,"",IF('Start Page'!$Y$36=1,($F129*60*24*J129)*(($G129/$AB$39)^$H129)/10^6,IF('Start Page'!$Y$36=2,($F129*60*24*J129)*(($G129/$AC$39)^$H129)/10^6,IF('Start Page'!$Y$36=3,('Unit Conversion Sheet'!$E$17*$F129*60*24*J129)*(($G129/$AB$39)^$H129)/10^6)))) -> 
B130: =IF('Start Page'!$Y$36=2,"DN 900","Diameter 36''") -> Diameter 36'' | C130: 0 | D130: 0 | E130: 0 | F130: 111 | G130: ='AWWA-Water Balance Data Transf.'!$D$41 -> 0 | H130: 1 | I130: 0 | J130: 0 | L130: =IF(SUM(I130:K130)>'Start Page'!$K$35,'Start Page'!$K$35,SUM(I130:K130)) -> 0 | M130: =IF(ISERROR(IF(C130=0,0,IF('Start Page'!$Y$36=1,($F130*60*24*$L130)*(($G130/AD130)^$H130)/10^6,IF('Start Page'!$Y$36=2,($F130*60*24*$L130)*(($G130/AD130)^$H130)/10^6,IF('Start Page'!$Y$36=3,('Unit Conversion Sheet'!$E$17*$F130*60*24*$L130)*(($G130/AD130)^$H130)/10^6))))),0,IF(C130=0,0,IF('Start Page'!$Y$36=1,($F130*60*24*$L130)*(($G130/AD130)^$H130)/10^6,IF('Start Page'!$Y$36=2,($F130*60*24*$L130)*(($G130/AD130)^$H130)/10^6,IF('Start Page'!$Y$36=3,('Unit Conversion Sheet'!$E$17*$F130*60*24*$L130)*(($G130/AD130)^$H130)/10^6))))) -> 0 | N130: 0 | R130: 0 | S130: 1 | Y130: 111 | Z130: =Y130*'Unit Conversion Sheet'!$C$5 -> 420.1807098 | AB130: =IF('Start Page'!$Y$36=1,Y130,IF('Start Page'!$Y$36=2,Z130,IF('Start Page'!$Y$36=3,Y130))) -> 111 | AD130: =IF(S130=1,(IF('Start Page'!$Y$36=1,$AB$39,IF('Start Page'!$Y$36=2,$AC$39,IF('Start Page'!$Y$36=3,$AB$39)))),'AWWA-Water Balance Data Transf.'!$D$41) -> 70 | AE130: ='AWWA-Water Balance Data Transf.'!$E$41 -> PSI | AI130: =IF(C130=0,"",IF('Start Page'!$Y$36=1,($F130*60*24*J130)*(($G130/$AB$39)^$H130)/10^6,IF('Start Page'!$Y$36=2,($F130*60*24*J130)*(($G130/$AC$39)^$H130)/10^6,IF('Start Page'!$Y$36=3,('Unit Conversion Sheet'!$E$17*$F130*60*24*J130)*(($G130/$AB$39)^$H130)/10^6)))) -> 
B131: =IF('Start Page'!$Y$36=2,"DN 1050","Diameter 42''") -> Diameter 42'' | C131: 0 | D131: 0 | E131: 0 | F131: 111 | G131: ='AWWA-Water Balance Data Transf.'!$D$41 -> 0 | H131: 1 | I131: 0 | J131: 0 | L131: =IF(SUM(I131:K131)>'Start Page'!$K$35,'Start Page'!$K$35,SUM(I131:K131)) -> 0 | M131: =IF(ISERROR(IF(C131=0,0,IF('Start Page'!$Y$36=1,($F131*60*24*$L131)*(($G131/AD131)^$H131)/10^6,IF('Start Page'!$Y$36=2,($F131*60*24*$L131)*(($G131/AD131)^$H131)/10^6,IF('Start Page'!$Y$36=3,('Unit Conversion Sheet'!$E$17*$F131*60*24*$L131)*(($G131/AD131)^$H131)/10^6))))),0,IF(C131=0,0,IF('Start Page'!$Y$36=1,($F131*60*24*$L131)*(($G131/AD131)^$H131)/10^6,IF('Start Page'!$Y$36=2,($F131*60*24*$L131)*(($G131/AD131)^$H131)/10^6,IF('Start Page'!$Y$36=3,('Unit Conversion Sheet'!$E$17*$F131*60*24*$L131)*(($G131/AD131)^$H131)/10^6))))) -> 0 | N131: 0 | R131: 0 | S131: 1 | Y131: 111 | Z131: =Y131*'Unit Conversion Sheet'!$C$5 -> 420.1807098 | AB131: =IF('Start Page'!$Y$36=1,Y131,IF('Start Page'!$Y$36=2,Z131,IF('Start Page'!$Y$36=3,Y131))) -> 111 | AD131: =IF(S131=1,(IF('Start Page'!$Y$36=1,$AB$39,IF('Start Page'!$Y$36=2,$AC$39,IF('Start Page'!$Y$36=3,$AB$39)))),'AWWA-Water Balance Data Transf.'!$D$41) -> 70 | AE131: ='AWWA-Water Balance Data Transf.'!$E$41 -> PSI | AI131: =IF(C131=0,"",IF('Start Page'!$Y$36=1,($F131*60*24*J131)*(($G131/$AB$39)^$H131)/10^6,IF('Start Page'!$Y$36=2,($F131*60*24*J131)*(($G131/$AC$39)^$H131)/10^6,IF('Start Page'!$Y$36=3,('Unit Conversion Sheet'!$E$17*$F131*60*24*J131)*(($G131/$AB$39)^$H131)/10^6)))) -> 
B132: =IF('Start Page'!$Y$36=2,"DN 1200","Diameter 48''") -> Diameter 48'' | C132: 0 | D132: 0 | E132: 0 | F132: 111 | G132: ='AWWA-Water Balance Data Transf.'!$D$41 -> 0 | H132: 1 | I132: 0 | J132: 0 | L132: =IF(SUM(I132:K132)>'Start Page'!$K$35,'Start Page'!$K$35,SUM(I132:K132)) -> 0 | M132: =IF(ISERROR(IF(C132=0,0,IF('Start Page'!$Y$36=1,($F132*60*24*$L132)*(($G132/AD132)^$H132)/10^6,IF('Start Page'!$Y$36=2,($F132*60*24*$L132)*(($G132/AD132)^$H132)/10^6,IF('Start Page'!$Y$36=3,('Unit Conversion Sheet'!$E$17*$F132*60*24*$L132)*(($G132/AD132)^$H132)/10^6))))),0,IF(C132=0,0,IF('Start Page'!$Y$36=1,($F132*60*24*$L132)*(($G132/AD132)^$H132)/10^6,IF('Start Page'!$Y$36=2,($F132*60*24*$L132)*(($G132/AD132)^$H132)/10^6,IF('Start Page'!$Y$36=3,('Unit Conversion Sheet'!$E$17*$F132*60*24*$L132)*(($G132/AD132)^$H132)/10^6))))) -> 0 | N132: 0 | R132: 0 | S132: 1 | Y132: 111 | Z132: =Y132*'Unit Conversion Sheet'!$C$5 -> 420.1807098 | AB132: =IF('Start Page'!$Y$36=1,Y132,IF('Start Page'!$Y$36=2,Z132,IF('Start Page'!$Y$36=3,Y132))) -> 111 | AD132: =IF(S132=1,(IF('Start Page'!$Y$36=1,$AB$39,IF('Start Page'!$Y$36=2,$AC$39,IF('Start Page'!$Y$36=3,$AB$39)))),'AWWA-Water Balance Data Transf.'!$D$41) -> 70 | AE132: ='AWWA-Water Balance Data Transf.'!$E$41 -> PSI | AI132: =IF(C132=0,"",IF('Start Page'!$Y$36=1,($F132*60*24*J132)*(($G132/$AB$39)^$H132)/10^6,IF('Start Page'!$Y$36=2,($F132*60*24*J132)*(($G132/$AC$39)^$H132)/10^6,IF('Start Page'!$Y$36=3,('Unit Conversion Sheet'!$E$17*$F132*60*24*J132)*(($G132/$AB$39)^$H132)/10^6)))) -> 
B133: =IF('Start Page'!$Y$36=2,"DN 1350","Diameter 54''") -> Diameter 54'' | C133: 0 | D133: 0 | E133: 0 | F133: 111 | G133: ='AWWA-Water Balance Data Transf.'!$D$41 -> 0 | H133: 1 | I133: 0 | J133: 0 | L133: =IF(SUM(I133:K133)>'Start Page'!$K$35,'Start Page'!$K$35,SUM(I133:K133)) -> 0 | M133: =IF(ISERROR(IF(C133=0,0,IF('Start Page'!$Y$36=1,($F133*60*24*$L133)*(($G133/AD133)^$H133)/10^6,IF('Start Page'!$Y$36=2,($F133*60*24*$L133)*(($G133/AD133)^$H133)/10^6,IF('Start Page'!$Y$36=3,('Unit Conversion Sheet'!$E$17*$F133*60*24*$L133)*(($G133/AD133)^$H133)/10^6))))),0,IF(C133=0,0,IF('Start Page'!$Y$36=1,($F133*60*24*$L133)*(($G133/AD133)^$H133)/10^6,IF('Start Page'!$Y$36=2,($F133*60*24*$L133)*(($G133/AD133)^$H133)/10^6,IF('Start Page'!$Y$36=3,('Unit Conversion Sheet'!$E$17*$F133*60*24*$L133)*(($G133/AD133)^$H133)/10^6))))) -> 0 | N133: 0 | R133: 0 | S133: 1 | Y133: 111 | Z133: =Y133*'Unit Conversion Sheet'!$C$5 -> 420.1807098 | AB133: =IF('Start Page'!$Y$36=1,Y133,IF('Start Page'!$Y$36=2,Z133,IF('Start Page'!$Y$36=3,Y133))) -> 111 | AD133: =IF(S133=1,(IF('Start Page'!$Y$36=1,$AB$39,IF('Start Page'!$Y$36=2,$AC$39,IF('Start Page'!$Y$36=3,$AB$39)))),'AWWA-Water Balance Data Transf.'!$D$41) -> 70 | AE133: ='AWWA-Water Balance Data Transf.'!$E$41 -> PSI | AI133: =IF(C133=0,"",IF('Start Page'!$Y$36=1,($F133*60*24*J133)*(($G133/$AB$39)^$H133)/10^6,IF('Start Page'!$Y$36=2,($F133*60*24*J133)*(($G133/$AC$39)^$H133)/10^6,IF('Start Page'!$Y$36=3,('Unit Conversion Sheet'!$E$17*$F133*60*24*J133)*(($G133/$AB$39)^$H133)/10^6)))) -> 
B134: =IF('Start Page'!$Y$36=2,"DN 1500","Diameter 60''") -> Diameter 60'' | C134: 0 | D134: 0 | E134: 0 | F134: 111 | G134: ='AWWA-Water Balance Data Transf.'!$D$41 -> 0 | H134: 1 | I134: 0 | J134: 0 | L134: =IF(SUM(I134:K134)>'Start Page'!$K$35,'Start Page'!$K$35,SUM(I134:K134)) -> 0 | M134: =IF(ISERROR(IF(C134=0,0,IF('Start Page'!$Y$36=1,($F134*60*24*$L134)*(($G134/AD134)^$H134)/10^6,IF('Start Page'!$Y$36=2,($F134*60*24*$L134)*(($G134/AD134)^$H134)/10^6,IF('Start Page'!$Y$36=3,('Unit Conversion Sheet'!$E$17*$F134*60*24*$L134)*(($G134/AD134)^$H134)/10^6))))),0,IF(C134=0,0,IF('Start Page'!$Y$36=1,($F134*60*24*$L134)*(($G134/AD134)^$H134)/10^6,IF('Start Page'!$Y$36=2,($F134*60*24*$L134)*(($G134/AD134)^$H134)/10^6,IF('Start Page'!$Y$36=3,('Unit Conversion Sheet'!$E$17*$F134*60*24*$L134)*(($G134/AD134)^$H134)/10^6))))) -> 0 | N134: 0 | R134: 0 | S134: 1 | Y134: 111 | Z134: =Y134*'Unit Conversion Sheet'!$C$5 -> 420.1807098 | AB134: =IF('Start Page'!$Y$36=1,Y134,IF('Start Page'!$Y$36=2,Z134,IF('Start Page'!$Y$36=3,Y134))) -> 111 | AD134: =IF(S134=1,(IF('Start Page'!$Y$36=1,$AB$39,IF('Start Page'!$Y$36=2,$AC$39,IF('Start Page'!$Y$36=3,$AB$39)))),'AWWA-Water Balance Data Transf.'!$D$41) -> 70 | AE134: ='AWWA-Water Balance Data Transf.'!$E$41 -> PSI | AI134: =IF(C134=0,"",IF('Start Page'!$Y$36=1,($F134*60*24*J134)*(($G134/$AB$39)^$H134)/10^6,IF('Start Page'!$Y$36=2,($F134*60*24*J134)*(($G134/$AC$39)^$H134)/10^6,IF('Start Page'!$Y$36=3,('Unit Conversion Sheet'!$E$17*$F134*60*24*J134)*(($G134/$AB$39)^$H134)/10^6)))) -> 
B135: =IF('Start Page'!$Y$36=2,"> DN 1500","Diameter >60''") -> Diameter >60'' | C135: 0 | D135: 0 | E135: 0 | F135: 111 | G135: ='AWWA-Water Balance Data Transf.'!$D$41 -> 0 | H135: 1 | I135: 0 | J135: 0 | L135: =IF(SUM(I135:K135)>'Start Page'!$K$35,'Start Page'!$K$35,SUM(I135:K135)) -> 0 | M135: =IF(ISERROR(IF(C135=0,0,IF('Start Page'!$Y$36=1,($F135*60*24*$L135)*(($G135/AD135)^$H135)/10^6,IF('Start Page'!$Y$36=2,($F135*60*24*$L135)*(($G135/AD135)^$H135)/10^6,IF('Start Page'!$Y$36=3,('Unit Conversion Sheet'!$E$17*$F135*60*24*$L135)*(($G135/AD135)^$H135)/10^6))))),0,IF(C135=0,0,IF('Start Page'!$Y$36=1,($F135*60*24*$L135)*(($G135/AD135)^$H135)/10^6,IF('Start Page'!$Y$36=2,($F135*60*24*$L135)*(($G135/AD135)^$H135)/10^6,IF('Start Page'!$Y$36=3,('Unit Conversion Sheet'!$E$17*$F135*60*24*$L135)*(($G135/AD135)^$H135)/10^6))))) -> 0 | N135: 0 | R135: 0 | S135: 1 | Y135: 111 | Z135: =Y135*'Unit Conversion Sheet'!$C$5 -> 420.1807098 | AB135: =IF('Start Page'!$Y$36=1,Y135,IF('Start Page'!$Y$36=2,Z135,IF('Start Page'!$Y$36=3,Y135))) -> 111 | AD135: =IF(S135=1,(IF('Start Page'!$Y$36=1,$AB$39,IF('Start Page'!$Y$36=2,$AC$39,IF('Start Page'!$Y$36=3,$AB$39)))),'AWWA-Water Balance Data Transf.'!$D$41) -> 70 | AE135: ='AWWA-Water Balance Data Transf.'!$E$41 -> PSI | AI135: =IF(C135=0,"",IF('Start Page'!$Y$36=1,($F135*60*24*J135)*(($G135/$AB$39)^$H135)/10^6,IF('Start Page'!$Y$36=2,($F135*60*24*J135)*(($G135/$AC$39)^$H135)/10^6,IF('Start Page'!$Y$36=3,('Unit Conversion Sheet'!$E$17*$F135*60*24*J135)*(($G135/$AB$39)^$H135)/10^6)))) -> 
B136: Other Diameter | C136: 0 | D136: 0 | E136: 0 | F136: =R136 -> 0 | G136: ='AWWA-Water Balance Data Transf.'!$D$41 -> 0 | H136: 1 | I136: 0 | J136: 0 | L136: =IF(SUM(I136:K136)>'Start Page'!$K$35,'Start Page'!$K$35,SUM(I136:K136)) -> 0 | M136: =IF(ISERROR(IF(C136=0,0,IF('Start Page'!$Y$36=1,($F136*60*24*$L136)*(($G136/AD136)^$H136)/10^6,IF('Start Page'!$Y$36=2,($F136*60*24*$L136)*(($G136/AD136)^$H136)/10^6,IF('Start Page'!$Y$36=3,('Unit Conversion Sheet'!$E$17*$F136*60*24*$L136)*(($G136/AD136)^$H136)/10^6))))),0,IF(C136=0,0,IF('Start Page'!$Y$36=1,($F136*60*24*$L136)*(($G136/AD136)^$H136)/10^6,IF('Start Page'!$Y$36=2,($F136*60*24*$L136)*(($G136/AD136)^$H136)/10^6,IF('Start Page'!$Y$36=3,('Unit Conversion Sheet'!$E$17*$F136*60*24*$L136)*(($G136/AD136)^$H136)/10^6))))) -> 0 | N136: 0 | P136: Enter Avg Flow Rate | R136: 0 | AD136: ='AWWA-Water Balance Data Transf.'!$D$41 -> 0 | AE136: ='AWWA-Water Balance Data Transf.'!$E$41 -> PSI | AI136: =IF(C136=0,"",IF('Start Page'!$Y$36=1,($F136*60*24*J136)*(($G136/$AB$39)^$H136)/10^6,IF('Start Page'!$Y$36=2,($F136*60*24*J136)*(($G136/$AC$39)^$H136)/10^6,IF('Start Page'!$Y$36=3,('Unit Conversion Sheet'!$E$17*$F136*60*24*J136)*(($G136/$AB$39)^$H136)/10^6)))) -> 
B137: =IF(C136=0,"",IF(C136="","",IF(R136=0,"PLEASE ENTER FLOW RATE FOR OTHER DIAMETER LEAKS IN CELL R136",IF(R136="","PLEASE ENTER FLOW RATE FOR OTHER DIAMETER LEAKS IN CELL R136","")))) ->  | M137: SUB-TOTAL UNREPORTED FAILURES ON MAINS | N137: =SUM(N117:N136) -> 0 | AG137: Sum | AH137: =SUM(AH117:AH136) -> 0 | AI137: =SUM(AI117:AI136) -> 0 | AJ137: =SUM(AJ117:AJ136) -> 0
B138: Step 4B: UNREPORTED FAILURES ON DISTRIBUTION SYSTEM APPURTENANCES
B140: Instructions: | C140: Enter the total number of failures by distribution system appurtenance type that were detected and repaired through proactive leak detection during the audit period in cells C145 to C148. Next enter the total number of system appurtenances for each appurtenance type in cells D145 to D148 (Note: this information is not required for the real loss component analysis but serves to calculate failure frequencies by appurtenance type). Next enter the average awareness duration for unreported failure events by system appurtenance type in cells I145 to I148 (If the entire distribution system is surveyed once a year the average awareness time is 365 days ÷ 2 = 182.5 days, if the system is surveyed twice a year then the average awareness time is 365 days ÷ 4 = 91.25 days and so on). Next enter the average duration of locating and containing unreported failure events by system appurtenance type in cells K145 to K48. Next select either the default average leak flow rate provided by the model in cells P145 to P148 or select and enter your own utility specific average leakage flow rates in cells Q145 to R148. Average failure flow rates are based on AWWA M36 recommended flow rates and flow rates collected by the research team.
AB141: Based on Select Preferred Volumetric Units for Audit and Component Analysis | AC141: Sum for whether F56 states that its at 70/49.2 pressure or at system specific pressure) | AD141: Pressure for average leak flow rate depending on whether user utilized default flow rate or utility specific flow rate (which does not need to be pressure corrected)
B142: System Appurtenances by Type | C142: Number of Failures per Year | D142: Total Number of Appurtenances | E142: Failure Frequency | F142: Average Failure Flow Rate @ | G142: Average Pressure | H142: N1 (Leakage-Pressure Exponent) Value | I142: Average Failure Duration | M142: Average Annual Loss per Failure | N142: Total Annual Loss | P142: Use Default Average Failure Flow Rate | Q142: Use Utility Specific Average Failure Flow Rate | R142: Average Failure Flow Rate @ | AH142: Number of Leaks times Location and Repair Duration | AI142: Real Loss Volume per Leak Stemming From Location and Repair Duration | AJ142: Total Annual Real Loss Volume Stemming From Location and Repair Duration
E143: Number of Failures per 1000 Appurtenances | F143: =IF(AC145=3,IF('Start Page'!$Y$36=1,$AB$39 & "psi",IF('Start Page'!$Y$36=2,$AC$39 & "metres head",IF('Start Page'!$Y$36=3,$AB$39 & "psi"))),("Avergage System Presure")) -> 70psi | I143: Average Awareness Duration | J143: Average Duration for Location and Repair/Shutoff Failure | L143: Total Duration | R143: ="average system pressure" -> average system pressure
F144: =IF('Start Page'!$Y$36=1,"(gpm)",IF('Start Page'!$Y$36=2,"(lpm)", IF('Start Page'!$Y$36=3,"(gpm)"))) -> (gpm) | G144: =$G$38 -> (psi) | I144: (days) | J144: (days) | L144: (days) | M144: =$I$38 -> (MG) | N144: =$I$38 -> (MG) | R144: =$F$57 -> (gpm) | Y144: gpm | Z144: lpm | AB144: =$F$57 -> (gpm) | AH144: days | AI144: =$N$57 -> (MG) | AJ144: =$N$57 -> (MG)
B145: Hydrants | C145: 0 | D145: 0 | E145: =IF(D145=0,0,C145/D145*1000) -> 0 | F145: =IF(S145=1,AB145,R145) -> 3.5 | G145: ='AWWA-Water Balance Data Transf.'!$D$41 -> 0 | H145: 1 | I145: 0 | J145: 0 | L145: =IF(SUM(I145:K145)>'Start Page'!$K$35,'Start Page'!$K$35,SUM(I145:K145)) -> 0 | M145: =IF(ISERROR(IF(C145=0,0,IF('Start Page'!$Y$36=1,(F145*60*24*L145)*((G145/AD145)^H145)/10^6,IF('Start Page'!$Y$36=2,(F145*60*24*L145)*((G145/AD145)^H145)/10^6,IF('Start Page'!$Y$36=3,('Unit Conversion Sheet'!$E$17*F145*60*24*L145)*((G145/AD145)^H145)/10^6))))),0,IF(C145=0,0,IF('Start Page'!$Y$36=1,(F145*60*24*L145)*((G145/AD145)^H145)/10^6,IF('Start Page'!$Y$36=2,(F145*60*24*L145)*((G145/AD145)^H145)/10^6,IF('Start Page'!$Y$36=3,('Unit Conversion Sheet'!$E$17*F145*60*24*L145)*((G145/AD145)^H145)/10^6))))) -> 0 | N145: =IF(C145=0,0,M145*C145) -> 0 | R145: 0 | S145: 1 | Y145: 3.5 | Z145: =Y145*'Unit Conversion Sheet'!$C$5 -> 13.2489413 | AB145: =IF('Start Page'!$Y$36=1,Y145,IF('Start Page'!$Y$36=2,Z145,IF('Start Page'!$Y$36=3,Y145))) -> 3.5 | AC145: =SUM(S145:S147) -> 3 | AD145: =IF(S145=1,(IF('Start Page'!$Y$36=1,$AB$39,IF('Start Page'!$Y$36=2,$AC$39,IF('Start Page'!$Y$36=3,$AB$39)))),'AWWA-Water Balance Data Transf.'!$D$41) -> 70 | AE145: ='AWWA-Water Balance Data Transf.'!$E$41 -> PSI | AH145: =IF(C145=0,"",C145*J145) ->  | AI145: =IF(C145=0,"",IF('Start Page'!$Y$36=1,($F145*60*24*J145)*(($G145/$AB$39)^$H145)/10^6,IF('Start Page'!$Y$36=2,($F145*60*24*J145)*(($G145/$AC$39)^$H145)/10^6,IF('Start Page'!$Y$36=3,('Unit Conversion Sheet'!$E$17*$F145*60*24*J145)*(($G145/$AB$39)^$H145)/10^6)))) ->  | AJ145: =IF(C145=0,"",AI145*C145) -> 
B146: Valves | C146: 0 | D146: 0 | E146: =IF(D146=0,0,C146/D146*1000) -> 0 | F146: =IF(S146=1,AB146,R146) -> 6.9 | G146: ='AWWA-Water Balance Data Transf.'!$D$41 -> 0 | H146: 1 | I146: 0 | J146: 0 | L146: =IF(SUM(I146:K146)>'Start Page'!$K$35,'Start Page'!$K$35,SUM(I146:K146)) -> 0 | M146: =IF(ISERROR(IF(C146=0,0,IF('Start Page'!$Y$36=1,(F146*60*24*L146)*((G146/AD146)^H146)/10^6,IF('Start Page'!$Y$36=2,(F146*60*24*L146)*((G146/AD146)^H146)/10^6,IF('Start Page'!$Y$36=3,('Unit Conversion Sheet'!$E$17*F146*60*24*L146)*((G146/AD146)^H146)/10^6))))),0,IF(C146=0,0,IF('Start Page'!$Y$36=1,(F146*60*24*L146)*((G146/AD146)^H146)/10^6,IF('Start Page'!$Y$36=2,(F146*60*24*L146)*((G146/AD146)^H146)/10^6,IF('Start Page'!$Y$36=3,('Unit Conversion Sheet'!$E$17*F146*60*24*L146)*((G146/AD146)^H146)/10^6))))) -> 0 | N146: =IF(C146=0,0,M146*C146) -> 0 | R146: 0 | S146: 1 | Y146: 6.9 | Z146: =Y146*'Unit Conversion Sheet'!$C$5 -> 26.11934142 | AB146: =IF('Start Page'!$Y$36=1,Y146,IF('Start Page'!$Y$36=2,Z146,IF('Start Page'!$Y$36=3,Y146))) -> 6.9 | AD146: =IF(S146=1,(IF('Start Page'!$Y$36=1,$AB$39,IF('Start Page'!$Y$36=2,$AC$39,IF('Start Page'!$Y$36=3,$AB$39)))),'AWWA-Water Balance Data Transf.'!$D$41) -> 70 | AE146: ='AWWA-Water Balance Data Transf.'!$E$41 -> PSI | AH146: =IF(C146=0,"",C146*J146) ->  | AI146: =IF(C146=0,"",IF('Start Page'!$Y$36=1,($F146*60*24*J146)*(($G146/$AB$39)^$H146)/10^6,IF('Start Page'!$Y$36=2,($F146*60*24*J146)*(($G146/$AC$39)^$H146)/10^6,IF('Start Page'!$Y$36=3,('Unit Conversion Sheet'!$E$17*$F146*60*24*J146)*(($G146/$AB$39)^$H146)/10^6)))) ->  | AJ146: =IF(C146=0,"",AI146*C146) -> 
B147: Meters | C147: 0 | D147: 0 | E147: =IF(D147=0,0,C147/D147*1000) -> 0 | F147: 0.25 | G147: ='AWWA-Water Balance Data Transf.'!$D$41 -> 0 | H147: 1 | I147: 0 | J147: 0 | L147: =IF(SUM(I147:K147)>'Start Page'!$K$35,'Start Page'!$K$35,SUM(I147:K147)) -> 0 | M147: =IF(ISERROR(IF(C147=0,0,IF('Start Page'!$Y$36=1,(F147*60*24*L147)*((G147/AD147)^H147)/10^6,IF('Start Page'!$Y$36=2,(F147*60*24*L147)*((G147/AD147)^H147)/10^6,IF('Start Page'!$Y$36=3,('Unit Conversion Sheet'!$E$17*F147*60*24*L147)*((G147/AD147)^H147)/10^6))))),0,IF(C147=0,0,IF('Start Page'!$Y$36=1,(F147*60*24*L147)*((G147/AD147)^H147)/10^6,IF('Start Page'!$Y$36=2,(F147*60*24*L147)*((G147/AD147)^H147)/10^6,IF('Start Page'!$Y$36=3,('Unit Conversion Sheet'!$E$17*F147*60*24*L147)*((G147/AD147)^H147)/10^6))))) -> 0 | N147: 0 | R147: 0 | S147: 1 | Y147: 0.25 | Z147: =Y147*'Unit Conversion Sheet'!$C$5 -> 0.94635295 | AB147: =IF('Start Page'!$Y$36=1,Y147,IF('Start Page'!$Y$36=2,Z147,IF('Start Page'!$Y$36=3,Y147))) -> 0.25 | AD147: =IF(S147=1,(IF('Start Page'!$Y$36=1,$AB$39,IF('Start Page'!$Y$36=2,$AC$39,IF('Start Page'!$Y$36=3,$AB$39)))),'AWWA-Water Balance Data Transf.'!$D$41) -> 70 | AE147: ='AWWA-Water Balance Data Transf.'!$E$41 -> PSI | AI147: =IF(C147=0,"",IF('Start Page'!$Y$36=1,($F147*60*24*J147)*(($G147/$AB$39)^$H147)/10^6,IF('Start Page'!$Y$36=2,($F147*60*24*J147)*(($G147/$AC$39)^$H147)/10^6,IF('Start Page'!$Y$36=3,('Unit Conversion Sheet'!$E$17*$F147*60*24*J147)*(($G147/$AB$39)^$H147)/10^6)))) -> 
B148: Other (e.g. Blow-offs, etc.) | C148: 0 | D148: 0 | E148: =IF(D148=0,0,C148/D148*1000) -> 0 | F148: =R148 -> 0 | G148: ='AWWA-Water Balance Data Transf.'!$D$41 -> 0 | H148: 1 | I148: 0 | J148: 0 | L148: =IF(SUM(I148:K148)>'Start Page'!$K$35,'Start Page'!$K$35,SUM(I148:K148)) -> 0 | M148: =IF(ISERROR(IF(C148=0,0,IF('Start Page'!$Y$36=1,(F148*60*24*L148)*((G148/AD148)^H148)/10^6,IF('Start Page'!$Y$36=2,(F148*60*24*L148)*((G148/AD148)^H148)/10^6,IF('Start Page'!$Y$36=3,('Unit Conversion Sheet'!$E$17*F148*60*24*L148)*((G148/AD148)^H148)/10^6))))),0,IF(C148=0,0,IF('Start Page'!$Y$36=1,(F148*60*24*L148)*((G148/AD148)^H148)/10^6,IF('Start Page'!$Y$36=2,(F148*60*24*L148)*((G148/AD148)^H148)/10^6,IF('Start Page'!$Y$36=3,('Unit Conversion Sheet'!$E$17*F148*60*24*L148)*((G148/AD148)^H148)/10^6))))) -> 0 | N148: 0 | P148: Enter avg flow rate | R148: 0 | AD148: ='AWWA-Water Balance Data Transf.'!$D$41 -> 0 | AE148: ='AWWA-Water Balance Data Transf.'!$E$41 -> PSI | AI148: =IF(C148=0,"",IF('Start Page'!$Y$36=1,($F148*60*24*J148)*(($G148/$AB$39)^$H148)/10^6,IF('Start Page'!$Y$36=2,($F148*60*24*J148)*(($G148/$AC$39)^$H148)/10^6,IF('Start Page'!$Y$36=3,('Unit Conversion Sheet'!$E$17*$F148*60*24*J148)*(($G148/$AB$39)^$H148)/10^6)))) -> 
B149: =IF(C148=0,"",IF(C148="","",IF(R148=0,"PLEASE ENTER FLOW RATE FOR OTHER APPURTENANCE LEAKS IN CELL R148",IF(R148="","PLEASE ENTER FLOW RATE FOR OTHER APPURTENANCE LEAKS IN CELL R148","")))) ->  | M149: SUB-TOTAL UNREPORTED FAILURES ON SYSTEM APPURTENANCES | N149: =SUM(N145:N148) -> 0 | AG149: sum | AH149: =SUM(AH145:AH148) -> 0 | AI149: =SUM(AI145:AI148) -> 0 | AJ149: =SUM(AJ145:AJ148) -> 0
B150: Step 4C: UNREPORTED LEAKS ON SERVICE CONNECTIONS
B152: Instructions: | C152: Enter the total number of failures by service connection size (<1" or >=1") that were detected and repaired through proactive leak detection during the audit period in cells C157 to C158. Next enter the total number of service connections for each service connection size group in cells D157 to D158 (Note: this information is not required for the real loss component analysis but serves to calculate failure frequencies by service connection size group). Next enter the average awareness duration for unreported failure events by service connection size group in cells I157 to I158 (If the entire distribution system is surveyed once a year the average awareness time is 365 days ÷ 2 = 182.5 days, if the system is surveyed twice a year then the average awareness time is 365 days ÷ 4 = 91.25 days and so on). Next enter the average duration of locating and containing unreported failure events by service connection size group in cells K157 to K158. Next select either the default average leak flow rate provided by the model in cells P157 to P158 or select and enter your own utility specific average leakage flow rates in cells Q157 to R158. Average failure flow rates are based on AWWA M36 recommended flow rates and flow rates collected by the research team.
AB153: Based on Select Preferred Volumetric Units for Audit and Component Analysis
B154: Service Connections by Size | C154: Number of Failures per Year | D154: Total Number of Service Connections | E154: Failure Frequency | F154: Average Failure Flow Rate @ | G154: Average Pressure | H154: N1 (Leakage-Pressure Exponent) Value | I154: Average Failure Duration | M154: Average Annual Loss per Failure | N154: Total Annual Loss | P154: Use Default Average Failure Flow Rate | Q154: Use Utility Specific Average Failure Flow Rate | R154: Average Failure Flow Rate @ | AC154: Sum for whether F56 states that its at 70/49.2 pressure or at system specific pressure) | AD154: Pressure for average leak flow rate depending on whether user utilized default flow rate or utility specific flow rate (which does not need to be pressure corrected) | AH154: Number of Leaks times Location and Repair Duration | AI154: Real Loss Volume per Leak Stemming From Location and Repair Duration | AJ154: Total Annual Real Loss Volume Stemming From Location and Repair Duration
E155: Number of Failures per 1000 Service Connections | F155: =IF(AC157=2,IF('Start Page'!$Y$36=1,$AB$39 & "psi",IF('Start Page'!$Y$36=2,$AC$39 & "metres head",IF('Start Page'!$Y$36=3,$AB$39 & "psi"))),("Avergage System Presure")) -> 70psi | I155: Average Awareness Duration | J155: Average Duration for Location and Repair/Shutoff Failure | L155: Total Duration | R155: ="average system pressure" -> average system pressure
F156: =IF('Start Page'!$Y$36=1,"(gpm)",IF('Start Page'!$Y$36=2,"(lpm)", IF('Start Page'!$Y$36=3,"(gpm)"))) -> (gpm) | G156: =$G$38 -> (psi) | I156: (days) | J156: (days) | L156: (days) | M156: =$I$38 -> (MG) | N156: =$I$38 -> (MG) | R156: =$F$57 -> (gpm) | Y156: gpm | Z156: lpm | AB156: =$F$57 -> (gpm) | AH156: days | AI156: =$N$57 -> (MG) | AJ156: =$N$57 -> (MG)
B157: =IF('Start Page'!$Y$36=2,"Services < DN 25","Services < 1''") -> Services < 1'' | C157: 0 | D157: 0 | E157: =IF(D157=0,0,C157/D157*1000) -> 0 | F157: =IF(S157=1,AB157,R157) -> 6.9 | G157: ='AWWA-Water Balance Data Transf.'!$D$41 -> 0 | H157: 1 | I157: 0 | J157: 0 | L157: =IF(SUM(I157:K157)>'Start Page'!$K$35,'Start Page'!$K$35,SUM(I157:K157)) -> 0 | M157: =IF(ISERROR(IF(C157=0,0,IF('Start Page'!$Y$36=1,(F157*60*24*L157)*((G157/AD157)^H157)/10^6,IF('Start Page'!$Y$36=2,(F157*60*24*L157)*((G157/AD157)^H157)/10^6,IF('Start Page'!$Y$36=3,('Unit Conversion Sheet'!$E$17*F157*60*24*L157)*((G157/AD157)^H157)/10^6))))),0,IF(C157=0,0,IF('Start Page'!$Y$36=1,(F157*60*24*L157)*((G157/AD157)^H157)/10^6,IF('Start Page'!$Y$36=2,(F157*60*24*L157)*((G157/AD157)^H157)/10^6,IF('Start Page'!$Y$36=3,('Unit Conversion Sheet'!$E$17*F157*60*24*L157)*((G157/AD157)^H157)/10^6))))) -> 0 | N157: =IF(C157=0,0,M157*C157) -> 0 | R157: 0 | S157: 1 | Y157: 6.9 | Z157: =Y157*'Unit Conversion Sheet'!$C$5 -> 26.11934142 | AB157: =IF('Start Page'!$Y$36=1,Y157,IF('Start Page'!$Y$36=2,Z157,IF('Start Page'!$Y$36=3,Y157))) -> 6.9 | AC157: =SUM(S157:S158) -> 2 | AD157: =IF(S157=1,(IF('Start Page'!$Y$36=1,$AB$39,IF('Start Page'!$Y$36=2,$AC$39,IF('Start Page'!$Y$36=3,$AB$39)))),'AWWA-Water Balance Data Transf.'!$D$41) -> 70 | AE157: ='AWWA-Water Balance Data Transf.'!$E$41 -> PSI | AH157: =IF(C157=0,"",C157*J157) ->  | AI157: =IF(C157=0,"",IF('Start Page'!$Y$36=1,($F157*60*24*J157)*(($G157/$AB$39)^$H157)/10^6,IF('Start Page'!$Y$36=2,($F157*60*24*J157)*(($G157/$AC$39)^$H157)/10^6,IF('Start Page'!$Y$36=3,('Unit Conversion Sheet'!$E$17*$F157*60*24*J157)*(($G157/$AB$39)^$H157)/10^6)))) ->  | AJ157: =IF(C157=0,"",AI157*C157) -> 
B158: =IF('Start Page'!$Y$36=2,"Services >= DN 25","Services >= 1''") -> Services >= 1'' | C158: 0 | D158: 0 | E158: =IF(D158=0,0,C158/D158*1000) -> 0 | F158: =IF(S158=1,AB158,R158) -> 13.9 | G158: ='AWWA-Water Balance Data Transf.'!$D$41 -> 0 | H158: 1 | I158: 0 | J158: 0 | L158: =IF(SUM(I158:K158)>'Start Page'!$K$35,'Start Page'!$K$35,SUM(I158:K158)) -> 0 | M158: =IF(ISERROR(IF(C158=0,0,IF('Start Page'!$Y$36=1,(F158*60*24*L158)*((G158/AD158)^H158)/10^6,IF('Start Page'!$Y$36=2,(F158*60*24*L158)*((G158/AD158)^H158)/10^6,IF('Start Page'!$Y$36=3,('Unit Conversion Sheet'!$E$17*F158*60*24*L158)*((G158/AD158)^H158)/10^6))))),0,IF(C158=0,0,IF('Start Page'!$Y$36=1,(F158*60*24*L158)*((G158/AD158)^H158)/10^6,IF('Start Page'!$Y$36=2,(F158*60*24*L158)*((G158/AD158)^H158)/10^6,IF('Start Page'!$Y$36=3,('Unit Conversion Sheet'!$E$17*F158*60*24*L158)*((G158/AD158)^H158)/10^6))))) -> 0 | N158: =IF(C158=0,0,M158*C158) -> 0 | R158: 0 | S158: 1 | Y158: 13.9 | Z158: =Y158*'Unit Conversion Sheet'!$C$5 -> 52.61722402 | AB158: =IF('Start Page'!$Y$36=1,Y158,IF('Start Page'!$Y$36=2,Z158,IF('Start Page'!$Y$36=3,Y158))) -> 13.9 | AD158: =IF(S158=1,(IF('Start Page'!$Y$36=1,$AB$39,IF('Start Page'!$Y$36=2,$AC$39,IF('Start Page'!$Y$36=3,$AB$39)))),'AWWA-Water Balance Data Transf.'!$D$41) -> 70 | AE158: ='AWWA-Water Balance Data Transf.'!$E$41 -> PSI | AH158: =IF(C158=0,"",C158*J158) ->  | AI158: =IF(C158=0,"",IF('Start Page'!$Y$36=1,($F158*60*24*J158)*(($G158/$AB$39)^$H158)/10^6,IF('Start Page'!$Y$36=2,($F158*60*24*J158)*(($G158/$AC$39)^$H158)/10^6,IF('Start Page'!$Y$36=3,('Unit Conversion Sheet'!$E$17*$F158*60*24*J158)*(($G158/$AB$39)^$H158)/10^6)))) ->  | AJ158: =IF(C158=0,"",AI158*C158) -> 
M159: SUB-TOTAL UNREPORTED FAILURES ON SERVICE CONNECTIONS | N159: =SUM(N157:N158) -> 0 | AG159: Sum | AH159: =SUM(AH157:AH158) -> 0 | AI159: =SUM(AI157:AI158) -> 0 | AJ159: =SUM(AJ157:AJ158) -> 0
M160: GRAND TOTAL UNREPORTED FAILURES | N160: =SUM(N159,N149,N137) -> 0
B161: NOTES:
B162: =IF('Start Page'!$H$29="","",'Start Page'!$H$29) -> 
R179: ©2014 Water Research Foundation. ALL RIGHTS RESERVED.

Sheet Real Loss Components Chart
B1: WaterRF 4372: Real Loss Component Analysis: A Tool for Economic Water Loss Control
B3: =IF('Start Page'!$Y$37="","",IF('Start Page'!$K$37="Partial Audit Period","Water Audit: "&'Start Page'!$D$26&", "&'Start Page'!$H$26&", "&'Start Page'!$K$26&", "&'Start Page'!$Y$37,"Water Audit: "&'Start Page'!$D$26&", "&'Start Page'!$H$26&", "&'Start Page'!$K$26&", "&YEAR('Start Page'!$Y$37))) -> 
B4: REAL LOSSES COMPONENTS CHART
W8: Real Loss Component | X8: Volume | Y8: Unit | Z8: Percentage
W9: Background Leakage | X9: ='Real Losses Component Analysis'!C15 -> 0 | Y9: ='Real Losses Component Analysis'!C11 -> (MG) | Z9: =IF(ISERROR(X9/$X$14),"",X9/$X$14) -> 
W10: Reported Failures | X10: ='Real Losses Component Analysis'!D15 -> 0 | Y10: ='Real Losses Component Analysis'!D11 -> (MG) | Z10: =IF(ISERROR(X10/$X$14),"",X10/$X$14) -> 
W11: Unreported Failures | X11: ='Real Losses Component Analysis'!E15 -> 0 | Y11: ='Real Losses Component Analysis'!E11 -> (MG) | Z11: =IF(ISERROR(X11/$X$14),"",X11/$X$14) -> 
W12: Hidden Losses | X12: ='Real Losses Component Analysis'!F17 -> 0 | Y12: ='Real Losses Component Analysis'!F11 -> (MG) | Z12: =IF(ISERROR(X12/$X$14),"",X12/$X$14) -> 
W14: =IF(Z14="","","Total") -> Total | X14: =SUM(X9:X12) -> 0 | Y14: ='Real Losses Component Analysis'!F11 -> (MG) | Z14: =SUM(Z9:Z13) -> 0
B35: =IF('Start Page'!$H$29="","",'Start Page'!$H$29) ->  | R35: ©2014 Water Research Foundation. ALL RIGHTS RESERVED.

Sheet Failure Frequency Analysis
B1: WaterRF 4372: Real Loss Component Analysis: A Tool for Economic Water Loss Control
B3: =IF('Start Page'!$Y$37="","",IF('Start Page'!$K$37="Partial Audit Period","Water Audit: "&'Start Page'!$D$26&", "&'Start Page'!$H$26&", "&'Start Page'!$K$26&", "&'Start Page'!$Y$37,"Water Audit: "&'Start Page'!$D$26&", "&'Start Page'!$H$26&", "&'Start Page'!$K$26&", "&YEAR('Start Page'!$Y$37))) -> 
B4: INFRASTRUCTURE FAILURE FREQUENCY ANALYSIS
B6: =V6 ->  | G6: =B6 ->  | V6: ='Start Page'!Y21 -> 
B7: ="Total Number of Mains Failures Reported for "&$B$3 -> Total Number of Mains Failures Reported for | C7: =SUM('Real Losses Component Analysis'!C58:C77) -> 0 | G7: ="Total Number of Service Connection Failures Reported for "&$B$3 -> Total Number of Service Connection Failures Reported for | H7: =SUM('Real Losses Component Analysis'!C98:C99) -> 0
B8: Total Length of Mains | C8: ='AWWA-Water Balance Data Transf.'!D37 -> 0 | D8: =IF('Start Page'!$Y$42=1,"(miles)",IF('Start Page'!$Y$42=2,"(kilometers)")) -> (miles) | G8: Total Number of Service Connections | H8: ='AWWA-Water Balance Data Transf.'!D38 -> 0 | I8: (service connections) | O8: Mains Failure Frequency Comparison Chart Titles
B9: ="Failure Frequency " & B6 -> Failure Frequency | C9: =IF(C8<100,"N/A",C7/C8*100) -> N/A | D9: =IF('Start Page'!$Y$42=1,"(number / 100miles / yr)",IF('Start Page'!$Y$42=2,"(number /100kilometers / yr)")) -> (number / 100miles / yr) | G9: ="Service Connection Failure Frequency " & B6 -> Service Connection Failure Frequency | H9: =IF(H8<1000,"N/A",H7/H8*1000) -> N/A | I9: (number / 1000 service connections / yr) | O9: Chart Title | V9: Average Failure Frequency in NA Based on Literature Review - WaterRF 4372
B10: Average Failure Frequency in North America Based on Literature Review - WaterRF 4372 | C10: =IF('Start Page'!$Y$42=1,$V$11,IF('Start Page'!$Y$42=2,$V$12)) -> 25 | D10: =IF('Start Page'!$Y$42=1,"(number / 100miles / yr)",IF('Start Page'!$Y$42=2,"(number /100kilometers / yr)")) -> (number / 100miles / yr) | G10: AWWA Unavoidable Annual Real Losses (UARL) Component of Reported Service Line Failures | H10: =IF('AWWA-Water Balance Data Transf.'!D40=0,2.25,3.75) -> 2.25 | I10: (number / 1000 service connections / yr) | O10: Mains Failure Frequency Comparison
B11: Failure Frequency for Optimized Distribution Systems (Friedman 2010) | C11: =IF('Start Page'!$Y$42=1,$V$15,IF('Start Page'!$Y$42=2,$V$16)) -> 15 | D11: =IF('Start Page'!$Y$42=1,"(number / 100miles / yr)",IF('Start Page'!$Y$42=2,"(number /100kilometers / yr)")) -> (number / 100miles / yr) | G11: Ratio of Failure Frequency to UARL Break Frequency | H11: =IF(ISERROR(H9/H10),"N/A",H9/H10) -> N/A | V11: 25 | W11: per 100 miles
B12: =IF(C9<C11,"Note: reported failure frequency is less than failure frequency for optimized distribution systems - check failure data", "") ->  | G12: =IF(H9<H10,"Note: reported failure frequency is less than UARL based minimum failure frequency - check service line failure data", "") ->  | O12: Y- Axis Legend | V12: =V11*(100/160.934722) -> 15.53424872 | W12: per 100 km
O13: =D9 -> (number / 100miles / yr)
V14: Failure Frequency for Optimized Distribution Systems (Friedman 2010)
V15: 15 | W15: per 100 miles
O16: Service Connection Failure Frequency Comparison Chart Titles | V16: =V15*(100/160.934722) -> 9.320549235 | W16: per 100 km
O17: Chart Title
O18: Service Connection Failure Frequency Comparison
O20: Y- Axis Legend
O21: =I9 -> (number / 1000 service connections / yr)
B32: =IF('Start Page'!$H$29="","",'Start Page'!$H$29) ->  | I32: ©2014 Water Research Foundation. ALL RIGHTS RESERVED.

Sheet A-L-R Times Options
B1: WaterRF 4372: Real Loss Component Analysis: A Tool for Economic Water Loss Control
B3: =IF('Start Page'!$Y$37="","",IF('Start Page'!$K$37="Partial Audit Period","Water Audit: "&'Start Page'!$D$26&", "&'Start Page'!$H$26&", "&'Start Page'!$K$26&", "&'Start Page'!$Y$37,"Water Audit: "&'Start Page'!$D$26&", "&'Start Page'!$H$26&", "&'Start Page'!$K$26&", "&YEAR('Start Page'!$Y$37))) -> 
B4: EVALUATION OF LOCATION AND REPAIR TIME REDUCTION OPTIONS
C10: Instructions: | D10: Use What IF option in the blue highlighted cells to evaluate potential savings in real losses stemming from reducing the average location and repair time for each of the three infrastructure components for both reported and unreported failure events. Enter a target average location and repair duration (in days) and the model will calculate the resulting savings in leakage volume as well as the corresponding monetary savings. Undertake further cost benefit analysis if this analysis has shown potentially cost effective options for leakage loss reductions by reducing the current average location and repair times.
C15: Reported and Unreported Failure Events
C17: Failures on Mains | E17: Reported | F17: Unreported
C18: =IF('Start Page'!Y37="","Total Failures on Mains",IF('Start Page'!Y37="Partial Audit Period","Total Number of Failures on Mains","Total Number of Failures on Mains in "&YEAR('Start Page'!Y37))) -> Total Failures on Mains | E18: =IF(ISERROR(SUM('Real Losses Component Analysis'!C58:C77)),"",SUM('Real Losses Component Analysis'!C58:C77)) -> 0 | F18: =IF(ISERROR(SUM('Real Losses Component Analysis'!C117:C136)),"",SUM('Real Losses Component Analysis'!C117:C136)) -> 0
C19: Average location and repair duration | E19: =IF(ISERROR(IF(E18=0,0,'Real Losses Component Analysis'!AH78/SUM('Real Losses Component Analysis'!C58:C77))),"",IF(E18=0,0,'Real Losses Component Analysis'!AH78/SUM('Real Losses Component Analysis'!C58:C77))) -> 0 | F19: =IF(ISERROR(IF(F18=0,0,'Real Losses Component Analysis'!AH137/SUM('Real Losses Component Analysis'!C117:C136))),"",IF(F18=0,0,'Real Losses Component Analysis'!AH137/SUM('Real Losses Component Analysis'!C117:C136))) -> 0 | G19: days
C20: Total Volume lost (stemming from location and repair duration ) | E20: =IF(ISERROR('Real Losses Component Analysis'!$AJ$78),"",'Real Losses Component Analysis'!$AJ$78) -> 0 | F20: =IF(ISERROR('Real Losses Component Analysis'!$AJ$137),"",'Real Losses Component Analysis'!$AJ$137) -> 0 | G20: ='Real Losses Component Analysis'!$N$57 -> (MG)
C21: Total Cost of Volume lost (stemming from location and repair duration ) | E21: =IF(ISERROR('AWWA-Water Balance Data Transf.'!$D$47*'A-L-R Times Options'!E20),"",('AWWA-Water Balance Data Transf.'!$D$47*'A-L-R Times Options'!E20)) -> 0 | F21: =IF(ISERROR(('AWWA-Water Balance Data Transf.'!$D$47*'A-L-R Times Options'!F20)),"",('AWWA-Water Balance Data Transf.'!$D$47*'A-L-R Times Options'!F20)) -> 0
C23: What IF Location and Repair Duration is Reduced to | G23: days
C24: Percent Reduction | E24: =IF(E23="",0,IF(ISERROR((E19-E23)/E19),0,(E19-E23)/E19)) -> 0 | F24: =IF(F23="",0,IF(ISERROR((F19-F23)/F19),0,(F19-F23)/F19)) -> 0
C25: Potential Related Savings in Leakage Volume | E25: =IF(ISERROR(E20-((1-E24)*E20)),"",E20-((1-E24)*E20)) -> 0 | F25: =IF(ISERROR(F20-((1-F24)*F20)),"",F20-((1-F24)*F20)) -> 0 | G25: ='Real Losses Component Analysis'!$N$57 -> (MG)
C26: Potential Related Savings in Leakage Volume Cost | E26: =IF(ISERROR(E21-((1-E24)*E21)),"",E21-((1-E24)*E21)) -> 0 | F26: =IF(ISERROR(F21-((1-F24)*F21)),"",F21-((1-F24)*F21)) -> 0
C28: Service Line Failures | E28: Reported | F28: Unreported
C29: =IF('Start Page'!Y37="","Total Number of Failures on Service Connections",IF('Start Page'!Y37="Partial Audit Period","Total Number of Failures on Service Connections","Total Number of Failures on Service Connections in "&YEAR('Start Page'!Y37))) -> Total Number of Failures on Service Connections | E29: =IF(ISERROR(SUM('Real Losses Component Analysis'!C98:C99)),"",SUM('Real Losses Component Analysis'!C98:C99)) -> 0 | F29: =IF(ISERROR(SUM('Real Losses Component Analysis'!C157:C158)),"",SUM('Real Losses Component Analysis'!C157:C158)) -> 0
C30: Average location and repair duration | E30: =IF(ISERROR(IF(E29=0,0,'Real Losses Component Analysis'!AH100/SUM('Real Losses Component Analysis'!C98:C99))),"",IF(E29=0,0,'Real Losses Component Analysis'!AH100/SUM('Real Losses Component Analysis'!C98:C99))) -> 0 | F30: =IF(ISERROR(IF(F29=0,0,'Real Losses Component Analysis'!AH159/SUM('Real Losses Component Analysis'!C157:C158))),"",IF(F29=0,0,'Real Losses Component Analysis'!AH159/SUM('Real Losses Component Analysis'!C157:C158))) -> 0 | G30: days
C31: Total Volume lost (stemming from location and repair duration ) | E31: =IF(ISERROR('Real Losses Component Analysis'!AJ100),"",'Real Losses Component Analysis'!AJ100) -> 0 | F31: =IF(ISERROR('Real Losses Component Analysis'!AJ159),"",'Real Losses Component Analysis'!AJ159) -> 0 | G31: ='Real Losses Component Analysis'!$N$57 -> (MG)
C32: Total Cost of Volume lost (stemming from location and repair duration ) | E32: =IF(ISERROR(('AWWA-Water Balance Data Transf.'!$D$47*'A-L-R Times Options'!E31)),"",('AWWA-Water Balance Data Transf.'!$D$47*'A-L-R Times Options'!E31)) -> 0 | F32: =IF(ISERROR(('AWWA-Water Balance Data Transf.'!$D$47*'A-L-R Times Options'!F31)),"",('AWWA-Water Balance Data Transf.'!$D$47*'A-L-R Times Options'!F31)) -> 0
C34: What IF Location and Repair Duration is Reduced to | G34: days
C35: Percent Reduction | E35: =IF(E34="",0,IF(ISERROR((E30-E34)/E30),0,(E30-E34)/E30)) -> 0 | F35: =IF(F34="",0,IF(ISERROR((F30-F34)/F30),0,(F30-F34)/F30)) -> 0
C36: Potential Related Savings in Leakage Volume | E36: =IF(ISERROR(E31-((1-E35)*E31)),"",E31-((1-E35)*E31)) -> 0 | F36: =IF(ISERROR(F31-((1-F35)*F31)),"",F31-((1-F35)*F31)) -> 0 | G36: ='Real Losses Component Analysis'!$N$57 -> (MG)
C37: Potential Related Savings in Leakage Volume Cost | E37: =IF(ISERROR(E32-((1-E35)*E32)),"",E32-((1-E35)*E32)) -> 0 | F37: =IF(ISERROR(F32-((1-F35)*F32)),"",F32-((1-F35)*F32)) -> 0
C39: Failures on System Appurtenances | E39: Reported | F39: Unreported
C40: =IF('Start Page'!Y37="","Total Number of Failures on System Appurtenances",IF('Start Page'!Y37="Partial Audit Period","Total Number of Failures on System Appurtenances","Total Number of Failures on System Appurtenances in "&YEAR('Start Page'!Y37))) -> Total Number of Failures on System Appurtenances | E40: =IF(ISERROR(SUM('Real Losses Component Analysis'!C86:C89)),"",SUM('Real Losses Component Analysis'!C86:C89)) -> 0 | F40: =IF(ISERROR(SUM('Real Losses Component Analysis'!C145:C148)),"",SUM('Real Losses Component Analysis'!C145:C148)) -> 0
C41: Average location and repair duration | E41: =IF(ISERROR(IF(E40=0,0,'Real Losses Component Analysis'!AH90/SUM('Real Losses Component Analysis'!C86:C89))),"",IF(E40=0,0,'Real Losses Component Analysis'!AH90/SUM('Real Losses Component Analysis'!C86:C89))) -> 0 | F41: =IF(ISERROR(IF(F40=0,0,'Real Losses Component Analysis'!AH149/SUM('Real Losses Component Analysis'!C145:C148))),"",IF(F40=0,0,'Real Losses Component Analysis'!AH149/SUM('Real Losses Component Analysis'!C145:C148))) -> 0 | G41: days
C42: Total Volume lost (stemming from location and repair duration ) | E42: =IF(ISERROR('Real Losses Component Analysis'!AJ90),"",'Real Losses Component Analysis'!AJ90) -> 0 | F42: =IF(ISERROR('Real Losses Component Analysis'!AJ149),"",'Real Losses Component Analysis'!AJ149) -> 0 | G42: ='Real Losses Component Analysis'!$N$57 -> (MG)
C43: Total Cost of Volume lost (stemming from location and repair duration ) | E43: =IF(ISERROR(('AWWA-Water Balance Data Transf.'!$D$47*'A-L-R Times Options'!E42)),"",('AWWA-Water Balance Data Transf.'!$D$47*'A-L-R Times Options'!E42)) -> 0 | F43: =IF(ISERROR(('AWWA-Water Balance Data Transf.'!$D$47*'A-L-R Times Options'!F42)),"",('AWWA-Water Balance Data Transf.'!$D$47*'A-L-R Times Options'!F42)) -> 0
C45: What IF Location and Repair Duration is Reduced to | G45: days
C46: Percent Reduction | E46: =IF(E45="",0,IF(ISERROR((E41-E45)/E41),0,(E41-E45)/E41)) -> 0 | F46: =IF(F45="",0,IF(ISERROR((F41-F45)/F41),0,(F41-F45)/F41)) -> 0
C47: Potential Related Savings in Leakage Volume | E47: =IF(ISERROR(E42-((1-E46)*E42)),"",E42-((1-E46)*E42)) -> 0 | F47: =IF(ISERROR(F42-((1-F46)*F42)),"",F42-((1-F46)*F42)) -> 0 | G47: ='Real Losses Component Analysis'!$N$57 -> (MG)
C48: Potential Related Savings in Leakage Volume Cost | E48: =IF(ISERROR(E43-((1-E46)*E43)),"",E43-((1-E46)*E43)) -> 0 | F48: =IF(ISERROR(F43-((1-F46)*F43)),"",F43-((1-F46)*F43)) -> 0
C50: Total Potential Savings if Location and Repair Duration is Reduced as Simulated in the Above Sections | E50: =IF(ISERROR(E47+E36+E25),"",E47+E36+E25) -> 0 | F50: =IF(ISERROR(F47+F36+F25),"",F47+F36+F25) -> 0 | G50: ='Real Losses Component Analysis'!$N$57 -> (MG)
C51: Total Potential Cost Savings if Location and Repair Duration is Reduced as Simulated in the Above Sections | E51: =IF(ISERROR(E48+E37+E26),"",E48+E37+E26) -> 0 | F51: =IF(ISERROR(F48+F37+F26),"",F48+F37+F26) -> 0 | G51: Per Year
B52: =IF('Start Page'!$H$29="","",'Start Page'!$H$29) ->  | H52: ©2014 Water Research Foundation. ALL RIGHTS RESERVED.

Sheet Economic Intervention Frequency
B1: WaterRF 4372: Real Loss Component Analysis: A Tool for Economic Water Loss Control
B3: =IF('Start Page'!$Y$37="","",IF('Start Page'!$K$37="Partial Audit Period","Water Audit: "&'Start Page'!$D$26&", "&'Start Page'!$H$26&", "&'Start Page'!$K$26&", "&'Start Page'!$Y$37,"Water Audit: "&'Start Page'!$D$26&", "&'Start Page'!$H$26&", "&'Start Page'!$K$26&", "&YEAR('Start Page'!$Y$37))) -> 
B4: CALCULATION OF ECONOMIC INTERVENTION FREQUENCY FOR PROACTIVE LEAK DETECTION
C6: System Characteristics | H6: Instructions: Use this sheet to establish a preliminary schedule for proactive leak detection surveys and the corresponding necessary budget. Once the results from consecutive leak surveys are available, the Rate of Rise of Unreported Leakage should be updated and the proactive leak detection schedule should be refined taking into consideration these findings. In order to establish a preliminary schedule for proactive leak detection or to review the currently utilized proactive leak detection schedule enter the cost for undertaking proactive leak detection ($/mile or $/km) in cell D31. Next enter the Average Rate of Rise of Unreported Leakage in cell D34. The Average Rate of Rise of Unreported Leakage is the rate at which leakage increases with time. The rate of rise is not necessarily linear since it can quickly change due to seasonal effects and other system specific impacts. The AWWA M36 Manual recommends assessing The Average Rate of Rise of Unreported Leakage either by comparing water balance results of several consecutive years and calculating the Average Rate of Rise of Unreported Leakage based on the increase in Real Loss volume from year to year (if utility does not employ proactive leak detection), or by analysis of District Metered Area night flow data or repair records of leaks detected through proactive leak detection (if utility employs proactive leakage control). Further details about how to assess the Average Rate of Rise of Unreported Leakage are provided in the AWWA M36 Manual. Note: kgal = 1,000 gallons. Please note that the calculations used to determine the Economic Intervention Frequency are not best fit for systems with Infrastructure Leakage Index values that approach 1. For such systems, it is advised to review the Economic Intervention Frequency and associated costs with caution.
C7: Total Length of Mains | D7: =IF(ISERROR('AWWA-Water Balance Data Transf.'!D37),"",'AWWA-Water Balance Data Transf.'!D37) -> 0 | E7: ='AWWA-Water Balance Data Transf.'!E37 -> miles
C8: Number of Service Connections | D8: =IF(ISERROR('AWWA-Water Balance Data Transf.'!D38),"",'AWWA-Water Balance Data Transf.'!D38) -> 0 | E8: ='AWWA-Water Balance Data Transf.'!E38 -> service connections
C9: Service Connection Density | D9: =IF(ISERROR('AWWA-Water Balance Data Transf.'!D39),"",'AWWA-Water Balance Data Transf.'!D39) ->  | E9: ='AWWA-Water Balance Data Transf.'!E39 -> conn./mile main
C10: Average System Pressure | D10: =IF(ISERROR('AWWA-Water Balance Data Transf.'!D41),"",'AWWA-Water Balance Data Transf.'!D41) -> 0 | E10: ='AWWA-Water Balance Data Transf.'!E41 -> PSI
C12: Water Balance Results
B13: TBL | C13: Current Annual Background Leakage | D13: =IF(ISERROR('Real Losses Component Analysis'!C15),"",'Real Losses Component Analysis'!C15) -> 0 | E13: =E18 -> MG/Yr
B14: CRL | C14: Real Losses from Current Reported Leakage | D14: =IF(ISERROR('Real Losses Component Analysis'!D15),"",'Real Losses Component Analysis'!D15) -> 0 | E14: =E18 -> MG/Yr | T14: 1 | U14: AF | V14: 100 | W14: /AF
B15: UL | C15: Unreported Failures Identified Through Existing Proactive Leak Detection Program | D15: =IF(ISERROR('Real Losses Component Analysis'!E15),"",'Real Losses Component Analysis'!E15) -> 0 | E15: =E18 -> MG/Yr | T15: =325851.427242/1000000 -> 0.3258514272 | U15: MG | V15: =V14*T19 -> 306.888329 | W15: /MG
C16: Hidden Failures/Unreported Failures not Identified or Captured by Current Leakage Management Policy | D16: =IF(ISERROR('Real Losses Component Analysis'!F17),"",'Real Losses Component Analysis'!F17) -> 0 | E16: =E19 -> MG/Yr
B18: CARL | C18: Current Annual Real Losses | D18: =IF(ISERROR('AWWA-Water Balance Data Transf.'!D62),"",'AWWA-Water Balance Data Transf.'!D62) ->  | E18: ='AWWA-Water Balance Data Transf.'!E62 -> MG/Yr | T18: 1 | U18: MG
B19: UARL | C19: Unavoidable Annual Real Losses | D19: =IF(ISERROR('AWWA-Water Balance Data Transf.'!D61),"",'AWWA-Water Balance Data Transf.'!D61) -> N/A | E19: =E18 -> MG/Yr | T19: =T14/T15 -> 3.06888329 | U19: AF
C20: Infrastructure Leakage Index (ILI) [CARL/UARL] | D20: =IF(ISERROR('AWWA-Water Balance Data Transf.'!D63),"",'AWWA-Water Balance Data Transf.'!D63) -> 
C22: Variable Cost of Real Losses | T22: Component | Y22: Volume | Z22: Unit | AA22: Percentage
B23: CV | C23: ='AWWA-Water Balance Data Transf.'!B47 -> Variable Production cost (applied to Real Losses): | D23: =IF(ISERROR(IF('Start Page'!$Y$36=1,D24/1000,IF('Start Page'!$Y$36=2,D24/1000,IF('Start Page'!$Y$36=3,(D24*T19)/1000)))),"",IF('Start Page'!$Y$36=1,D24/1000,IF('Start Page'!$Y$36=2,D24/1000,IF('Start Page'!$Y$36=3,(D24*T19)/1000)))) -> 0 | E23: =IF('Start Page'!$Y$36=1,"$/per kgal",IF('Start Page'!$Y$36=2,"$/m3", IF('Start Page'!$Y$36=3,"$/per kgal"))) -> $/per kgal | T23: Current Annual Real Losses | Y23: =IF(Y24="","",D18) ->  | Z23: =E18 -> MG/Yr | AA23: 1
D24: =IF(ISERROR('AWWA-Water Balance Data Transf.'!D47),"",'AWWA-Water Balance Data Transf.'!D47) -> 0 | E24: ='AWWA-Water Balance Data Transf.'!E47 -> $/MG | T24: Potentially Recoverable Leakage Through Proactive Leak Detection | Y24: =D46 ->  | Z24: =E18 -> MG/Yr | AA24: =Y24/Y23 -> 
B27: CI | C27: Cost of comprehensive leak detection survey (excluding leak repair cost) | E27: =IF('Start Page'!Y42=1,"$/per mile",IF('Start Page'!Y42=2,"$/km","")) -> $/per mile
D28: =IF(ISERROR(IF(D27=0,"",D27*D7)),"",IF(D27=0,"",D27*D7)) ->  | E28: $/for entire system
B30: RR | C30: Average Rate of Rise of Unreported Leakage | E30: =IF('Start Page'!Y42=1,"kgal/mile of mains/day in a year",IF('Start Page'!Y42=2,"m3/km of mains/day in a year","")) -> kgal/mile of mains/day in a year
D31: =IF(ISERROR(IF(D30="","",IF('Start Page'!$Y$36=1,D30*1000*D7/10^6,IF('Start Page'!$Y$36=2,D30*1000*D7/10^6,IF('Start Page'!$Y$36=3,D30*1000*D7/10^6*$T$19))))),"",IF(D30="","",IF('Start Page'!$Y$36=1,D30*1000*D7/10^6,IF('Start Page'!$Y$36=2,D30*1000*D7/10^6,IF('Start Page'!$Y$36=3,D30*1000*D7/10^6*$T$19))))) ->  | E31: =IF('Start Page'!$Y$36=1,"MG/day in a year",IF('Start Page'!$Y$36=2,"ML/day in a year", IF('Start Page'!$Y$36=3,"AF/day in a year"))) -> MG/day in a year
C33: CI/CV | D33: =IF(ISERROR(IF(D27=0,"",$D$27/$D$23)),"",IF(D27=0,"",$D$27/$D$23)) ->  | E33: =IF('Start Page'!Y42=1,"kgal/mile",IF('Start Page'!Y42=2,"m3/km ","")) -> kgal/mile
B35: EIF | C35: Economic Intervention Frequency [0.789 * (CI/CV)/RR] ^0.5 | D35: =IF(ISERROR(IF(D30="","",IF(D33="","",(0.789*($D$27/$D$23)/D30)^0.5))),"",IF(D30="","",IF(D33="","",(0.789*($D$27/$D$23)/D30)^0.5))) ->  | E35: months
D36: =IF(ISERROR(IF(D35="","",365*(D35/12))),"",IF(D35="","",365*(D35/12))) ->  | E36: days
C37: Economic Intervention Frequency - Average Leak Run Time | D37: =IF(ISERROR(IF(D35="","",D36/2)),"",IF(D35="","",D36/2)) ->  | E37: days
C38: Economic Percentage of System to be Surveyed per Year | D38: =IF(ISERROR(IF(D35="","",100*12/D35)),"",IF(D35="","",100*12/D35)) ->  | E38: %
B40: ABI | C40: Average Annual Budget for Intervention (Proactive Leak Detection) | D40: =IF(ISERROR(IF(D35="","",($D$27*$D$7)*D38/100)),"",IF(D35="","",($D$27*$D$7)*D38/100)) ->  | E40: $/year
B42: EUL | C42: Economic Unreported Real Losses | D42: =IF(ISERROR(IF(D40="","",D40/$D$23)),"",IF(D40="","",D40/$D$23)) ->  | E42: =IF('Start Page'!Y42=1,"kgal/year",IF('Start Page'!Y42=2,"m3/year ","")) -> kgal/year
D43: =IF(ISERROR(IF(D42="","",IF('Start Page'!$Y$36=1,D42*1000/10^6,IF('Start Page'!$Y$36=2,D42*1000/10^6,IF('Start Page'!$Y$36=3,D42*1000/10^6*$T$19))))),"",IF(D42="","",IF('Start Page'!$Y$36=1,D42*1000/10^6,IF('Start Page'!$Y$36=2,D42*1000/10^6,IF('Start Page'!$Y$36=3,D42*1000/10^6*$T$19))))) ->  | E43: =IF('Start Page'!$Y$36=1,"MG/year",IF('Start Page'!$Y$36=2,"ML/year", IF('Start Page'!$Y$36=3,"AF/year"))) -> MG/year
C44: Economic Infrastructure Leakage Index (ILI) | D44: =IF(ISERROR(IF(D42="","",(D43+$D$13+$D$14+D15)/$D$19)),"",IF(D42="","",(D43+$D$13+$D$14+D15)/$D$19)) -> 
B46: PRL | C46: Potentially Recoverable Leakage (CARL-CRL-EUL-TBL-UL) | D46: =IF(ISERROR(IF(D43="","",(D18-D13-D14-D15-D43))),"",IF(D43="","",(D18-D13-D14-D15-D43))) ->  | E46: =E43 -> MG/year
C47: =IF(D43>D16,"Check the Data entered in Cell D27 and D30 - Cost of Leak Detection or Average Rate of Rise produce unrealistic results","") -> Check the Data entered in Cell D27 and D30 - Cost of Leak Detection or Average Rate of Rise produce unrealistic results
B48: =IF('Start Page'!$H$29="","",'Start Page'!$H$29) ->  | O48: ©2014 Water Research Foundation. ALL RIGHTS RESERVED.

Sheet Pressure Management Options
B1: WaterRF 4372: Real Loss Component Analysis: A Tool for Economic Water Loss Control
B3: =IF('Start Page'!$Y$37="","",IF('Start Page'!$K$37="Partial Audit Period","Water Audit: "&'Start Page'!$D$26&", "&'Start Page'!$H$26&", "&'Start Page'!$K$26&", "&'Start Page'!$Y$37,"Water Audit: "&'Start Page'!$D$26&", "&'Start Page'!$H$26&", "&'Start Page'!$K$26&", "&YEAR('Start Page'!$Y$37))) -> 
B4: EVALUATION OF PRESSURE MANAGEMENT OPPORTUNITIES
B6: Instructions: | C6: This sheet was designed to provide a simple way to simulate various scenarios of pressure reduction and the resulting savings in real losses. | U6: Failure Frequency for Optimized Distribution Systems (Friedman 2010)
C7: The calculated reductions in real losses are based on the FAVAD (Fixed and Variable Area Discharges) concept. The effect of reducing the average system pressure is assessed using data in the white cells D18 to D20 which are automatically copied from the AWWA - Water Balance Results Sheet. Next enter if default N1 value is to be used or if system specific N1 value should be calculated using the following formula N1= 1.5 - (1-0.65/ILI) * Prig/100 (Source: Thornton, J. and Lambert, A., 2005. Progress in practical prediction of pressure: leakage, pressure: burst frequency and pressure: consumption relationships. In: Leakage 2005 Conference Proceedings. Halifax, Canada), which requires entering the percentage of rigid pipes (percentage of metal vs. plastic pipe) and service connections in the system in cell D25. Next enter the targeted reduction in average system pressure in cell D29. Next the reduction in real losses and the related cost savings are calculated by the model. Next enter an initial best estimate for the cost of implementing this alternative pressure management policy in cell D35 to calculate a simple payback in years for this new pressure management policy.
V13: 1
C14: Pressure Management Opportunities | U14: 15 | V14: per 100 miles
U15: =U14*(100/160.934722) -> 9.320549235 | V15: per 100 km
D16: Existing Pressure Management Policy
C18: Current Average System Pressure | D18: =IF(ISERROR('AWWA-Water Balance Data Transf.'!D41),"",'AWWA-Water Balance Data Transf.'!D41) -> 0 | E18: ='AWWA-Water Balance Data Transf.'!E41 -> PSI | U18: N1Value | V18: 2
C19: Total Annual Real Losses | D19: =IF(ISERROR('AWWA-Water Balance Data Transf.'!D30),"",'AWWA-Water Balance Data Transf.'!D30) ->  | E19: ='AWWA-Water Balance Data Transf.'!E30 -> MG/Yr
C20: Value of Real Losses | D20: =IF(ISERROR('AWWA-Water Balance Data Transf.'!D54),"",'AWWA-Water Balance Data Transf.'!D54) ->  | E20: $/year
C21: FAVAD N1 Value Used for Calculation of Real Loss Reduction Due to Reduction of Average System Pressure
E23: 1
E24: =IF(ISERROR(IF(D26="N/A","",1.5-(1-0.65/D26)*(D25/100%))),"",IF(D26="N/A","",1.5-(1-0.65/D26)*(D25/100%))) -> 
C25: Enter % of rigid pipes and service connections in system
C26: ILI | D26: =IF(ISERROR('AWWA-Water Balance Data Transf.'!D63),"",'AWWA-Water Balance Data Transf.'!D63) -> 
D28: Alternative Pressure Management Policy
C29: Assumed Reduction in Average System Pressure | E29: =E18 -> PSI
C30: Assumed % Reduction in Average System Pressure | D30: =IF(ISERROR(D29/D18),"",D29/D18) -> 
C31: Real Loss Volume Saved Through Alternative Pressure Management Policy | D31: =IF(ISERROR(IF(D26="N/A",0,D19-(D19*((D18-D29)/D18)^IF(V13=2,E24,E23)))),"",IF(D26="N/A",0,D19-(D19*((D18-D29)/D18)^IF(V13=2,E24,E23)))) ->  | E31: =E19 -> MG/Yr
C32: Value of Real Loss Volume Saved Through Alternative Pressure Management Policy | D32: =IF(ISERROR(IF(D26="0",0,D31*'AWWA-Water Balance Data Transf.'!D47)),"",IF(D26="0",0,D31*'AWWA-Water Balance Data Transf.'!D47)) ->  | E32: $/Year
C35: Enter Estimated Cost of Implementing Alternative Pressure Management Policy | E35: $
C36: Simple Payback Period for Implementing Alternative Pressure Management Policy | D36: =IF(ISERROR(IF(D26="N/A","",D35/D32)),"",IF(D26="N/A","",D35/D32)) ->  | E36: Years
B39: Note: | C39: Evaluation of Pressure Management Opportunities looks at Results of Reduced Pressure on the Volume of Real Losses. Pressure Management has additional benefits and impacts such as: reduced number of new infrastructure failures, reduced annual repair costs, extended infrastructure life, reduction in residential consumption (mainly for pressure dependent outdoor consumption such as irrigation) which are not quantified in this model. However, these additional benefits and impacts should be evaluated before implementing a new or updated pressure management policy. If this initial assessment of pressure management options indicates that pressure reduction could provide cost effective means of reducing and controlling real losses in the system then it is recommended to conduct a detailed pressure management study. Such a study should collect pressure data from the field, assess the presence of pressure transients, identify pressure zones with excessive pressures and prioritize pressure management in parts of the system where its most feasible. In addition a more detailed assessment of costs for implementing the new pressure management policy should be assessed. This study should further consider the potential revenue impact a change in pressure management policy might have on residential consumption (mainly for pressure dependent outdoor consumption such as irrigation). Typical pressure management options include: introduction of pressure controlled areas, fixed outlet pressure control, time or demand based pressure control, transient control, altitude and level control at reservoirs and tanks etc. (see AWWA M36 for more details).
B49: =IF('Start Page'!$H$29="","",'Start Page'!$H$29) ->  | G49: ©2014 Water Research Foundation. ALL RIGHTS RESERVED.

Sheet Glossary
B1: WaterRF 4372: Real Loss Component Analysis: A Tool for Economic Water Loss Control
B3: =IF('Start Page'!$Y$37="","",IF('Start Page'!$K$37="Partial Audit Period","Water Audit: "&'Start Page'!$D$26&", "&'Start Page'!$H$26&", "&'Start Page'!$K$26&", "&'Start Page'!$Y$37,"Water Audit: "&'Start Page'!$D$26&", "&'Start Page'!$H$26&", "&'Start Page'!$K$26&", "&YEAR('Start Page'!$Y$37))) -> 
B4: GLOSSARY
C8: Term | D8: Definition | E8: Source
C10: Annual Cost of Apparent Losses | D10: The cost associated to the Apparent Losses within a distribution system Cost of Apparent Losses = (Apparent Losses Per Year) * (Customer Retail Cost of Water) | E10: Julian Thornton, Reinhard Sturm and George Kunkel, P.E., Water Loss Control, (McGraw-Hill, 2008)
C12: Annual Cost of Real Losses | D12: The cost associated to the Real Losses within a distribution system. Annual Cost or Real Losses - (Real Losses Per Year) * (Variable Production cost of Water) | E12: Julian Thornton, Reinhard Sturm and George Kunkel, P.E., Water Loss Control, (McGraw-Hill, 2008)
C14: Apparent Losses | D14: Losses in customer consumption attributed to inaccuracies associated with customer metering, systematic data handling error, plus unauthorized consumption (theft or illegal use of water). Apparent losses represent paper losses that result in uncaptured revenue for the water utility and distortion of customer consumption data. | E14: Water Audits and Loss Control Programs; M36, (Denver: AWWA, 2009)
C16: Apparent Losses per Service Connection per Day | D16: Performance indicator that normalizes the apparent losses within the distribution by the number of service connections. This is considered one of the most reliable of the traditional performance indicators for apparent losses. Op24 = (Apparent Losses per Day) / (Service Connections) | E16: Julian Thornton, Reinhard Sturm and George Kunkel, P.E., Water Loss Control, (McGraw-Hill, 2008)
C18: Assumed Reduction in Average System Pressure | D18: A theoretical value for evaluating system pressure reduction options. Based upon this assumed reduction in Average System Pressure, users will be able to estimate the associated reduction in real losses in the system.
C20: Authorized Consumption | D20: = billed metered + billed unmetered + unbilled metered + unbilled unmetered The volume of water taken by registered customers, the water supplier, and others who are implicitly or explicitly authorized to do so by the water supplier, for residential, commercial, industrial, or agricultural purposes. It also includes water exported across operational boundaries. Authorized consumption also include water consumed in such activities as fire fighting and training, flushing of mains and sewers, street cleaning, watering of municipal gardens, public fountains, frost protection, building water, etc. These may be billed or unbilled, metered or unmetered. | E20: Water Audits and Loss Control Programs; M36, (Denver: AWWA, 2009)
C22: Average Annual Budget for Intervention (Proactive Leak Detection) | D22: The annual budget for proactive leak detection as calculated by the Economic Intervention Frequency model.
C24: Average Annual Loss per Leak | D24: The average amount of water lost per leak based upon the assigned leak flow rate and the average leak duration =(Leak Flow Rate) * (average leak duration)
C26: Average Awareness Duration | D26: Awareness Duration is the average time from the occurrence of a leak until the water utility becomes aware of its existence. The awareness time is influenced by the type of active leak detection policy. | E26: Julian Thornton, Reinhard Sturm and George Kunkel, P.E., Water Loss Control, (McGraw-Hill, 2008)
C28: Average Duration for Location and Repair/Shut-off Leak | D28: The average amount of time that it takes a utility to locate and contain/shut-off or repair a leak. In this model this is categorized by main size and water distribution appurtenance type (i.e. hydrant, service, etc.)
C30: Average Failure Frequency in NA based on Literature Review - WaterRF 4379 | D30: Results of a literature review on reported mains failure frequencies.
C32: Average Leak Duration | D32: The average amount of time that it takes a utility to become aware, locate and repair/shut-off a leak. =Awareness Duration + Location & Duration of Repair/Shut-off
C34: Average Leak Flow Rate | D34: The average flow rate of a leak on the given size of main, service connection and appurtenance type. In the real loss component analysis sheet, the user has the choice of a default average leak flow rate or a system specific average leak flow rate by size of main, service connection and appurtenance type.
C36: Average Length of Customer Service Line | D36: This is entered for unmetered services and in cold or other areas where meters are installed inside homes and buildings. It is the length of customer service line either between the utility's service connection (often at the curb stop) and the meter, or to the building line (first point of customer consumption) if customers are unmetered. Note that the length of service connection between the main and customer service line is owned by the utility and its length and potential leakage is account for in the UARL formula by the number of service connections. What role does the "Average Length of Customer Service Line" parameter serve in the Water Audit? In many water distribution systems the water utility has maintenance responsibility for a portion of the customer service piping from its connection point at the water main to the curb stop valve located midway to the customer building. The customer is responsible to maintain the customer service piping from the curb stop to the building premises. When leaks arise on customer service piping , water utilities respond faster to repair leaks than customers when the leak is on piping under their responsibility. Leak durations are longer on the customer-maintained piping than the utility-maintained piping. The total length of pipe maintained by customers is one of the components of the Unavoidable Annual Real Losses (UARL) equation and is determined by multiplying the average length of customer maintained pipe, Lp by the number of customer service connections. Therefore this parameter is important to the calculation of the UARL and the Infrastructure Leakage Index (ILI). | E36: Water Audits and Loss Control Programs; M36, (Denver: AWWA, 2009)
C39: Average Operating Pressure | D39: The average pressure may be approximated when coupling the preliminary water audit. Once routine water auditing has been established, a more accurate assessment of average pressure should be pursued. If the water utility infrastructure is recorded in a Geographical Information System (GIS) the average at many locations in the distribution system can be readily obtained. If a GIS does not exist, a weighted average of pressure data can be calculated from water pressure measured at various fire hydrants scattered across a water distribution system. A utility can also determine a reliable value for the average operating pressure if the water utility has a calibrated hydraulic model of the potable water distribution system. | E39: AWWA Free Water Audit Software
C41: Average Rate of Rise of Unreported Leakage | D41: The rate at which leakage increases with time under a policy of passive leakage control, at a specified average system pressure; or the rate at which leakage increases with time between period of active leakage control interventions, such as leak surveys, at a specified average system pressure. The rate of rise is not necessarily a linear variable as it can change quickly because of seasonal changing temperatures and other impacts. This can be assessed from water balances in successive years (in the case of passive leakage control), or by analysis of night flows and or repair records (in the case of active leakage control). It is usually expressed in volume per day in a year, or a volume per service connection per day in a year; or a volume per mile (or kilometer) of mains per day in a year. | E41: Water Audits and Loss Control Programs; M36, (Denver: AWWA, 2009)
C43: AWWA Water Audit Data Validity Score | D43: Data Validity Score produced by the AWWA Free Water Audit Software. If the Data Validity Score is less than 51, it is recommended to improve the quality and accuracy of the data used to produce the AWWA Water Audit before any of the results from the economic analysis produced by this model are considered for implementation.
C45: Background Losses | D45: Individual water loss events (small leaks and weeps at pipe joints) that will continue to flow, with flow rates too low to be detected by sonic methods of an active leakage control program. They can be detected either by chance or when they gradually worsen to the point that they are detected acoustically, become disruptive, and are detected as reported leaks. Background Leakage is sensitive to pressure levels. | E45: Water Audits and Loss Control Programs; M36, (Denver: AWWA, 2009)
C47: Balancing Error - Hidden Losses | D47: = real losses from top-down water balance - real losses from component analysis The volume associated to Balancing Error - Hidden Losses represents the quantity of water lost by leaks that are not currently being detected and repaired. | E47: Julian Thornton, Reinhard Sturm and George Kunkel, P.E., Water Loss Control, (McGraw-Hill, 2008)
C49: Billed Metered Consumption | D49: All metered consumption which is billed. This includes all groups of customers such as domestic, commercial, industrial or institutional. It does NOT include water sold to neighboring utilities (water exported) which is metered and billed. The metered consumption data can be taken directly from billing records for the water audit period. The accuracy of yearly metered consumption data can be refined by including an adjustment to account for customer meter reading lag time, however additional analysis is necessary to determine the adjustment value, which may or may not be significant. | E49: AWWA Free Water Audit Software
C51: Billed Unmetered Consumption | D51: All billed consumption which is calculated based on estimates or norms but is not metered. This might be a very small component in fully metered systems (for example billing based on estimates for the period a customer meter is out of order) but can be the key consumption component in systems without universal metering. It does NOT include water sold to neighboring utilities (water exported) which is unmetered but billed | E51: AWWA Free Water Audit Software
C53: Cost of Comprehensive Leak Detection Survey | D53: The cost of undertaking a comprehensive leak survey per unit of network (e.g. $/mile or $/km)
C55: Current Annual Real Losses (CARL) | D55: The volume of water lost from reported leaks, unreported leaks, background losses, and operator error (storage tank overflows) during the water audit reporting period. The ratio of the CARL to the unavoidable annual real losses (UARL) is the infrastructure leakage index (ILI). | E55: Water Audits and Loss Control Programs; M36, (Denver: AWWA, 2009)
C57: Customer Retail Unit Cost (Applied to Apparent Losses) | D57: The Customer Retail Unit Cost represents the charge that customers pay for water service. This unit cost is applied to the components of apparent loss, since these losses represent water reaching customers but not (fully) paid for. It is important to compile these costs per the same unit cost basis as the volume measure included in the water audit. For example, if all water volumes are measured in million gallons, then the unit cost should be dollars per million gallons ($/mil gal). The software allows the user to select the units that are charged to customers and automatically converts these units to the units that appear in the "TOTAL SYSTEM INPUT VOLUME" box. Since most water utilities have a rate structure that includes a variety of different costs based upon class of customer, a weighted average of individual costs and number of customer accounts in each class can be calculated to determine a single composite cost that should be entered into this cell. Finally, the weighted average cost should also include additional charges for sewer, storm water or biosolids processing IF these charges are based upon the volume of potable water consumed. | E57: AWWA Free Water Audit Software
C59: Economic Infrastructure Leakage Index | D59: The Infrastructure Leakage Index (ILI) that could be achieved by implementing the proactive leak detection efforts as calculated by the Economic Intervention Frequency model. Note: it is not recommended to use the ILI as a target setting tool.
C61: Economic Intervention Frequency | D61: The frequency of undertaking proactive leak detection surveys in a system as calculated by the Economic Intervention Frequency model. Note: The Economic Intervention Frequency model should be used to establish a preliminary schedule for proactive leak detection surveys and needs to be updated and refined as the results of proactive leak detection surveys become available and the Rate of Rise of Unreported Leaks should be updated. Then the proactive leak detection schedule should be refined taking into consideration these findings.
C63: Economic Unreported Real Losses | D63: The portion of unreported leakage in a water distribution network that is not cost effective to be reduced further by proactive leak detection at the current cost of undertaking leak surveys and the current cost of real losses.
C65: Estimated Cost of Implementing Alternative Pressure Management Policy | D65: An initial approximation of the cost associated with achieving the assumed pressure reduction.
C67: Failure Frequency | D67: The Failure Frequency is also referred to as the break frequency of a distribution system. It is measured as the total number of breaks/leaks per length of mains or number of service connections. e.g. number of breaks/100 miles of main/year or number of breaks /1000 service connections/year
C69: Failure Frequency for Optimized Distribution Systems (Friedman 2010) | D69: Break frequency goal for an optimized system. Based on top quartile performance in AWWA (2007a) data. No more than 15 reported breaks and leaks per 100 miles of utility-controlled distribution and transmission piping per year. This includes breaks and leaks on appurtenances such as valves, blow-offs, fittings tapping sleeves/saddles and the connected tapping valves/corporation stops. It does not include service lines and appurtenances beyond the connecting point at the main, regardless of whether utility-owned/controlled or customer owned/controlled. Reported leaks and breaks include both emergency events (i.e., needing immediate response and repair) and non-emergency events (i.e., addressed during normally scheduled work hours) (Friedman 2010). | E69: Friedman, M., G. Kirmeyer, J. Lemieux, M. LeChevallier, S. Seidl, J. Routt. 2010. Criteria for Optimized Distribution Systems. Water Research Foundation, Denver, CO. # 4109
C71: Fixed and Variable Area Discharge Path (FAVAD) Model | D71: A concept used to assess the relationship between pressure and discharges (leakage and consumption) from pressurized water pipes. Losses from fixed area leakage paths (cracks in metal pipe) vary according to the square root of the system pressure during the leak, while discharges from variable area paths (splits in plastic pipe that extend with increasing pressure, and background losses) vary according to pressure to the power of 1.5. As there will be a mixture of fixed and variable area leaks in any distribution system, loss rates vary with pressure to a power that normally lies between the limits of 0.5 and 1.5. The simplest version of the FAVAD model, suitable for most practical predictions is: leakage rate L (volume/unit time) varies with pressure^N1 or L1/L0 = (P1/P0)^N1 The higher the N1 value, the more sensitive existing leakage flow rates are to changes in pressure. The FAVAD concepts allow accurate forecasting of the increase or decrease of leakage loss rates in a pipe system caused by changes in operating pressure. The development of this model was the foundation for pressure management application that have been found to be very economical in reducing leakage, particularly background losses, under appropriate conditions. | E71: Water Audits and Loss Control Programs; M36, (Denver: AWWA, 2009)
C73: Infrastructure Condition Factor (ICF) | D73: ICF is the ratio between the actual level of background leakage in a zone or district metered area and the calculated unavoidable background leakage of a well maintained system. Several methods exist to quantify the ICF; the more accurate methods require more detailed field data and greater effort to calculate | E73: Water Audits and Loss Control Programs; M36, (Denver: AWWA, 2009)
C75: Infrastructure Leakage Index (ILI) | D75: ILI is the performance indicator quantifying how well a distribution system is managed (maintained, repaired, rehabilitated) for the control of real (leakage) losses at the current operating pressure. Mathematically, it is the ratio of current annual real losses (CARL) to unavoidable annual real losses (UARL) or ILI = CARL/UARL. A low ILI value indicates that the water utility has managed its leakage down toward the level of the UARL, or the theoretical technical low limit of leakage achievable. As a dimensionless indicator, ILI is a leading benchmarking leakage performance indicator used in international performance comparisons. | E75: Water Audits and Loss Control Programs; M36, (Denver: AWWA, 2009)
C77: Length of Mains | D77: Length of all pipelines (except service connections) in the system starting from the point of potable water system input metering (for example at the outlet of the treatment plant). It is also recommended to include in this measure the total length of fire hydrant lead pipe. Hydrant lead pipe is the pipe branching from the water main to the fire hydrant. Fire hydrant leads are typically of a sufficiently large size that is not more representative of a pipeline than a service connection. The average length of hydrant leads across the entire system can be assumed if not known, and multiplied by the number of fire hydrants in the system, which can also be assumed if not known. This value can then be added the total pipeline length. Total length of mains can therefore be calculated as: Length of Mains, miles = (total pipeline length, miles) + [ {(average fire hydrant lead length, ft) x (number of fire hydrants)} / 5,280 ft/mile ] OR Length of Mains, kilometres = (total pipeline length, km) + [ {(average fire hydrant lead length, km) x (number of fire hydrants)} / 1,000 metres/km ] | E77: AWWA Free Water Audit Software
C79: N1 (Leakage-Pressure Exponent) Value | D79: The N1 value is used in the fixed area variable discharge (FAVAD) concepts to calculate pressure/leakage relationships Leakage Rate L (volume/unit time) varies with pressure N1 or L1/L0 = (P1/P0)^N1 The higher the N1 value, the more sensitive existing leakage flow rates will be to changes in pressures. N1 factors range between 0.5 (corrosion holes only in metallic systems) and 1.5 with occasional values of up to 2.5 (splits in plastic pipe). In distribution systems with a mix of pipe materials, N1 vales might be in the order of 1 to 1.15. Therefore, a linear relationship can be assumed initially until N1 step tests are carries out to derive better data. The model allows the user to choose between a default N1 value and a utility specific N1 value. | E79: Julian Thornton, Reinhard Sturm and George Kunkel, P.E., Water Loss Control, (McGraw-Hill, 2008)
C81: Non-Revenue Water | D81: = Apparent Losses + Real Losses +Unbilled Metered Consumption + Unbilled Unmetered Consumption Those components of system input that are not billed and produce no revenue; equal to unbilled authorized consumption plus apparent losses plus real losses | E81: Water Audits and Loss Control Programs; M36, (Denver: AWWA, 2009)
C83: Non-Revenue Water as Percent by Cost of Operating System | D83: Performance indicator that displays the value of Non-Revenue Water as a percent of the annual cost of running the distribution system. This performance indicator has been labeled Fi37 by the International Water Association (IWA) Fi37 = {[(Real Losses + Unbilled Metered Consumption + Unbilled Unmetered Consumption) * Variable Production Cost of Water] + (Apparent Losses * Customer Retail Cost of Water)} / (Cost to Operate System) | E83: Julian Thornton, Reinhard Sturm and George Kunkel, P.E., Water Loss Control, (McGraw-Hill, 2008)
C85: Non-Revenue Water as Percent by Volume of Water Supplied | D85: Basic performance indicator that shows the amount of Non-Revenue Water as a percent of the total volume of water supplied to the distribution system (System Input Volume). This performance indicator has been labeled Fi36 by the International Water Association (IWA) Fi36 = [(NRW Volume)/(Total SIV)] * 100% | E85: Julian Thornton, Reinhard Sturm and George Kunkel, P.E., Water Loss Control, (McGraw-Hill, 2008)
C87: Number of Active AND Inactive Service Connections | D87: Number of service connections main to curb stop. Please note that this includes the actual number of distinct piping connections including fire connections whether active or inactive. This may differ substantially from the number of Customers (or number of accounts). | E87: AWWA Free Water Audit Software
C89: Percent of Rigid Pipes and Service Connections | D89: The percentage of pipe material and service connections in a distribution system that is of rigid (not flexible) material - e.g. cast iron, steel, copper, etc.
C91: Potentially Recoverable Leakage | D91: Is the volume of real losses that is potentially recoverable by implementing the proactive leak detection survey schedule as calculated by the Economic Intervention Frequency model.
C93: Pressure Management | D93: A generally effective method to optimize pressures in a water distribution system to minimize losses and surge impacts, while maintaining adequate water service, including fire-fighting flows. Under appropriate conditions, pressure management is particularly effective in minimizing background losses. | E93: Water Audits and Loss Control Programs; M36, (Denver: AWWA, 2009)
C95: Ratio of Failure Frequency to UARL Break Frequency | D95: The UARL component break frequency represents the technical/theoretical minimum failure frequency for a distribution system. The ratio of failure frequency to UARL break frequency allows a utility to benchmark their failure frequency against the theoretical minimum failure frequency. =(Utility Failure Frequency) / (UARL Break Frequency)
C97: Real Loss Volume Saved through Alternative Pressure Management Policy | D97: Volume of real losses that could be saved if the theoretical/alternative pressure management policy was implemented by the utility. Due to the relationship between average system pressure and leakage losses, a decrease in leakage loss volume due to a decrease in average system pressure can be determined based upon the FAVAD discharge model.
C99: Real Losses | D99: Physical water losses from the pressurized system and the utility's storage tanks, up the point of customer consumption, which is the customer meter in those utilities that meter their customers. In unmetered systems, the delineation is the point at which the customer is responsible for customer service connection piping maintenance and repairs. Real losses include leakage (the largest component by volume for most systems), storage tank overflow, or similar operator error. | E99: Water Audits and Loss Control Programs; M36, (Denver: AWWA, 2009)
C101: Real Losses per Length of Main per Day | D101: Performance indicator that normalizes the real losses within the distribution system by the length of main in the system. This performance indicator should only be used for water utilities with a low density of service connections (such as rural systems), of less than 32 service connections per mile. = (Real Losses per Day) / (Length of Main) | E101: Water Audits and Loss Control Programs; M36, (Denver: AWWA, 2009)
C103: Real Losses per Service Connection per Day | D103: Performance indicator that normalizes the real losses within the distribution by the number of service connections. This is considered one of the most reliable of the traditional performance indicators for real losses, for all systems with service line densities of >32/mile. This performance Indicator has been labeled Op24 by the International Water Association. Op24 = (Real Losses per Day)/(Service Connections) | E103: Julian Thornton, Reinhard Sturm and George Kunkel, P.E., Water Loss Control, (McGraw-Hill, 2008)
C105: Real Losses per Service Connection per Day per Pressure (PSI or Meter Head) | D105: Real Losses per Service Connection per Day per PSI/Meter Head of pressure further improves upon the Real Losses per service connection per day performance indicator (Op24) by taking into account the average pressure of the distribution system. | E105: Julian Thornton, Reinhard Sturm and George Kunkel, P.E., Water Loss Control, (McGraw-Hill, 2008)
C107: Reported Leaks | D107: Reported breaks are those events that are brought to the attention of the water utility by the general public or the water utility's own personnel. A break or a leak that manifests itself at the surface will normally be reported to the water utility whether or not it causes a nuisance such as flooding. | E107: Julian Thornton, Reinhard Sturm and George Kunkel, P.E., Water Loss Control, (McGraw-Hill, 2008)
C109: Reported Reservoir Leakage and any recorded Reservoir and Tank Overflows | D109: Reservoir leakage that was identified by utility personnel or a contractor during the audit period and Reservoir overflows that have been brought to the attention of the water utility by the general public or the water utility's own personnel. Reported reservoir leakage is generally found by SCADA system overflow alerts or by causing a nuisance such as flooding. | E109: Julian Thornton, Reinhard Sturm and George Kunkel, P.E., Water Loss Control, (McGraw-Hill, 2008)
C111: Reservoir Background Leakage Rate | D111: Individual minor and small in volume water loss events that will continue to flow, with flow rates too low to be detected by sonic methods of an active leakage control program.
C113: Reservoir Capacity | D113: The sum of the capacities of all of finished water reservoirs attached to the distribution system. This includes finished water reservoirs at the treatment plant in case the system input volume is metered before the finished water reservoirs. If the water balance is based on raw water meters at the water treatment plant then the raw water reservoirs need to be included in this capacity calculation as well.
C115: Service Connection | D115: A service connection is defined as "the pipe connecting the main to the measurement point or the customer curb stop, as applicable." Where several registered customers or individually occupied premises share a physical connection, for example, apartment buildings, this will still be regarded as the one connection, irrespective of the configuration and number of customers on the premises. The "number of service connections" variable (Nc) is required for the calculation of several performance indicators. The Nc variable is also used to calculate the unavoidable annual real losses (UARL) in a system by taking into consideration the unavoidable leakage expected to occur on service connections between the main and curb stop or property line. It is then added to the other components of UARL (on mains, and on pipes between the curb stop/property line and the customer meter) to calculate the total UARL | E115: Julian Thornton, Reinhard Sturm and George Kunkel, P.E., Water Loss Control, (McGraw-Hill, 2008)
C117: Service Connection Density | D117: = Number of connections / length of mains | E117: AWWA Free Water Audit Software
C119: Simple Payback Period for Implementing Alternative Pressure Management Policy | D119: A basic calculation of the payback period of an alternative pressure management policy based on the cost to implement an alternative pressure management strategy and the expected real loss reduction as a result of the policy. =(Value of Real Loss Volume Saved Through Alternative Pressure Management Policy) / (Estimated Cost of Implementing Alternative Pressure Management Policy)
C121: Total Annual Cost of Operating the Water System | D121: These costs include those for operations, maintenance and any annually incurred costs for long-term upkeep of the system, such as repayment of capital bonds for infrastructure expansion or improvement. Typical costs include employee salaries and benefits, materials, equipment, insurance, fees, administrative costs and all other costs that exist to sustain the drinking water supply. These costs should not include any costs to operate wastewater, biosolids or other systems outside of drinking water. | E121: AWWA Free Water Audit Software
C123: Total Annual Loss (Real Loss Component Analysis) | D123: The total annual water losses for a group of leaks based upon the Average Leak Duration and the Average Leak Flow Rate. =(total number of leaks) * (average leak duration) *(average leak flow rate)
C125: Water Supplied | D125: Volume of water input to that part of the water supply system to which the water balance calculation relates. It is equal to the water volume derived from the water utility's own source waters plus water imported or purchased during the audit period plus or minus the net change in water storage where applicable (and significant). This volume is the water that has been treated and pressurized to provide service to customers; therefore, it has attained a higher cost value than raw or untreated water coming from a water resource. | E125: AWWA Free Water Audit Software
C127: Unavoidable Annual Real Losses (UARL) | D127: Real (leakage) losses in water utilities cannot be totally eliminated. UARL represents the lowest loss technically achievable in a water utility based on its key characteristics. UARL calculation is based on leakage data gathered from well-maintained and well-managed systems. Equations for calculating UARL for individual systems were developed and tested by the International Water Association's Water Loss Task Force and published in 2000. The equations take into account measured frequencies, flow rates and durations of background losses, reported leaks and unreported leaks, as well as the pressure-leakage relationship (assumed to be linear for most large systems). A straightforward equation for UARL was developed. This equation, expressed in gallons is given below (adjusting for units) UARL(gal) = (5.4Lm + 0.15Nc + 7.5Lc) * P Where: Lm = length of water mains, mi Nc = number of service connections Lc = total length of private pipe, mi = Nc x average distance from curb stop to customer meter, Lp P = average pressure in the system, PSI The ratio of current annual real losses (CARL) to the UARL is the Infrastructure Leakage Index (ILI), which is a powerful leakage benchmarking performance indicator. | E127: Water Audits and Loss Control Programs; M36, (Denver: AWWA, 2009)
C130: Unbilled Metered Consumption | D130: Metered Consumption which is for any reason unbilled. This might include metered consumption by the utility itself or water provided to institutions free of charge. It does NOT include water sold to neighboring utilities (water exported) which is metered and billed | E130: AWWA Free Water Audit Software
C132: Unbilled Unmetered Consumption | D132: Any kind of Authorized Consumption which is neither billed nor metered. This component typically includes items such as fire fighting, flushing of mains and sewers, street cleaning, frost protection, etc. In most water utilities it is a small component which is very often substantially overestimated. It does NOT include water sold to neighboring utilities (water exported) which is unmetered and unbilled - an unlikely case. This component has many sub-components of water use which are often tedious to identify and quantify. Because of this, and the fact that it is usually a small portion of the water supplied, it is recommended that the auditor apply the default value of 1.25% of the volume from own sources. Select the default percentage to enter this value. If the water utility already has well validated data that gives a value substantially higher or the default approach is recommended for most water utilities. Note that a value of zero is not permitted, since all water utilities have some volume of water in this component occurring in their system. | E132: AWWA Free Water Audit Software
C134: Unreported Leaks | D134: These leaks, usually hidden, are found only if a water utility has an active leakage control program, or when they worsen and appear in some fashion and become reported leaks. With passive or very infrequent active leakage control, these leaks go undetected and run for long periods of time causing mounting water losses. Active leakage control interventions carried out at an economic frequency that varies with local circumstances, allows the volume lost from unreported leaks to be managed economically. | E134: Water Audits and Loss Control Programs; M36, (Denver: AWWA, 2009)
C136: Unreported Reservoir Leakage | D136: Reservoir leakage that has been brought to the attention to the utility through a dedicated program designed to identify unknown reservoir leaks.
C138: Value of Real Losses | D138: Monetary value associated to the current volume of real losses in a distribution system based on the variable production cost applied to real losses. = (Current Annual Real Losses) * (Variable Production Cost Applied to Real Losses)
C140: Value of Real Loss Volume Saved Through Alternative Pressure Management Policy | D140: Monetary value associated to the reduction in real losses due to an alternative pressure management strategy. =(Real Loss Savings due to alternative pressure management strategy) * (Variable Production Cost Applied to Real Losses)
C142: Variable Production Cost (Applied to Real Losses) | D142: The cost to produce and supply the next unit of water. (E.g., $/million gallons) This cost is determined by calculating the summed unit costs for ground and surface water treatment and all power used for pumping from the source to the customer. It should also include the unit cost of bulk water purchased as an import if applicable. | E142: AWWA Free Water Audit Software
C144: Water Losses | D144: The difference of The system input volume and authorized consumption. Water losses are considered as a total volume for The whole system, or for partial systems such as transmission or distribution systems, or individual zones. Water losses consist of real losses plus apparent losses. | E144: AWWA Free Water Audit Software
B150: =IF('Start Page'!$H$29="","",'Start Page'!$H$29) ->  | K150: ©2014 Water Research Foundation. ALL RIGHTS RESERVED.

Sheet License
A1: WaterRF 4372: Real Loss Component Analysis: A Tool for Economic Water Loss Control
A3: =IF('Start Page'!$Y$37="","",IF('Start Page'!$K$37="Partial Audit Period","Water Audit: "&'Start Page'!$D$26&", "&'Start Page'!$H$26&", "&'Start Page'!$K$26&", "&'Start Page'!$Y$37,"Water Audit: "&'Start Page'!$D$26&", "&'Start Page'!$H$26&", "&'Start Page'!$K$26&", "&YEAR('Start Page'!$Y$37))) -> 
A4: LICENSE
A5: WaterRF 4372 Component Analysis of Real Losses Model developed by Water Systems Optimization, Inc for the Water Research Foundation and US EPA. December 2013
A8: Development Team: Reinhard Sturm - Water Systems Optimization, Inc Timothy Wilson - Water Systems Optimization, Inc Stephen Preston - Water Systems Optimization, Inc Katherine Gasner - Water Systems Optimization, Inc Mary Ann Dickinson - Alliance for Water Efficiency
A11: =IF('Start Page'!$H$29="","",'Start Page'!$H$29) ->  | G11: ©2013 Water Research Foundation. ALL RIGHTS RESERVED.

Sheet Data 2012 (hidden)
B3: 2012 Validated Water Audit Data AWWA Water Loss Control Committee Copyright © 2012, American Water Works Association. All Rights Reserved
B4: Contact Information | C4: Name of City or Utility | D4: Greater Cincinnati Water Works | E4: City of Santa Monica | F4: ALBUQUERQUE BERNALILLO COUNTY WATER UTILITY | G4: Aqua WSC | H4: Austin Water Utility | I4: City of Belmont | J4: Birmingham Water Works Board | K4: The City of Calgary | L4: Cherokee County Water & Sewerage Authority | M4: Cobb County Water System WSID 67003 | N4: City of Cranbrook, BC | O4: Dalton Utilities | P4: DC Water & Sewer Authority | Q4: Halifax Regional Water Commission | R4: Water District No. 1 of Johnson County | S4: Las Vegas Valley Water District | T4: Louisville Water Company | U4: Orange County Utilities Department | V4: PAWC-Pittsburgh | W4: Philadelphia Water Department | X4: City of Rio Rancho | Y4: Utilities Inc. | Z4: City of Wauwatosa Water Utility | AA4: Washington County Service Authority | AB4: City of Wilmington, Delaware | AC4: Water & Wastewater Authority of Wilson County
B5: Administrative | C5: Name of City or Utility | D5: Cincinnati OH | E5: Santa Montica CA | F5: Albuquerque NM | G5: Aqua TX | H5: Austin TX | I5: Belmont NC | J5: Birmingham AL | K5: Calgary CAN | L5: Cherokee Co GA | M5: Cobb Co GA | N5: Cranbrook BC | O5: Dalton GA | P5: DC WSA | Q5: Halifax CAN | R5: Johnson Co KS | S5: Las Vegas NV | T5: Louisville KY | U5: Orange Co FL | V5: PAWC-Pittsburgh PA | W5: Philadelphia PA | X5: Rio Rancho NM | Y5: Lexington SC | Z5: Wauwatosa WI | AA5: Washington Co VA | AB5: Wilmington DE | AC5: Wilson Co TN
C6: Abbreviation | D6: GCWW | E6: SMW | F6: ABCWUA | G6: AquaWSC | H6: AW | I6: BUD | J6: BWWB | K6: CW | L6: CCWSA | M6: CCWS | N6: CBW | O6: DUTIL | P6: DCWATER | Q6: HRWC | R6: JCW1 | S6: LVVWD | T6: LWCKY | U6: OCFL | V6: PAW | W6: PWD | X6: RRW | Y6: UI | Z6: WWU | AA6: WCSA | AB6: WDPW | AC6: WWAWC
C7: Country | D7: USA | E7: USA | F7: USA | G7: USA | H7: United States | I7: USA | J7: USA | K7: Canada | L7: USA | M7: USA | N7: Canada | O7: US | P7: U.S.A. | Q7: Canada | R7: USA | S7: USA | T7: USA | U7: USA | V7: USA | W7: USA | X7: USA | Y7: USA | Z7: USA | AA7: USA | AB7: USA | AC7: USA
C8: Reporting Year | D8: 2010 | E8: 2010 | F8: 2011 | G8: 2011 | H8: 2011 | I8: 2011 | J8: 2011 | K8: 2011 | L8: 2011 | M8: CY2011 | N8: 2011 | O8: 2011 | P8: FY2011 | Q8: FY10-11 | R8: 2011 | S8: 2011 | T8: 2011 | U8: 2011 | V8: 2011 | W8: 2011 | X8: 2011 | Y8: 2011 | Z8: 2011 | AA8: 2011 | AB8: FY2011 | AC8: FY10/11
C9: Start Date | D9: 2010-01-01 | E9: 2010-01-01 | F9: 2011-01-01 | G9: 2010-09-01 | H9: 2010-10-01 | I9: 2011-01-01 | J9: 2011-01-01 | K9: 2011-01-01 | L9: 2011-01-01 | M9: 2011-01-01 | N9: 2011-01-01 | O9: 2011-01-01 | P9: 2010-10-01 | Q9: 2010-04-01 | R9: 2011-03-01 | S9: 2011-01-01 | T9: 2011-01-01 | U9: 2011-01-01 | V9: 2011-01-01 | W9: 2010-07-01 | X9: 2011-01-01 | Y9: 2011-01-01 | Z9: 2011-01-01 | AA9: 2011-01-01 | AB9: 2010-07-01 | AC9: 2010-07-01
C10: End Date | D10: 2010-12-01 | E10: 2010-12-01 | F10: 2011-12-01 | G10: 2011-08-01 | H10: 2011-09-30 | I10: 2011-12-01 | J10: 2011-12-01 | K10: 2011-12-01 | L10: 2011-12-01 | M10: 2011-12-01 | N10: 2011-12-01 | O10: 2011-12-01 | P10: 2011-09-01 | Q10: 2011-03-01 | R10: 2012-02-29 | S10: 2011-12-01 | T10: 2011-12-01 | U10: 2011-12-01 | V10: 2011-12-31 | W10: 2011-06-30 | X10: 2011-12-01 | Y10: 2011-12-01 | Z10: 2011-12-01 | AA10: 2011-12-31 | AB10: 2011-06-01 | AC10: 2011-06-01
C11: Name of Contact Person | D11: Mark Ginty | E11: Kimberly O'Cain | F11: ANGELIQUE MALDONADO | G11: Mark Mathis | H11: Dan Strub | I11: Chuck Flowers | J11: Ray Sloan | K11: Stacey Zhao | L11: David Kubala | M11: Kathy Nguyen | N11: Joe McGowan | O11: David A. Oxford | P11: Syed Khalil | Q11: Grahma MacDonald | R11: Mark Sunderson | S11: Cecelia Adair | T11: Ralph McCord/ Tonya Taylor | U11: Robert J. Dudas | V11: Anthony J Emanuele | W11: George Kunkel | X11: Marian Wrage | Y11: Kendra Rose | Z11: James Wojcehowicz | AA11: Mark J. Osborne | AB11: Colleen Arnold | AC11: Chris Leauber
C12: E-Mail | D12: mark.ginty@gcww.cincinnati-oh.gov | E12: kimberly.ocain@smgov.net | F12: ADMALDONADO@ABCWUA.ORG | G12: mmathis@aquawsc.com | H12: dan.strub@ci.austin.tx.us | I12: cflowers@cityofbelmont.org | J12: ray.sloan@bwwb.org | K12: stacey.zhao@calgary.ca | L12: dkubala@earthlink.net | M12: kathy.nguyen@cobbcounty.org | N12: mcgowan@cranbrook.ca | O12: doxford@dutil.com | P12: skhalil@dcwater.com | Q12: grahamm@halifaxwater.ca | R12: msunderson@waterone.org | S12: cecelia.adair@lvvwd.com | T12: rmccord@lwcky.com | U12: Bob.Dudas@ocfl.net | V12: anthony.emanuele@amwater.com | W12: george.kunkel@phila.gov | X12: mwrage@ci.rio-rancho.nm.us | Z12: jwojcehowicz@wauwatosa.net | AA12: mosborne@wcsa-water.com | AB12: carnold@wilmingtonde.gov | AC12: cleauber@wwawc.com
C13: Telephone | D13: 5135916586 | E13: 310-458-8459 | F13: 5057682721 | G13: 512.304.0362 | H13: 512-972-0349 | I13: 704-825-0512 | J13: 205-288-1228 | K13: 403-268-1450 | L13: (770)479-1813 | M13: 770-419-6244 | N13: 250-489-0240 | O13: 706-529-1204 | P13: 202-7872173 | Q13: 902-869-4338 | R13: 913-895-5757 | S13: 702-259-8143 | T13: 5025693600 | U13: 407-836-6835 | V13: 724-743-3112 | W13: 215-685-4913 | X13: 505-896-8737 | Z13: 414-479-8965 | AA13: (276) 628-7151 | AB13: 302-576-3017 | AC13: 615-449-2951
C14: Telephone Ext | L14: 248 | T14: 1888 | AA14: 205
B16: Audit Data
B17: Water Supplied | C17: Volume Units | D17: Million gallons (US) | E17: Million gallons (US) | F17: Million gallons (US) | G17: Million gallons (US) | H17: Million gallons (US) | I17: Million gallons (US) | J17: Million gallons (US) | K17: Million gallons (US) | L17: Million gallons (US) | M17: Million gallons (US) | N17: Million gallons (US) | O17: Million gallons (US) | P17: Million gallons (US) | Q17: Million gallons (US) | R17: Million gallons (US) | S17: Million gallons (US) | T17: Million gallons (US) | U17: Million gallons (US) | V17: Million gallons (US) | W17: Million gallons (US) | X17: Million gallons (US) | Y17: Million gallons (US) | Z17: Million gallons (US) | AA17: Million gallons (US) | AB17: Million gallons (US) | AC17: Million gallons (US)
C18: Volume From Own Sources | D18: 47328.971 | E18: 1059.994712 | F18: 33345.52298 | G18: 2948.4 | H18: 52834.738 | I18: 638.5958 | J18: 37361.543 | K18: 43349.31293 | L18: 5326.29 | N18: 1213.986552 | O18: 7492.7 | Q18: 11999.68289 | R18: 22303.349 | S18: 12600.1 | T18: 44037 | U18: 21837.363 | V18: 25163.71 | W18: 92613 | X18: 4437 | Y18: 7.3446 | AA18: 2696.336 | AB18: 6547
C19: Master meter error adjustment | D19: 264.95 | G19: 60.1 | H19: 1078.26 | I19: 6.450462626 | J19: 1450.794 | K19: 433.4931293 | L19: 239.683 | N19: 0 | O19: 60.955 | R19: 0.0001 | S19: 0 | T19: 0 | U19: 222.662 | V19: 127.07 | W19: 1353.9 | X19: 88.74 | Y19: 0 | AA19: 13.5 | AB19: 65.47
C20: Water imported | E20: 3197.254263 | H20: 0 | I20: 0 | L20: 21.342 | M20: 20632.741 | O20: 709.0455 | P20: 37556.2 | R20: 0 | S20: 91134.2 | T20: 0 | U20: 115.509 | V20: 9.452 | X20: 0 | Z20: 1782 | AA20: 285.168 | AC20: 395.054428
C21: Water exported | D21: 8195 | F21: 172.521712 | G21: 72 | H21: 3514.4334 | I21: 0 | K21: 2086.695042 | L21: 286.642 | O21: 122.9238 | R21: 0 | S21: 1356.6 | T21: 1789.8 | U21: 0 | V21: 499.425 | W21: 7008 | X21: 8.197 | AB21: 7.669 | AC21: 0.0003
C22: WATER SUPPLIED | D22: 39398.921 | E22: 4257.248976 | F22: 33173.00127 | G22: 2936.5 | H22: 50398.5646 | I22: 645.0462626 | J22: 35910.749 | K22: 41696.11102 | L22: 5300.673 | M22: 20632.741 | N22: 1213.986552 | O22: 8139.7767 | P22: 37556.2 | Q22: 11999.68289 | R22: 22303.349 | S22: 102377.7 | T22: 42247.2 | U22: 21730.21 | V22: 24800.807 | W22: 84251.1 | X22: 4517.543 | Y22: 7.3446 | Z22: 1782 | AA22: 2995.004 | AB22: 6604.801 | AC22: 395.054128
B23: Authorized Consumption | C23: Billed metered | D23: 31466.8 | E23: 3838.204032 | F23: 29368.32681 | G23: 2365.27 | H23: 44650.88 | I23: 450.727103 | J23: 25483.324 | K23: 33217.25804 | L23: 4582.936 | M23: 18973.835 | O23: 7045.4726 | P23: 29039.7 | Q23: 9965.687527 | R23: 19587.721 | S23: 97179.6 | T23: 32594.9 | U23: 20441.373 | V23: 14547.562 | W23: 50808 | X23: 3941 | Y23: 6.75799 | Z23: 1542 | AA23: 1536.988 | AB23: 3482 | AC23: 318.9184
C24: Billed unmetered | D24: 26.9 | F24: 317.5941204 | G24: 7.44 | H24: 187.898 | I24: 0 | J24: 17.523 | K24: 3054.885613 | L24: 0 | M24: 0 | N24: 925.1305274 | P24: 0 | Q24: 0 | R24: 0 | S24: 0 | U24: 0 | V24: 0 | X24: 0
C25: Unbilled metered | D25: 531.8 | F25: 572.74 | G25: 64.27 | H25: 70.479 | I25: 27.339769 | J25: 3.717 | K25: 34.87071091 | L25: 123.033 | M25: 0 | P25: 0 | Q25: 2.173871819 | R25: 3.737 | S25: 2.4 | T25: 2454.3 | U25: 144.8 | V25: 439.278 | X25: 0 | AA25: 0 | AB25: 115
C26: Unbilled unmetered | D26: 506.5 | E26: 53.21561219 | F26: 193.8 | G26: 36.70625 | H26: 94.727 | I26: 14.9065 | J26: 448.8843625 | K26: 237.7548471 | L26: 8.602 | M26: 19.3 | N26: 15.1748319 | O26: 101.7472087 | P26: 687.1 | Q26: 102.2660207 | R26: 278.7918625 | S26: 3.1 | T26: 528.09 | U26: 228.8 | V26: 310.0100875 | W26: 784.7 | X26: 56.4692875 | Y26: 0.0918075 | Z26: 22.275 | AA26: 37.43755 | AB26: 82.5600125 | AC26: 2.171948
C27: Unbilled unmetered (1 = Default; 2 = Value) | D27: 2 | E27: 1 | F27: 2 | G27: 1 | H27: 2 | I27: 2 | J27: 1 | K27: 2 | L27: 2 | M27: 2 | N27: 1 | O27: 1 | P27: 2 | Q27: 2 | R27: 1 | S27: 2 | T27: 1 | U27: 2 | V27: 1 | W27: 2 | X27: 1 | Y27: 1 | Z27: 1 | AA27: 1 | AB27: 1 | AC27: 2
C28: AUTHORIZED CONSUMPTION | D28: 32532 | E28: 3891.419645 | F28: 30452.46093 | G28: 2473.68625 | H28: 45003.984 | I28: 492.973372 | J28: 25953.44836 | K28: 36544.76921 | L28: 4714.571 | M28: 18993.135 | N28: 940.3053593 | O28: 7147.219809 | P28: 29726.8 | Q28: 10070.12742 | R28: 19870.24986 | S28: 97185.1 | T28: 35577.29 | U28: 20814.973 | V28: 15296.85009 | W28: 51592.7 | X28: 3997.469288 | Y28: 6.8497975 | Z28: 1564.275 | AA28: 1574.42555 | AB28: 3679.560013 | AC28: 321.090348
B29: Water Losses | C29: WATER LOSSES (Water Supplied - Authorized Consumption) | D29: 6866.921 | E29: 365.829331 | F29: 2720.54034 | G29: 462.81375 | H29: 5394.5806 | I29: 152.0728906 | J29: 9957.300637 | K29: 5151.341812 | L29: 586.102 | M29: 1639.606 | N29: 273.6811929 | O29: 992.5568912 | P29: 7829.4 | Q29: 1929.555466 | R29: 2433.099137 | S29: 5192.6 | T29: 6669.91 | U29: 915.237 | V29: 9503.956912 | W29: 32658.4 | X29: 520.0737125 | Y29: 0.4948025 | Z29: 217.725 | AA29: 1420.57845 | AB29: 2925.240988 | AC29: 73.96378
C30: Unauthorized consumption | D30: 5.9 | E30: 10.64312244 | F30: 82.93250318 | G30: 7.34125 | H30: 156.253 | I30: 1.612615657 | J30: 89.7768725 | K30: 104.2402775 | L30: 13.2516825 | M30: 51.5818525 | N30: 3.03496638 | O30: 20.34944175 | P30: 132.6 | Q30: 27.7087424 | R30: 55.7583725 | S30: 255.94425 | T30: 105.618 | U30: 54.325525 | V30: 62.0020175 | W30: 3233.2 | X30: 11.2938575 | Y30: 0.0183615 | Z30: 4.455 | AA30: 7.48751 | AB30: 100 | AC30: 0.98763532
C31: Unauthorized consumption (1 = Default; 2 = Value) | D31: 2 | E31: 1 | F31: 1 | G31: 1 | H31: 2 | I31: 1 | J31: 1 | K31: 1 | L31: 1 | M31: 1 | N31: 1 | O31: 1 | P31: 2 | Q31: 2 | R31: 1 | S31: 1 | T31: 1 | U31: 1 | V31: 1 | W31: 2 | X31: 1 | Y31: 1 | Z31: 1 | AA31: 1 | AB31: 2 | AC31: 1
C32: Customer metering inaccuracies | D32: 323.2181818 | E32: 78.33069454 | F32: 611.0421798 | G32: 36.99807107 | H32: 894.196 | I32: 19.919453 | J32: 815.3748927 | K32: 335.8800884 | L32: 96.04018367 | M32: 288.9416497 | N32: 0 | O32: 217.9012144 | P32: 582.2 | Q32: 132.5219101 | R32: 453.0048607 | S32: 1231 | T32: 1109.8 | U32: 207.9411414 | V32: 384.2779487 | W32: 1532.6 | X32: 121.8865979 | Y32: 0.1379181633 | Z32: 31.46938776 | AA32: 31.36710204 | AB32: 189.3157895 | AC32: 5.515374161
C33: Systematic data handling errors | D33: 1380.1 | E33: 0.3258514333 | F33: 235.57 | G33: 6.82 | H33: 11.92 | I33: 1 | J33: 0.001 | K33: 416.9609781 | L33: 23.573 | M33: 0.0001 | O33: 36.006 | P33: 1667.6 | Q33: 0.2641720524 | R33: 0.0001 | S33: 100 | T33: 900 | U33: 1.515 | V33: 218.21343 | W33: 3574.2 | X33: 5 | Y33: 0.0001 | Z33: 12 | AA33: 12 | AB33: 500 | AC33: 0.02
C34: Apparent Losses | D34: 1709.218182 | E34: 89.29966841 | F34: 929.544683 | G34: 51.15932107 | H34: 1062.369 | I34: 22.53206866 | J34: 905.1527652 | K34: 857.081344 | L34: 132.8648662 | M34: 340.5236022 | N34: 3.03496638 | O34: 274.2566562 | P34: 2382.4 | Q34: 160.4948245 | R34: 508.7633332 | S34: 1586.94425 | T34: 2115.418 | U34: 263.7816664 | V34: 664.4933962 | W34: 8340 | X34: 138.1804554 | Y34: 0.1563796633 | Z34: 47.92438776 | AA34: 50.85461204 | AB34: 789.3157895 | AC34: 6.523009481
C35: Real Losses = (Water Losses - Apparent Losses) | D35: 5157.702818 | E35: 276.5296626 | F35: 1790.995657 | G35: 411.6544289 | H35: 4332.2116 | I35: 129.540822 | J35: 9052.147872 | K35: 4294.260468 | L35: 453.2371338 | M35: 1299.082398 | N35: 270.6462265 | O35: 718.3002351 | P35: 5447 | Q35: 1769.060642 | R35: 1924.335804 | S35: 3605.65575 | T35: 4554.492 | U35: 651.4553336 | V35: 8839.463516 | W35: 24318.4 | X35: 381.8932571 | Y35: 0.3384228367 | Z35: 169.8006122 | AA35: 1369.723838 | AB35: 2135.925198 | AC35: 67.44077052
C36: WATER LOSSES | D36: 6866.921 | E36: 365.829331 | F36: 2720.54034 | G36: 462.81375 | H36: 5394.5806 | I36: 152.0728906 | J36: 9957.300637 | K36: 5151.341812 | L36: 586.102 | M36: 1639.606 | N36: 273.6811929 | O36: 992.5568912 | P36: 7829.4 | Q36: 1929.555466 | R36: 2433.099137 | S36: 5192.6 | T36: 6669.91 | U36: 915.237 | V36: 9503.956912 | W36: 32658.4 | X36: 520.0737125 | Y36: 0.4948025 | Z36: 217.725 | AA36: 1420.57845 | AB36: 2925.240988 | AC36: 73.96378
B37: Non-Revenue Water | C37: NON-REVENUE WATER | D37: 7905.221 | E37: 419.0449432 | F37: 3487.08034 | G37: 563.79 | H37: 5559.7866 | I37: 194.3191596 | J37: 10409.902 | K37: 5423.96737 | L37: 717.737 | M37: 1658.906 | N37: 288.8560248 | O37: 1094.3041 | P37: 8516.5 | Q37: 2033.995359 | R37: 2715.628 | S37: 5198.1 | T37: 9652.3 | U37: 1288.837 | V37: 10253.245 | W37: 33443.1 | X37: 576.543 | Y37: 0.58661 | Z37: 240 | AA37: 1458.016 | AB37: 3122.801 | AC37: 76.135728
B38: System Data | C38: Length of mains | D38: 3132.5 | E38: 205 | F38: 3371.63 | G38: 1590 | H38: 3649 | I38: 95 | J38: 3970 | K38: 2992.673262 | L38: 1227.3 | M38: 2915 | N38: 105.322215 | O38: 1259.17 | P38: 1350 | Q38: 984.25008 | R38: 2619.9 | S38: 4490 | T38: 4139 | U38: 1703 | V38: 2984.58375 | W38: 3159 | X38: 398 | Y38: 1.8 | Z38: 200.1 | AA38: 831 | AB38: 410 | AC38: 322
C39: Number of active AND inactive service connections | D39: 246294 | E39: 17847 | F39: 203987 | G39: 17657 | H39: 211791 | I39: 4622 | J39: 226717 | K39: 294398 | L39: 61305 | M39: 176516 | N39: 6697 | O39: 40772 | P39: 133500 | Q39: 83911 | R39: 135893 | S39: 394665 | T39: 295772 | U39: 94308 | V39: 243511 | W39: 524413 | X39: 31047 | Y39: 113 | Z39: 15500 | AA39: 22311 | AB39: 37495 | AC39: 7001
